Workbook

Sheet Overblik
A1: =A906 -> Retten i Holstebro | B1: =B906 -> 95.42831396 | C1: 102.5444604 | D1: 93.691 | E1: 104.7558316 | F1: 103.093 | G1: 105.9156364 | H1: 0.2224006638 | I1: 0.2323087287 | J1: 99 | K1: 92 | L1: 517.1038961 | M1: 550.6423358 | N1: 33.32733875 | O1: 33.75932 | P1: 44.06779661 | Q1: 68.42105263 | R1: 66.66666667 | S1: - | T1: 8.727287925 | U1: 8.955644828 | V1: 11.9 | W1: 20.3 | X1: 46.44103 | Y1: 43.06072 | Z1: 11.27 | AA1: 10.21529 | AB1: 23.056 | AC1: 21.61701 | AD1: 21.76629581 | AE1: 20.61569091 | AF1: Retten i Holstebro | AG1: Retten i Holstebro | AH1: 95.42831396
A2: =A1 -> Retten i Holstebro | B2: =AF1 -> Retten i Holstebro
B3: ÅRSNØGLETAL 2012
I4: Evt. sammenligning
B5: =A1 -> Retten i Holstebro | I5: =B34 -> Retten i Herning | L5: Datatabeller
D6: 2011 | E6: 2012 | F6: Gnst. BR 2012 | G6: 5. bedste 2012 | I6: 2011 | J6: 2012 | L6: KLIK PÅ PILENE FOR AT HOPPE TIL DATA:
B7: Samlet produktivitet, retten (indeks) | D7: =B1 -> 95.42831396 | E7: =C1 -> 102.5444604 | F7: 100.6326328 | G7: 103.6514836 | I7: =IF($B$5=$I$5,"",C34) -> 93.06874091 | J7: =IF($B$5=$I$5,"",D34) -> 98.43564203 | M7: Produktivitet, samlet for retten
B8: Samlet produktivitet, jurister (indeks) | D8: =D1 -> 93.691 | E8: =E1 -> 104.7558316 | F8: 98.1271224 | G8: 103.8910409 | I8: =IF($B$5=$I$5,"",E34) -> 87.813 | J8: =IF($B$5=$I$5,"",F34) -> 91.78927512 | M8: Produktivitet, jurister
B9: Samlet produktivitet, kontorfunktionærer (indeks) | D9: =F1 -> 103.093 | E9: =G1 -> 105.9156364 | F9: 103.0314618 | G9: 106.9287878 | I9: =IF($B$5=$I$5,"",G34) -> 99.788 | J9: =IF($B$5=$I$5,"",H34) -> 109.6591234 | M9: Produktivitet, kontor
B10: Årsværksandel til generel ledelse og administration (procent) | D10: =H1*100 -> 22.24006638 | E10: =I1*100 -> 23.23087287 | F10: 19.15668973 | I10: =IF($B$5=$I$5,"",I34*100) -> 21.46767675 | J10: =IF($B$5=$I$5,"",J34*100) -> 22.12270095 | M10: Årsværk, ledelse og administration
B11: Gnst. sagsbehandlingstid, domsmandssager (dage) | D11: =J1 -> 99 | E11: =K1 -> 92 | F11: 126.7329052 | G11: 90 | I11: =IF($B$5=$I$5,"",K34) -> 93 | J11: =IF($B$5=$I$5,"",L34) -> 96 | M11: Aktivitet ved retten
B12: Gnst. sagsbehandlingstid, hovedforhandlet alm. civil sag (mdr.) | D12: =L1/30 -> 17.23679654 | E12: =M1/30 -> 18.35474453 | F12: =570.278445684843/30 -> 19.00928152 | G12: =481/30 -> 16.03333333 | I12: =IF($B$5=$I$5,"",M34/30) -> 16.8 | J12: =IF($B$5=$I$5,"",N34/30) -> 17.06146789 | M12: Målopfyldelse, straffesager
B13: Gnst. sagsbehandlingstid, almindelig fogedsag (dage) | D13: =N1 -> 33.32733875 | E13: =O1 -> 33.75932 | F13: 65.68381909 | G13: 46.06627 | I13: =IF($B$5=$I$5,"",O34) -> 46.15043463 | J13: =IF($B$5=$I$5,"",P34) -> 46.06627 | M13: Målopfyldelse, civile sager
B14: Målopfyldelse, voldssager 37-dages frist (procent) | D14: =P1 -> 44.06779661 | E14: =Q1 -> 68.42105263 | F14: 48.88059701 | G14: 63.01369863 | I14: =IF($B$5=$I$5,"",Q34) -> 60.41666667 | J14: =IF($B$5=$I$5,"",R34) -> 56.09756098 | M14: Målopfyldelse, fogedsager
B15: Målopfyldelse, voldtægtssager 37-dages frist (procent) | D15: =IF(R1=999," -",R1) -> 66.66666667 | E15: =IF(S1=999," -",S1) -> - | F15: 41.55844156 | G15: 66.66666667 | I15: =IF($B$5=$I$5,"",S34) -> 0 | J15: =IF($B$5=$I$5,"",T34) -> 60 | M15: Gnst. Sagsbehandlingstid, straffesager
... 4 more rows

Sheet Produkt.SAML.
B2: PRODUKTIVITETSINDEKS SAMLET FOR RETTEN
B4: EID | C4: Ret | D4: Samlet | F4: Retssager | H4: Straffesager | J4: Civile sager | L4: Fogedsager | N4: Skiftesager
D5: 2011 | E5: 2012 | F5: 2011 | G5: 2012 | H5: 2011 | I5: 2012 | J5: 2011 | K5: 2012 | L5: 2011 | M5: 2012 | N5: 2011 | O5: 2012
C6: 5. BEDSTE RET | D6: 102.5121673 | E6: 103.6514836 | F6: 104.8047392 | G6: 106.3381538 | H6: 105.6274543 | I6: 117.0804719 | J6: 111.4312345 | K6: 95.501341 | L6: 110.1580055 | M6: 109.441224 | N6: 111.6953868 | O6: 126.2310292
C7: SAMLET BYRETTERNE | D7: 100 | E7: 100.6326328 | F7: 100 | G7: 101.8517366 | H7: 100 | I7: 108.9497738 | J7: 100 | K7: 90.02160746 | L7: 100 | M7: 95.251821 | N7: 100 | O7: 109.7911845
B9: 901 | C9: Retten i Hjørring | D9: 108.8426398 | E9: 101.608501 | F9: 104.7462159 | G9: 95.8557647 | H9: 107.99722 | I9: 110.2918384 | J9: 104.0431354 | K9: 81.85564171 | L9: 103.9630205 | M9: 93.44166619 | N9: 120.2370311 | O9: 128.2751379
B10: 902 | C10: Retten i Aalborg | D10: 102.5121673 | E10: 103.397762 | F10: 101.9901858 | G10: 101.3353871 | H10: 96.16755511 | I10: 115.2954289 | J10: 112.0460957 | K10: 91.12817031 | L10: 101.1008923 | M10: 97.60209775 | N10: 98.20757424 | O10: 117.5203582
B11: 903 | C11: Retten i Randers | D11: 100.6808454 | E11: 96.15675216 | F11: 96.71375085 | G11: 88.90229259 | H11: 89.49312275 | I11: 96.90609275 | J11: 107.2491186 | K11: 82.68102064 | L11: 113.930985 | M11: 109.441224 | N11: 94.28336532 | O11: 103.1077407
B12: 904 | C12: Retten i Århus | D12: 94.60957409 | E12: 97.67775818 | F12: 87.72457913 | G12: 95.34090146 | H12: 89.88967705 | I12: 96.13071154 | J12: 87.46823612 | K12: 92.79870123 | L12: 117.3239127 | M12: 113.858813 | N12: 98.21925882 | O12: 97.41118699
B13: 905 | C13: Retten i Viborg | D13: 105.1767526 | E13: 100.8562344 | F13: 105.9483993 | G13: 102.5210499 | H13: 105.3201723 | I13: 117.0804719 | J13: 114.4676636 | K13: 90.25645846 | L13: 97.00951828 | M13: 90.49390621 | N13: 99.91426229 | O13: 105.5464192
B14: 906 | C14: Retten i Holstebro | D14: 95.42831396 | E14: 102.5444604 | F14: 90.3328142 | G14: 102.0902851 | H14: 98.52844655 | I14: 108.5077436 | J14: 82.55729768 | K14: 88.68090551 | L14: 121.0198945 | M14: 118.8635828 | N14: 87.78210802 | O14: 97.72204394
B15: 907 | C15: Retten i Herning | D15: 93.06874091 | E15: 98.43564203 | F15: 92.07923121 | G15: 100.0983257 | H15: 85.56813973 | I15: 99.08097617 | J15: 101.0213251 | K15: 94.17987366 | L15: 110.1523344 | M15: 103.8540579 | N15: 79.28170052 | O15: 95.52682856
B16: 908 | C16: Retten i Horsens | D16: 102.3735477 | E16: 100.5766153 | F16: 98.17844705 | G16: 98.54011364 | H16: 122.9233746 | I16: 123.428883 | J16: 83.56374738 | K16: 81.39480709 | L16: 109.7435576 | M16: 100.6227717 | N16: 111.7170367 | O16: 112.0075634
B17: 909 | C17: Retten i Kolding | D17: 100.3640258 | E17: 110.0190829 | F17: 93.60841564 | G17: 100.7452011 | H17: 94.0244991 | I17: 108.3429675 | J17: 95.4791267 | K17: 94.59084916 | L17: 116.2396906 | M17: 141.664106 | N17: 109.4885028 | O17: 126.2310292
B18: 910 | C18: Retten i Esbjerg | D18: 101.6756236 | E18: 103.6514836 | F18: 99.77266099 | G18: 99.76911147 | H18: 98.48791458 | I18: 108.819207 | J18: 95.61735683 | K18: 82.13257683 | L18: 102.6949309 | M18: 103.4987961 | N18: 114.0741242 | O18: 133.6952209
B19: 911 | C19: Retten i Sønderborg | D19: 106.7195355 | E19: 107.0772868 | F19: 108.6535801 | G19: 107.0748871 | H19: 116.4341751 | I19: 117.8893615 | J19: 96.39617678 | K19: 86.49028111 | L19: 104.5297117 | M19: 107.7322098 | N19: 104.9642067 | O19: 119.4441551
B20: 912 | C20: Retten i Odense | D20: 98.26088969 | E20: 105.27082 | F20: 96.89673564 | G20: 108.6789154 | H20: 92.55997286 | I20: 114.5539818 | J20: 100.3020442 | K20: 91.82913824 | L20: 98.63799152 | M20: 92.98873139 | N20: 99.09537925 | O20: 119.3588815
B21: 913 | C21: Retten i Svendborg | D21: 95.07301164 | E21: 103.6473742 | F21: 90.70173498 | G21: 97.69819038 | H21: 85.2590888 | I21: 89.46305829 | J21: 99.87626761 | K21: 105.8646751 | L21: 84.79906464 | M21: 95.97690454 | N21: 109.2947173 | O21: 126.7395188
B22: 914 | C22: Retten i Nykøbing F. | D22: 100.3748421 | E22: 92.45252938 | F22: 96.127789 | G22: 94.34931392 | H22: 87.71958673 | I22: 98.58745993 | J22: 108.7360092 | K22: 85.03947664 | L22: 98.68621762 | M22: 81.478391 | N22: 107.2632753 | O22: 101.29173
B23: 915 | C23: Retten i Næstved | D23: 102.468157 | E23: 97.9656872 | F23: 100.6834158 | G23: 101.2315358 | H23: 89.28653542 | I23: 93.15898156 | J23: 116.4156183 | K23: 108.0024258 | L23: 109.20532 | M23: 89.07159845 | N23: 91.69842548 | O23: 103.0664845
B24: 916 | C24: Retten i Holbæk | D24: 101.464693 | E24: 98.1335432 | F24: 104.792948 | G24: 104.1655952 | H24: 99.30331306 | I24: 101.8718253 | J24: 111.4427453 | K24: 104.6224372 | L24: 102.8618575 | M24: 85.32962956 | N24: 86.40112541 | O24: 97.26388694
B25: 917 | C25: Retten i Roskilde | D25: 101.3863901 | E25: 102.9507689 | F25: 107.3412495 | G25: 106.3381538 | H25: 101.7864098 | I25: 108.3545447 | J25: 114.4709441 | K25: 97.17684438 | L25: 90.37634845 | M25: 91.62436876 | N25: 94.32705231 | O25: 110.0649291
B26: 918 | C26: Retten i Hillerød | D26: 94.98763065 | E26: 104.5136836 | F26: 94.73462317 | G26: 99.70263095 | H26: 97.14154987 | I26: 102.3708812 | J26: 94.04330464 | K26: 94.73284501 | L26: 99.55780565 | M26: 111.5646458 | N26: 91.39793818 | O26: 124.7976982
B27: 919 | C27: Retten i Helsingør | D27: 96.2984844 | E27: 94.61025543 | F27: 95.01991513 | G27: 93.95633866 | H27: 103.7784015 | I27: 106.6365925 | J27: 88.92104213 | K27: 83.82856092 | L27: 85.4971527 | M27: 77.66233969 | N27: 116.4892095 | O27: 122.3378647
B28: 920 | C28: Retten i Lyngby | D28: 96.00507881 | E28: 97.5738025 | F28: 87.76372831 | G28: 92.83694338 | H28: 95.91579876 | I28: 132.6403043 | J28: 95.16347581 | K28: 82.48022517 | L28: 106.0813064 | M28: 103.4587015 | N28: 99.16596948 | O28: 100.1156173
B29: 921 | C29: Retten i Glostrup | D29: 98.94606249 | E29: 99.60205684 | F29: 95.48231434 | G29: 98.24991382 | H29: 90.99570593 | I29: 103.8790801 | J29: 97.51789332 | K29: 88.29483059 | L29: 104.1072525 | M29: 97.92615255 | N29: 130.308874 | O29: 137.6717932
B30: 922 | C30: Retten på Frederiksberg | D30: 101.8030505 | E30: 102.4240415 | F30: 104.0613886 | G30: 108.8940798 | H30: 105.6446429 | I30: 132.2542804 | J30: 102.8713863 | K30: 79.46936086 | L30: 95.5904811 | M30: 96.67597864 | N30: 102.6822328 | O30: 96.6815282
B31: 923 | C31: Københavns Byret | D31: 102.8690847 | E31: 100.7150795 | F31: 115.4804766 | G31: 113.8661254 | H31: 116.5841074 | I31: 115.2179819 | J31: 102.2889981 | K31: 95.501341 | L31: 86.85534767 | M31: 78.01583272 | N31: 82.36963391 | O31: 91.67660432
B32: 924 | C32: Retten på Bornholm | D32: 66.57325809 | E32: 61.45274762 | F32: 72.07293082 | G32: 64.18022476 | H32: 67.87072133 | I32: 59.9795023 | J32: 78.15536399 | K32: 64.45321722 | L32: 47.9043037 | M32: 47.25506685 | N32: 72.94130824 | O32: 67.26410238
B35: 1) Indeks 100 svarer til gennemsnittet ved byretterne i 2011.
B36: 2) "Retssager" svarer til den samlede produktivitet for "straffesager" og "civile sager".
B37: 3) Ved beregningen af den samlede produktivitet, samlet for retten, anvendes rettens samlede vægtede årsværksforbrug - dvs. også årsværksforbruget til generel ledelse og administration mv. Ved beregning af produktiviteten på de enkelte sagsområder er årsværkforbruget til generel ledelse og administration mv. nøgletalsfordelt, således at forskelle i andele i årsværksforbrug til generel ledelse og administration mv. ikke vanskeliggør en sammenligning af de enkelte retter.

Sheet Produkt.JUR
B2: PRODUKTIVITETSINDEKS JURISTER
B4: EID | C4: Ret | D4: Samlet | F4: Retssager | H4: Straffesager | J4: Civile sager | L4: Fogedsager | N4: Skiftesager
D5: 2011 | E5: 2012 | F5: 2011 | G5: 2012 | H5: 2011 | I5: 2012 | J5: 2011 | K5: 2012 | L5: 2011 | M5: 2012 | N5: 2011 | O5: 2012
C6: 5. BEDSTE RET | D6: 104.8914443 | E6: 103.8910409 | F6: 108.6257267 | G6: 104.1984153 | H6: 106.7864332 | I6: 117.225733 | J6: 112.1089213 | K6: 99.81912859 | L6: 120.5225284 | M6: 116.6375598 | N6: 132.3017408 | O6: 141.8397434
C7: SAMLET BYRETTERNE | D7: 100 | E7: 98.1271224 | F7: 100 | G7: 98.2705222 | H7: 100 | I7: 105.2843761 | J7: 100 | K7: 87.16248752 | L7: 100 | M7: 92.56263497 | N7: 100 | O7: 109.648728
B9: 901 | C9: Retten i Hjørring | D9: 115.612 | E9: 97.53770583 | F9: 108.6139748 | G9: 92.20595101 | H9: 112.7082141 | I9: 109.614046 | J9: 107.6367362 | K9: 77.76741113 | L9: 121.0352164 | M9: 116.6375598 | N9: 125.0882711 | O9: 118.2595339
B10: 902 | C10: Retten i Aalborg | D10: 102.255 | E10: 105.2750334 | F10: 99.13716526 | G10: 96.99017157 | H10: 93.07875361 | I10: 117.225733 | J10: 109.8353274 | K10: 85.05104729 | L10: 87.94026314 | M10: 110.4968224 | N10: 94.25476904 | O10: 106.2127259
B11: 903 | C11: Retten i Randers | D11: 98.707 | E11: 89.34304966 | F11: 101.3323704 | G11: 83.69098976 | H11: 94.87478719 | I11: 85.87147675 | J11: 110.8089807 | K11: 82.285865 | L11: 129.3148676 | M11: 114.7206489 | N11: 105.2657368 | O11: 105.5719786
B12: 904 | C12: Retten i Århus | D12: 90.395 | E12: 93.96766747 | F12: 90.08923613 | G12: 94.62349834 | H12: 90.07660334 | I12: 88.655931 | J12: 92.13127195 | K12: 100.3615775 | L12: 109.2746161 | M12: 100.6849169 | N12: 74.05532992 | O12: 72.66901141
B13: 905 | C13: Retten i Viborg | D13: 100.92 | E13: 96.11459489 | F13: 99.80573055 | G13: 94.57579489 | H13: 94.94468736 | I13: 105.4870328 | J13: 112.1204958 | K13: 85.83260698 | L13: 111.9335152 | M13: 101.0124006 | N13: 74.11596684 | O13: 94.71511172
B14: 906 | C14: Retten i Holstebro | D14: 93.691 | E14: 104.7558316 | F14: 99.08002078 | G14: 117.2688915 | H14: 105.6155 | I14: 128.1956949 | J14: 92.52763492 | K14: 99.81912859 | L14: 147.5132011 | M14: 193.1369362 | N14: 87.38353488 | O14: 113.1839687
B15: 907 | C15: Retten i Herning | D15: 87.813 | E15: 91.78927512 | F15: 88.13818599 | G15: 90.8917863 | H15: 78.0697097 | I15: 86.61261654 | J15: 101.4176084 | K15: 89.33504139 | L15: 95.85393086 | M15: 110.0068852 | N15: 66.67010532 | O15: 85.02978802
B16: 908 | C16: Retten i Horsens | D16: 96.867 | E16: 92.51026242 | F16: 93.45521507 | G16: 89.55443475 | H16: 106.7482254 | I16: 102.9382408 | J16: 84.90767661 | K16: 79.59270524 | L16: 120.5555839 | M16: 108.556051 | N16: 94.4734264 | O16: 87.903363
B17: 909 | C17: Retten i Kolding | D17: 100.602 | E17: 101.5939537 | F17: 92.52637458 | G17: 93.75653254 | H17: 91.56313763 | I17: 99.54453604 | J17: 95.79117919 | K17: 90.43689002 | L17: 105.1773933 | M17: 121.3326226 | N17: 135.9096218 | O17: 144.1121532
B18: 910 | C18: Retten i Esbjerg | D18: 99.581 | E18: 99.13883723 | F18: 91.70881316 | G18: 93.35012275 | H18: 86.37068552 | I18: 96.621572 | J18: 92.44004794 | K18: 81.67629737 | L18: 123.0389209 | M18: 119.6252709 | N18: 171.3199042 | O18: 168.5677561
B19: 911 | C19: Retten i Sønderborg | D19: 114.216 | E19: 107.6559285 | F19: 121.0289816 | G19: 106.5233558 | H19: 124.0931486 | I19: 114.3570654 | J19: 111.9044336 | K19: 88.02896831 | L19: 86.23455388 | M19: 96.12332471 | N19: 105.4834574 | O19: 151.8254488
B20: 912 | C20: Retten i Odense | D20: 96.1 | E20: 103.8910409 | F20: 90.36081708 | G20: 104.1984153 | H20: 86.24209384 | I20: 108.9560801 | J20: 93.27763037 | K20: 88.62273641 | L20: 93.47351546 | M20: 81.73023829 | N20: 99.59947278 | O20: 123.1177965
B21: 913 | C21: Retten i Svendborg | D21: 100.173 | E21: 104.7766743 | F21: 101.0524438 | G21: 103.1355613 | H21: 94.05812042 | I21: 91.97578835 | J21: 112.2745875 | K21: 114.6901595 | L21: 87.13525206 | M21: 92.09211169 | N21: 132.3492202 | O21: 140.8877726
B22: 914 | C22: Retten i Nykøbing F. | D22: 105.558 | E22: 95.38638008 | F22: 99.1387912 | G22: 92.42210928 | H22: 89.5850582 | I22: 97.75068492 | J22: 113.1429918 | K22: 82.13113131 | L22: 104.0978432 | M22: 81.99255768 | N22: 122.5677289 | O22: 113.744089
B23: 915 | C23: Retten i Næstved | D23: 96.704 | E23: 91.72064455 | F23: 94.28225098 | G23: 91.69212765 | H23: 79.87555069 | I23: 79.88512197 | J23: 114.0590249 | K23: 104.2931221 | L23: 112.2304176 | M23: 77.40992602 | N23: 73.64358765 | O23: 103.8110138
B24: 916 | C24: Retten i Holbæk | D24: 102.393 | E24: 100.1226093 | F24: 111.0609765 | G24: 109.1312836 | H24: 106.6580128 | I24: 105.1063918 | J24: 115.8414084 | K24: 111.2012568 | L24: 94.34925906 | M24: 79.1905012 | N24: 74.06411059 | O24: 107.3432856
B25: 917 | C25: Retten i Roskilde | D25: 104.878 | E25: 101.0655399 | F25: 115.1319855 | G25: 101.5146769 | H25: 111.7280659 | I25: 102.3350531 | J25: 119.4902918 | K25: 93.43168141 | L25: 89.68146879 | M25: 109.397107 | N25: 92.63432333 | O25: 104.7029891
B26: 918 | C26: Retten i Hillerød | D26: 95.389 | E26: 102.2756418 | F26: 93.54863602 | G26: 98.76176035 | H26: 102.3191355 | I26: 113.7854892 | J26: 88.52449134 | K26: 85.94595762 | L26: 115.0639953 | M26: 117.294931 | N26: 101.1619188 | O26: 131.8699536
B27: 919 | C27: Retten i Helsingør | D27: 89.128 | E27: 88.30871725 | F27: 89.83314618 | G27: 85.49296586 | H27: 101.3741239 | I27: 105.4207854 | J27: 81.91665005 | K27: 72.41147864 | L27: 76.13792756 | M27: 69.4449671 | N27: 134.2023323 | O27: 141.8397434
B28: 920 | C28: Retten i Lyngby | D28: 94.202 | E28: 91.4498475 | F28: 83.69686906 | G28: 87.37912603 | H28: 93.67812164 | I28: 128.4255177 | J28: 91.08128895 | K28: 78.5004904 | L28: 106.4421169 | M28: 93.66097112 | N28: 102.1295522 | O28: 86.81849766
B29: 921 | C29: Retten i Glostrup | D29: 101.861 | E29: 99.33818845 | F29: 97.10451367 | G29: 96.68511023 | H29: 93.34057544 | I29: 99.090089 | J29: 97.56578146 | K29: 89.84497405 | L29: 109.5649869 | M29: 96.73228887 | N29: 151.1523074 | O29: 171.9992214
B30: 922 | C30: Retten på Frederiksberg | D30: 102.938 | E30: 97.73990342 | F30: 100.2568011 | G30: 98.85767919 | H30: 101.0556404 | I30: 119.7920993 | J30: 99.98217668 | K30: 72.13840686 | L30: 104.580482 | M30: 85.08209106 | N30: 108.3499512 | O30: 84.95703991
B31: 923 | C31: Københavns Byret | D31: 105.614 | E31: 101.5332574 | F31: 116.8703206 | G31: 112.6932364 | H31: 122.7957889 | I31: 121.103128 | J31: 98.20255773 | K31: 87.2777223 | L31: 81.44232841 | M31: 67.50176113 | N31: 98.17585444 | O31: 96.59360045
B32: 924 | C32: Retten på Bornholm | D32: 67.04 | E32: 61.85688567 | F32: 83.07218494 | G32: 74.05520017 | H32: 71.46351777 | I32: 68.29066385 | J32: 98.93351653 | K32: 74.19285653 | L32: 57.04327067 | M32: 52.19451371 | N32: 95.12792613 | O32: 93.80010675
B35: 1) Indeks 100 svarer til gennemsnittet ved byretterne i 2011.
B36: 2) "Retssager" svarer til den samlede produktivitet for "straffesager" og "civile sager".
B37: 3) Ved beregningen af den samlede produktivitet for juristerne anvendes det samlede årsværksforbrug for gruppen - dvs. også årsværksforbruget til generel ledelse og administration mv. Ved beregning af produktiviteten på de enkelte sagsområder er kun medtaget det direkte årsværksforbrug - dvs. der er ikke foretaget en nøgletalsfordeling af årsværkforbruget til generel ledelse og administration mv.

Sheet Produkt.KON
B2: PRODUKTIVITETSINDEKS KONTORPERSONALE
B4: EID | C4: Ret | D4: Samlet | F4: Retssager | H4: Straffesager | J4: Civile sager | L4: Fogedsager | N4: Skiftesager
D5: 2011 | E5: 2012 | F5: 2011 | G5: 2012 | H5: 2011 | I5: 2012 | J5: 2011 | K5: 2012 | L5: 2011 | M5: 2012 | N5: 2011 | O5: 2012
C6: 5. BEDSTE RET | D6: 104.9691041 | E6: 106.9287878 | F6: 107.6493812 | G6: 115.7200126 | H6: 111.3082621 | I6: 133.3143226 | J6: 114.2242699 | K6: 107.7657468 | L6: 117.7217238 | M6: 108.2578856 | N6: 115.4314468 | O6: 119.9795282
C7: SAMLET BYRETTERNE | D7: 100 | E7: 103.0314618 | F7: 100 | G7: 106.2405572 | H7: 100 | I7: 113.2810853 | J7: 100 | K7: 93.52331501 | L7: 100 | M7: 94.95390715 | N7: 100 | O7: 108.3585943
B9: 901 | C9: Retten i Hjørring | D9: 103.368 | E9: 106.2985107 | F9: 92.47027438 | G9: 98.45974444 | H9: 94.58758799 | I9: 107.1683669 | J9: 92.0001871 | K9: 86.98859319 | L9: 95.04286338 | M9: 83.02592089 | N9: 115.3523821 | O9: 132.4579741
B10: 902 | C10: Retten i Aalborg | D10: 99.67 | E10: 99.54491084 | F10: 97.26101845 | G10: 98.62337033 | H10: 99.6995322 | I10: 112.7540703 | J10: 97.65439104 | K10: 85.85856551 | L10: 107.2817342 | M10: 95.57611946 | N10: 92.0556625 | O10: 112.756547
B11: 903 | C11: Retten i Randers | D11: 108.203 | E11: 106.4168365 | F11: 100.0221399 | G11: 97.94106502 | H11: 90.55508286 | I11: 118.4550926 | J11: 114.2338851 | K11: 82.81951501 | L11: 118.3896123 | M11: 107.4343466 | N11: 95.69436541 | O11: 103.9456229
B12: 904 | C12: Retten i Århus | D12: 99.503 | E12: 101.7033542 | F12: 80.61160291 | G12: 88.68117112 | H12: 87.1916681 | I12: 103.5780148 | J12: 75.85814517 | K12: 72.64857261 | L12: 121.575813 | M12: 112.2353658 | N12: 115.7620076 | O12: 112.9973763
B13: 905 | C13: Retten i Viborg | D13: 109.397 | E13: 105.4691255 | F13: 114.7927095 | G13: 115.7200126 | H13: 123.8304914 | I13: 139.0144827 | J13: 114.8543806 | K13: 95.57346892 | L13: 90.36254532 | M13: 85.1369121 | N13: 122.0303986 | O13: 110.7961317
B14: 906 | C14: Retten i Holstebro | D14: 103.093 | E14: 105.9156364 | F14: 88.82252458 | G14: 97.4658162 | H14: 100.5117524 | I14: 99.65880718 | J14: 78.18488657 | K14: 87.99161013 | L14: 119.4793001 | M14: 108.056461 | N14: 97.96653234 | O14: 101.485954
B15: 907 | C15: Retten i Herning | D15: 99.788 | E15: 109.6591234 | F15: 101.1700918 | G15: 125.4358065 | H15: 102.5579753 | I15: 133.3143226 | J15: 101.6574665 | K15: 108.4575671 | L15: 117.6774009 | M15: 100.3561792 | N15: 90.37087893 | O15: 105.2372542
B16: 908 | C16: Retten i Horsens | D16: 109.279 | E16: 111.0834389 | F16: 108.090956 | G16: 119.2940094 | H16: 166.5892384 | I16: 181.7015249 | J16: 80.654207 | K16: 84.66114838 | L16: 103.5972706 | M16: 95.42468303 | N16: 125.1208087 | O16: 132.6760661
B17: 909 | C17: Retten i Kolding | D17: 97.224 | E17: 116.958728 | F17: 85.70820505 | G17: 103.7867448 | H17: 88.22950458 | I17: 112.9704917 | J17: 85.04015223 | K17: 93.50441784 | L17: 115.8802089 | M17: 142.9060255 | N17: 93.49850155 | O17: 112.3877535
B18: 910 | C18: Retten i Esbjerg | D18: 101.221 | E18: 104.9467279 | F18: 104.1847423 | G18: 99.55334692 | H18: 112.3720167 | I18: 119.3388321 | J18: 90.81542747 | K18: 73.42912922 | L18: 88.74512793 | M18: 89.83070417 | N18: 91.51672981 | O18: 113.1126365
B19: 911 | C19: Retten i Sønderborg | D19: 105.055 | E19: 106.6503244 | F19: 94.37528031 | G19: 103.7582853 | H19: 108.1351404 | I19: 119.1640846 | J19: 78.65436007 | K19: 80.5293832 | L19: 122.6202695 | M19: 109.8494452 | N19: 107.9514345 | O19: 105.3119642
B20: 912 | C20: Retten i Odense | D20: 99.428 | E20: 106.4838156 | F20: 94.61479421 | G20: 102.6812447 | H20: 90.43676031 | I20: 109.637945 | J20: 98.60488729 | K20: 85.8305114 | L20: 91.84253853 | M20: 90.9854934 | N20: 91.19099619 | O20: 109.8044058
B21: 913 | C21: Retten i Svendborg | D21: 93.463 | E21: 106.3248986 | F21: 84.69994596 | G21: 92.77457876 | H21: 81.16023669 | I21: 88.67758776 | J21: 91.42658932 | K21: 96.16598339 | L21: 87.47389325 | M21: 98.48169494 | N21: 105.6714611 | O21: 122.6486646
B22: 914 | C22: Retten i Nykøbing F. | D22: 97.425 | E22: 90.34853719 | F22: 94.94269032 | G22: 96.13941222 | H22: 88.31595924 | I22: 98.29272668 | J22: 105.2895516 | K22: 89.26927062 | L22: 96.71725206 | M22: 78.85221233 | N22: 100.9576501 | O22: 92.69356818
B23: 915 | C23: Retten i Næstved | D23: 109.448 | E23: 105.2696408 | F23: 113.2188526 | G23: 122.5070583 | H23: 109.3497333 | I23: 127.019925 | J23: 120.3701566 | K23: 114.2239497 | L23: 105.3370238 | M23: 93.77171298 | N23: 107.4326625 | O23: 101.7022713
B24: 916 | C24: Retten i Holbæk | D24: 99.595 | E24: 94.55354075 | F24: 94.67183723 | G24: 96.09285841 | H24: 88.42874765 | I24: 97.44849066 | J24: 103.3201115 | K24: 92.64852835 | L24: 105.8633731 | M24: 88.14710159 | N24: 95.96112098 | O24: 91.90670071
B25: 917 | C25: Retten i Roskilde | D25: 96.719 | E25: 103.2930941 | F25: 99.15536943 | G25: 110.8083715 | H25: 90.82100013 | I25: 114.6652263 | J25: 110.9616502 | K25: 100.2992376 | L25: 90.75764496 | M25: 81.59909659 | N25: 97.44312815 | O25: 111.31702
B26: 918 | C26: Retten i Hillerød | D26: 97.081 | E26: 111.9204914 | F26: 107.6411955 | G26: 115.6612317 | H26: 102.4114598 | I26: 101.7465469 | J26: 115.0157417 | K26: 134.8782309 | L26: 100.1835715 | M26: 114.3598995 | N26: 87.36591173 | O26: 123.1670785
B27: 919 | C27: Retten i Helsingør | D27: 103.944 | E27: 100.9814948 | F27: 103.0396867 | G27: 104.2130454 | H27: 105.388222 | I27: 101.0733068 | J27: 102.3998115 | K27: 107.7657468 | L27: 88.24348798 | M27: 77.88510949 | N27: 106.9398118 | O27: 108.2733078
B28: 920 | C28: Retten i Lyngby | D28: 97.05 | E28: 105.1754956 | F28: 98.70539049 | G28: 107.1772043 | H28: 98.99460403 | I28: 136.9573539 | J28: 109.2228416 | K28: 96.59369004 | L28: 104.4110778 | M28: 108.2578856 | N28: 102.9263118 | O28: 115.5266984
B29: 921 | C29: Retten i Glostrup | D29: 98.112 | E29: 100.5687187 | F29: 94.90359704 | G29: 104.0564401 | H29: 88.11949098 | I29: 114.1484293 | J29: 101.8090741 | K29: 89.53429882 | L29: 104.5476314 | M29: 99.46131728 | N29: 122.7007596 | O29: 119.9795282
B30: 922 | C30: Retten på Frederiksberg | D30: 100.387 | E30: 106.9287878 | F30: 105.7611411 | G30: 114.115072 | H30: 106.5476826 | I30: 136.7583363 | J30: 105.0179832 | K30: 84.62600024 | L30: 92.58883496 | M30: 99.86001431 | N30: 95.31408792 | O30: 96.62000927
B31: 923 | C31: Københavns Byret | D31: 96.138 | E31: 96.38904872 | F31: 119.4185763 | G31: 118.4110828 | H31: 111.3317853 | I31: 107.2095984 | J31: 121.9512478 | K31: 124.9776841 | L31: 90.08199101 | M31: 85.54476305 | N31: 74.5405333 | O31: 89.60713849
B32: 924 | C32: Retten på Bornholm | D32: 69.451 | E32: 62.76058041 | F32: 97.97821231 | G32: 88.40121445 | H32: 112.2338761 | I32: 84.56032991 | J32: 89.01968874 | K32: 88.66835905 | L32: 57.96316726 | M32: 60.0287218 | N32: 85.76447872 | O32: 75.79259263
B35: 1) Indeks 100 svarer til gennemsnittet ved byretterne i 2011.
B36: 2) "Retssager" svarer til den samlede produktivitet for "straffesager" og "civile sager".
B37: 3) Ved beregningen af den samlede produktivitet for juristerne anvendes det samlede årsværksforbrug for gruppen - dvs. også årsværksforbruget til generel ledelse og administration mv. Ved beregning af produktiviteten på de enkelte sagsområder er kun medtaget det direkte årsværksforbrug - dvs. der er ikke foretaget en nøgletalsfordeling af årsværkforbruget til generel ledelse og administration mv.

Sheet Generel ledelse_Adm.
B3: ÅRSVÆRKSFORBRUG ANVENDT TIL GENEREL LEDELSE OG ADMINISTRATION MV.
B5: EID | C5: Ret | E5: Årsværk til generel ledelse og administration | H5: %-del til generel ledelse og administration
E6: 2010 | F6: 2011 | G6: 2012 | H6: 2010 | I6: 2011 | J6: 2012
C8: SAMLET BYRETTERNE | D8: Jurister | E8: 45.47653176 | F8: 40.26765613 | G8: 35.51714886 | H8: 0.1007102714 | I8: 0.0879263445 | J8: 0.07703520457
D9: Kontor | E9: 186.5622028 | F9: 174.4931743 | G9: 164.7444036 | H9: 0.1801328228 | I9: 0.1798581356 | J9: 0.1815564871
D10: Elev | E10: 15.51275017 | F10: 15.56682294 | G10: 13.21277838 | H10: 0.1582438291 | I10: 0.1601928278 | J10: 0.1554048873
D11: Fleks | E11: 30.78959122 | F11: 28.34235436 | G11: 23.84581215 | H11: 0.4499643155 | I11: 0.4305938459 | J11: 0.4189774443
D12: Øvrige | E12: 91.24953143 | F12: 85.18324984 | G12: 80.13552809 | H12: 0.8654574427 | I12: 0.8479813065 | J12: 0.8412996852
C13: Samlet byretterne | D13: Samlet | E13: 369.5906074 | F13: 343.8532575 | G13: 317.4556711 | H13: 0.2100969757 | I13: 0.2032718961 | J13: 0.1977129613
D14: - ekskl. fleks og elever | E14: =E13-E11-E10 -> 323.288266 | F14: 299.9440802 | G14: =G13-G11-G10 -> 280.3970806 | H14: 0.2029831162 | I14: 0.1962219925 | J14: 0.1915668973
B16: 901 | C16: Retten i Hjørring | D16: Jurister | E16: 2.030382518 | F16: 1.059359706 | G16: 1.379726192 | H16: 0.1482830898 | I16: 0.07936449842 | J16: 0.0978198292
B17: 901 | C17: Retten i Hjørring | D17: Kontor | E17: 5.707493588 | F17: 4.709397216 | G17: 4.065890905 | H17: 0.1605353826 | I17: 0.1424079647 | J17: 0.1423169337
B18: 901 | C18: Retten i Hjørring | D18: Elev | E18: 0.696208074 | F18: 1.087924919 | G18: 0.03561366761 | H18: 0.177058021 | I18: 0.2555992356 | J18: 0.009505850157
B19: 901 | C19: Retten i Hjørring | D19: Fleks | E19: 0.215673232 | F19: 0.3078901584 | G19: 0.2620350515 | H19: 0.07232599766 | I19: 0.05237518749 | J19: 0.05640026163
B20: 901 | C20: Retten i Hjørring | D20: Øvrige | E20: 2.996792485 | F20: 2.894157176 | G20: 2.946596046 | H20: 0.8961539222 | I20: 0.8925559131 | J20: 0.9677311022
B21: 901 | C21: Retten i Hjørring | D21: Samlet | E21: 11.6465499 | F21: 10.05872917 | G21: 8.689861863 | H21: 0.1957285249 | I21: 0.1682195073 | J21: 0.1605921317
D22: - ekskl. fleks og elever | E22: 10.73466859 | F22: 8.662914098 | G22: =G21-G19-G18 -> 8.392213144 | H22: 0.2041217434 | I22: 0.1744433103 | J22: 0.1835611745
B23: 902 | C23: Retten i Aalborg | D23: Jurister | E23: 1.704260994 | F23: 1.269618719 | G23: 0.767146282 | H23: 0.07525434163 | I23: 0.05722297428 | J23: 0.03725685828
B24: 902 | C24: Retten i Aalborg | D24: Kontor | E24: 9.482692252 | F24: 8.50462573 | G24: 8.513079363 | H24: 0.1762962321 | I24: 0.1744824942 | J24: 0.1887216607
B25: 902 | C25: Retten i Aalborg | D25: Elev | E25: 0.1807359348 | F25: 0.1956404732 | G25: 0.288898093 | H25: 0.04100933583 | I25: 0.05615623855 | J25: 0.07447977071
B26: 902 | C26: Retten i Aalborg | D26: Fleks | E26: 0.9838443741 | F26: 0.9444791846 | G26: 0.6209882878 | H26: 0.4238936195 | I26: 0.3649991825 | J26: 0.3712068862
B27: 902 | C27: Retten i Aalborg | D27: Øvrige | E27: 1.475458585 | F27: 1.257693838 | G27: 0.9726949087 | H27: 0.434593681 | I27: 0.3584930046 | J27: 0.2568001871
B28: 902 | C28: Retten i Aalborg | D28: Samlet | E28: 13.82699214 | F28: 12.17205795 | G28: 11.16280693 | H28: 0.1597420112 | I28: 0.1511888232 | J28: 0.1487591983
D29: - ekskl. fleks og elever | E29: 12.66241183 | F29: 11.03193829 | G29: =G28-G26-G25 -> 10.25292055 | H29: 0.1586169909 | I29: 0.1482040408 | J29: 0.1475502136
B30: 903 | C30: Retten i Randers | D30: Jurister | E30: 2.02186942 | F30: 2.457701273 | G30: 1.707592867 | H30: 0.1471092419 | I30: 0.1571335857 | J30: 0.1024216295
B31: 903 | C31: Retten i Randers | D31: Kontor | E31: 6.019349083 | F31: 4.634087678 | G31: 4.583380578 | H31: 0.1791739569 | I31: 0.1466390633 | J31: 0.1467866412
B32: 903 | C32: Retten i Randers | D32: Elev | E32: 0.5308204012 | F32: 0.899566708 | G32: 0.83066264 | H32: 0.1359895888 | I32: 0.226128032 | J32: 0.2345967843
B33: 903 | C33: Retten i Randers | D33: Fleks | E33: 2.27905 | F33: 2.01327 | G33: 2.00006 | H33: 1 | I33: 1 | J33: 1
B34: 903 | C34: Retten i Randers | D34: Øvrige | E34: 4.414943915 | F34: 4.602010227 | G34: 3.608870894 | H34: 0.9052117311 | I34: 0.9325437653 | J34: 0.8799205371
B35: 903 | C35: Retten i Randers | D35: Samlet | E35: 15.26603282 | F35: 14.60663589 | G35: 12.73056698 | H35: 0.2614105354 | I35: 0.2511062719 | J35: 0.2212503298
D36: - ekskl. fleks og elever | E36: 12.45616242 | F36: 11.69379918 | G36: =G35-G33-G32 -> 9.899844338 | H36: 0.23854954 | I36: 0.2241147121 | J36: 0.1903877363
B37: 904 | C37: Retten i Århus | D37: Jurister | E37: 2.091587024 | F37: 2.283327639 | G37: 1.523101555 | H37: 0.08137809119 | I37: 0.08594031634 | J37: 0.05550501844
B38: 904 | C38: Retten i Århus | D38: Kontor | E38: 6.082888854 | F38: 8.016149736 | G38: 7.93474981 | H38: 0.1124972186 | I38: 0.1583729486 | J38: 0.1580157182
B39: 904 | C39: Retten i Århus | D39: Elev | E39: 0.7522483383 | F39: 0.7127019773 | G39: 0.6237708503 | H39: 0.188471539 | I39: 0.169832474 | J39: 0.2079173792
B40: 904 | C40: Retten i Århus | D40: Fleks | E40: 0.730927294 | F40: 0.831959407 | G40: 1.113773234 | H40: 0.2436375586 | I40: 0.277311483 | J40: 0.3271473738
B41: 904 | C41: Retten i Århus | D41: Øvrige | E41: 4.313237968 | F41: 4.132642606 | G41: 4.694243943 | H41: 0.6457378069 | I41: 0.7352082984 | J41: 0.8381889957
B42: 904 | C42: Retten i Århus | D42: Samlet | E42: 13.97088948 | F42: 15.97678136 | G42: 15.88963939 | H42: 0.1495100724 | I42: 0.1775157495 | J42: 0.1772195088
D43: - ekskl. fleks og elever | E43: 12.48771385 | F43: 14.43211998 | G43: =G42-G40-G39 -> 14.15209531 | H43: 0.1444449516 | I43: 0.1742894729 | J43: 0.1699824999
B44: 905 | C44: Retten i Viborg | D44: Jurister | E44: 1.521874722 | F44: 1.242217873 | G44: 1.290502498 | H44: 0.09476399658 | I44: 0.08188593831 | J44: 0.08476201314
B45: 905 | C45: Retten i Viborg | D45: Kontor | E45: 6.790086112 | F45: 5.279208039 | G45: 5.186196788 | H45: 0.1954839494 | I45: 0.1749100317 | J45: 0.1718202545
B46: 905 | C46: Retten i Viborg | D46: Elev | E46: 0.3797980117 | F46: 0.5572972906 | G46: 0.3571489567 | H46: 0.09799999787 | I46: 0.1313534659 | J46: 0.08678395596
B47: 905 | C47: Retten i Viborg | D47: Fleks | E47: 0.3913845621 | F47: 0.5884963509 | G47: 0.6658233457 | H47: 0.2232592123 | I47: 0.2344971334 | J47: 0.3329016858
B48: 905 | C48: Retten i Viborg | D48: Øvrige | E48: 3.079800969 | F48: 2.769032704 | G48: 2.62721473 | H48: 0.8609024319 | I48: 0.8956256544 | J48: 0.8707575105
B49: 905 | C49: Retten i Viborg | D49: Samlet | E49: 12.16294438 | F49: 10.43625226 | G49: 10.12688632 | H49: 0.2027146247 | I49: 0.189074221 | J49: 0.18567318
D50: - ekskl. fleks og elever | E50: 11.3917618 | F50: 9.290458616 | G50: =G49-G47-G46 -> 9.103914016 | H50: 0.209516034 | I50: 0.1917762916 | J50: 0.1879963296
B51: 906 | C51: Retten i Holstebro | D51: Jurister | E51: 1.299837119 | F51: 1.895121643 | G51: 2.039425904 | H51: 0.1174728531 | I51: 0.1681563126 | J51: 0.1996444452
B52: 906 | C52: Retten i Holstebro | D52: Kontor | E52: 3.357476904 | F52: 3.361257142 | G52: 2.962390025 | H52: 0.1349576696 | I52: 0.1457866561 | J52: 0.1370397675
B53: 906 | C53: Retten i Holstebro | D53: Elev | E53: 0.1772812127 | F53: 0.3681536819 | G53: 0.4406790173 | H53: 0.06725540518 | I53: 0.1273531231 | J53: 0.2058180184
B54: 906 | C54: Retten i Holstebro | D54: Fleks | E54: 4.618006419 | F54: 4.485837861 | G54: 4.14321595 | H54: 0.7692497775 | I54: 0.8155846406 | J54: 0.7252703999
B55: 906 | C55: Retten i Holstebro | D55: Øvrige | E55: 3.25422113 | F55: 3.20598204 | G55: 3.17706819 | H55: 0.8988543094 | I55: 0.860881251 | J55: 0.9414483799
B56: 906 | C56: Retten i Holstebro | D56: Samlet | E56: 12.70682278 | F56: 13.31635237 | G56: 12.76277909 | H56: 0.2636127543 | I56: 0.2867368008 | J56: 0.2963902853
D57: - ekskl. fleks og elever | E57: 7.911535153 | F57: 8.462360825 | G57: =G56-G54-G53 -> 8.178884119 | H57: 0.1999710124 | I57: 0.2224006638 | J57: 0.2323087287
B58: 907 | C58: Retten i Herning | D58: Jurister | E58: 1.06672063 | F58: 0.8945324398 | G58: 0.8472877229 | H58: 0.09516448762 | I58: 0.07549606074 | J58: 0.07176542478
B59: 907 | C59: Retten i Herning | D59: Kontor | E59: 5.683291555 | F59: 4.600633586 | G59: 4.121811994 | H59: 0.2117227024 | I59: 0.1951814465 | J59: 0.1922043182
B60: 907 | C60: Retten i Herning | D60: Elev | E60: 0.9792577501 | F60: 0.730855666 | G60: 0.05426524662 | H60: 0.250593756 | I60: 0.2077256417 | J60: 0.02087646782
B61: 907 | C61: Retten i Herning | D61: Fleks | E61: 0 | F61: 0.1858774786 | G61: 0 | H61: 0 | I61: 0.2058603419 | J61: 0
B62: 907 | C62: Retten i Herning | D62: Øvrige | E62: 3.19179 | F62: 2.68506 | G62: 3.06506 | H62: 1 | I62: 1 | J62: 1
B63: 907 | C63: Retten i Herning | D63: Samlet | E63: 10.92105993 | F63: 9.09695917 | G63: 8.088424964 | H63: 0.2349586202 | I63: 0.2139144778 | J63: 0.207844723
D64: - ekskl. fleks og elever | E64: 9.941802185 | F64: 8.180226025 | G64: =G63-G61-G60 -> 8.034159717 | H64: 0.241047805 | I64: 0.2146767675 | J64: 0.2212270095
B65: 908 | C65: Retten i Horsens | D65: Jurister | E65: 0.8845794819 | F65: 1.133333287 | G65: 0.9644593654 | H65: 0.06363405054 | I65: 0.07876370309 | J65: 0.066270791
B66: 908 | C66: Retten i Horsens | D66: Kontor | E66: 4.984127662 | F66: 4.86193959 | G66: 5.013790169 | H66: 0.1797887054 | I66: 0.184030329 | J66: 0.2018327604
B67: 908 | C67: Retten i Horsens | D67: Elev | E67: 0.6647997324 | F67: 0.5717603323 | G67: 0.6740886665 | H67: 0.1584667554 | I67: 0.1193143503 | J67: 0.1652048532
B68: 908 | C68: Retten i Horsens | D68: Fleks | E68: 2.253995602 | F68: 2.025641718 | G68: 1.875121006 | H68: 0.5439572368 | I68: 0.4293296563 | J68: 0.5179062487
B69: 908 | C69: Retten i Horsens | D69: Øvrige | E69: 3.08797 | F69: 3.068674806 | G69: 2.920600443 | H69: 1 | I69: 0.9924338084 | J69: 0.9760092913
B70: 908 | C70: Retten i Horsens | D70: Samlet | E70: 11.87547248 | F70: 11.66134973 | G70: 11.44805965 | H70: 0.2238541241 | I70: 0.2183342823 | J70: 0.22855934
D71: - ekskl. fleks og elever | E71: 8.956677144 | F71: 9.063947682 | G71: =G70-G68-G67 -> 8.898849977 | H71: 0.2003231217 | I71: 0.2064665045 | J71: 0.209942857
B72: 909 | C72: Retten i Kolding | D72: Jurister | E72: 1.415320897 | F72: 1.384406124 | G72: 1.547235198 | H72: 0.07139154185 | I72: 0.06736926821 | J72: 0.07415933725
B73: 909 | C73: Retten i Kolding | D73: Kontor | E73: 8.03371899 | F73: 7.034552531 | G73: 5.817910645 | H73: 0.1635889126 | I73: 0.1560960444 | J73: 0.1569628343
B74: 909 | C74: Retten i Kolding | D74: Elev | E74: 0.6218857731 | F74: 0.6075599823 | G74: 0.7633703691 | H74: 0.1453350502 | I74: 0.1280645471 | J74: 0.2504085187
B75: 909 | C75: Retten i Kolding | D75: Fleks | E75: 2.267910598 | F75: 2.000111815 | G75: 0.9563020175 | H75: 0.699355075 | I75: 0.6660467722 | J75: 0.3469589069
B76: 909 | C76: Retten i Kolding | D76: Øvrige | E76: 3.61937 | F76: 3.129367764 | G76: 3.13261 | H76: 1 | I76: 0.9410754978 | J76: 1
B77: 909 | C77: Retten i Kolding | D77: Samlet | E77: 15.95820626 | F77: 14.15599822 | G77: 12.21742823 | H77: 0.1992903201 | I77: 0.1845932938 | J77: 0.1827136297
D78: - ekskl. fleks og elever | E78: 13.06840989 | F78: 11.54832642 | G78: =G77-G75-G74 -> 10.49775584 | H78: 0.1801214346 | I78: 0.1675118138 | J78: 0.1719201832
B79: 910 | C79: Retten i Esbjerg | D79: Jurister | E79: 1.464373155 | F79: 1.160367795 | G79: 1.26653252 | H79: 0.09494797705 | I79: 0.0766212672 | J79: 0.08302588779
B80: 910 | C80: Retten i Esbjerg | D80: Kontor | E80: 4.939520592 | F80: 4.493902269 | G80: 4.137269329 | H80: 0.1380596982 | I80: 0.1402960351 | J80: 0.1361406468
B81: 910 | C81: Retten i Esbjerg | D81: Elev | E81: 0.3849404935 | F81: 0.4456365248 | G81: 0.1889431023 | H81: 0.08787773141 | I81: 0.1190828287 | J81: 0.07678241774
B82: 910 | C82: Retten i Esbjerg | D82: Fleks | E82: 2.013571611 | F82: 1.998862103 | G82: 2.058258981 | H82: 0.6229936701 | I82: 0.710355452 | J82: 0.5547045535
B83: 910 | C83: Retten i Esbjerg | D83: Øvrige | E83: 3.27064 | F83: 2.494211423 | G83: 2.2123 | H83: 1 | I83: 0.9976606252 | J83: 1
B84: 910 | C84: Retten i Esbjerg | D84: Samlet | E84: 12.07304585 | F84: 10.59298011 | G84: 9.863303932 | H84: 0.1944624848 | I84: 0.1883800621 | J84: 0.1825592852
D85: - ekskl. fleks og elever | E85: 9.674533747 | F85: 8.148481487 | G85: =G84-G82-G81 -> 7.616101849 | H85: 0.1776066384 | I85: 0.1640331221 | J85: 0.1591440989
B86: 911 | C86: Retten i Sønderborg | D86: Jurister | E86: 1.379558633 | F86: 1.169355292 | G86: 1.239427671 | H86: 0.09114420147 | I86: 0.07587796324 | J86: 0.07264040703
B87: 911 | C87: Retten i Sønderborg | D87: Kontor | E87: 6.109533338 | F87: 6.329214842 | G87: 6.034045871 | H87: 0.1617134288 | I87: 0.1715001989 | J87: 0.166509675
B88: 911 | C88: Retten i Sønderborg | D88: Elev | E88: 0.9496279023 | F88: 0.5262988888 | G88: 0.2027072263 | H88: 0.2378708237 | I88: 0.131064227 | J88: 0.05099450232
B89: 911 | C89: Retten i Sønderborg | D89: Fleks | E89: 1 | F89: 1.00003 | G89: 0.99122 | H89: 1 | I89: 1 | J89: 1
B90: 911 | C90: Retten i Sønderborg | D90: Øvrige | E90: 4.014350331 | F90: 4.869035147 | G90: 3.770068393 | H90: 0.8567676026 | I90: 0.9267221314 | J90: 0.992016228
B91: 911 | C91: Retten i Sønderborg | D91: Samlet | E91: 13.45307021 | F91: 13.89393417 | G91: 12.23746916 | H91: 0.2149270422 | I91: 0.2219987197 | J91: 0.1971634677
D92: - ekskl. fleks og elever | E92: 11.5034423 | F92: 12.36760528 | G92: =G91-G89-G88 -> 11.04354194 | H92: 0.1997074779 | I92: 0.2148271094 | J92: 0.1934025343
B93: 912 | C93: Retten i Odense | D93: Jurister | E93: 1.474916306 | F93: 1.451886822 | G93: 1.288867731 | H93: 0.05850137956 | I93: 0.05984334091 | J93: 0.05727949712
B94: 912 | C94: Retten i Odense | D94: Kontor | E94: 6.833176288 | F94: 6.292629396 | G94: 5.975918294 | H94: 0.1235395489 | I94: 0.1203743051 | J94: 0.1265562072
B95: 912 | C95: Retten i Odense | D95: Elev | E95: 0.1419976585 | F95: 0.06539374453 | G95: 0.1306439309 | H95: 0.0342230654 | I95: 0.01677468077 | J95: 0.04972876517
B96: 912 | C96: Retten i Odense | D96: Fleks | E96: 3.507483403 | F96: 2.676975449 | G96: 2.115961291 | H96: 0.5930914291 | I96: 0.6646973325 | J96: 0.7990066198
B97: 912 | C97: Retten i Odense | D97: Øvrige | E97: 5.04672304 | F97: 4.65475046 | G97: 4.76643333 | H97: 0.9757325723 | I97: 0.9851594774 | J97: 0.9989527939
B98: 912 | C98: Retten i Odense | D98: Samlet | E98: 17.00429669 | F98: 15.14163587 | G98: 14.27782458 | H98: 0.1775745797 | I98: 0.1697729389 | J98: 0.1789926466
D99: - ekskl. fleks og elever | E99: 13.35481563 | F99: 12.39926668 | G99: =G98-G96-G95 -> 12.03121935 | H99: 0.1558402647 | I99: 0.1525841053 | J99: 0.1615095919
B100: 913 | C100: Retten i Svendborg | D100: Jurister | E100: 2.013976402 | F100: 1.607107144 | G100: 1.145907237 | H100: 0.1837207633 | I100: 0.1439572568 | J100: 0.1118650206
B101: 913 | C101: Retten i Svendborg | D101: Kontor | E101: 5.306364643 | F101: 4.38673617 | G101: 3.331050062 | H101: 0.1840829698 | I101: 0.163296235 | J101: 0.1487839102
B102: 913 | C102: Retten i Svendborg | D102: Elev | E102: 0.7869755634 | F102: 1.18591699 | G102: 0.7897604523 | H102: 0.2310502288 | I102: 0.2796215624 | J102: 0.2289260264
B103: 913 | C103: Retten i Svendborg | D103: Fleks | E103: 0.4373747087 | F103: 0.4517778202 | G103: 0.5239972396 | H103: 0.4914874802 | I103: 0.4517642672 | J103: 0.571618802
B104: 913 | C104: Retten i Svendborg | D104: Øvrige | E104: 4.2062 | F104: 3.36072 | G104: 3.01963 | H104: 1 | I104: 1 | J104: 1
B105: 913 | C105: Retten i Svendborg | D105: Samlet | E105: 12.75089132 | F105: 10.99225812 | G105: 8.81034499 | H105: 0.2640467464 | I105: 0.2357368937 | J105: 0.2201576825
D106: - ekskl. fleks og elever | E106: 11.52654105 | F106: 9.354563314 | G106: =G105-G103-G102 -> 7.496587298 | H106: 0.262000783 | I106: 0.2260202206 | J106: 0.2102723368
B107: 914 | C107: Retten i Nykøbing F. | D107: Jurister | E107: 1.550241642 | F107: 1.510109577 | G107: 1.158146506 | H107: 0.09738659161 | I107: 0.0998806531 | J107: 0.07866544487
B108: 914 | C108: Retten i Nykøbing F. | D108: Kontor | E108: 6.2540025 | F108: 6.190823562 | G108: 5.479977962 | H108: 0.1784829271 | I108: 0.1716655236 | J108: 0.163492804
B109: 914 | C109: Retten i Nykøbing F. | D109: Elev | E109: 0.2844609067 | F109: 0.3530877466 | G109: 0.760858049 | H109: 0.1043851099 | I109: 0.1653256981 | J109: 0.3418926001
B110: 914 | C110: Retten i Nykøbing F. | D110: Fleks | E110: 0 | F110: 0 | G110: 0 | H110: 0 | I110: 0 | J110: 0
B111: 914 | C111: Retten i Nykøbing F. | D111: Øvrige | E111: 3.77977586 | F111: 4.041656021 | G111: 3.506286127 | H111: 0.9869510698 | I111: 0.9871204309 | J111: 0.9837677889
B112: 914 | C112: Retten i Nykøbing F. | D112: Samlet | E112: 11.86848091 | F112: 12.09567691 | G112: 10.90526864 | H112: 0.2054948586 | I112: 0.2095624592 | J112: 0.2010612499
D113: - ekskl. fleks og elever | E113: 11.58402 | F113: 11.74258916 | G113: =G112-G110-G109 -> 10.14441059 | H113: 0.21143368 | I113: 0.2124324294 | J113: 0.1958201615
B114: 915 | C114: Retten i Næstved | D114: Jurister | E114: 2.200946313 | F114: 1.740462059 | G114: 1.645678068 | H114: 0.1204514282 | I114: 0.08720898892 | J114: 0.08186284188
B115: 915 | C115: Retten i Næstved | D115: Kontor | E115: 7.487158534 | F115: 6.809407446 | G115: 6.883548134 | H115: 0.1701821489 | I115: 0.169250571 | J115: 0.1799292556
B116: 915 | C116: Retten i Næstved | D116: Elev | E116: 1.253359212 | F116: 1.013940233 | G116: 0.6696666994 | H116: 0.3170532897 | I116: 0.236464354 | J116: 0.1717560925
B117: 915 | C117: Retten i Næstved | D117: Fleks | E117: 1.205269206 | F117: 1.255311454 | G117: 1.70730107 | H117: 0.4268812068 | I117: 0.4127806802 | J117: 0.5183315129
B118: 915 | C118: Retten i Næstved | D118: Øvrige | E118: 4.624338615 | F118: 4.285479291 | G118: 4.160795424 | H118: 0.9987858675 | I118: 0.9659616703 | J118: 0.9911776855
B119: 915 | C119: Retten i Næstved | D119: Samlet | E119: 16.77107188 | F119: 15.10460048 | G119: 15.0669894 | H119: 0.2276389792 | I119: 0.2099155949 | J119: 0.2160127913
D120: - ekskl. fleks og elever | E120: 14.31244346 | F120: 12.8353488 | G120: =G119-G117-G116 -> 12.69002163 | H120: 0.2139461522 | I120: 0.1986079531 | J120: 0.2028531693
B121: 916 | C121: Retten i Holbæk | D121: Jurister | E121: 1.405182699 | F121: 1.326085181 | G121: 1.612148002 | H121: 0.1073997356 | I121: 0.1022663877 | J121: 0.1238290703
B122: 916 | C122: Retten i Holbæk | D122: Kontor | E122: 5.744352577 | F122: 5.197457327 | G122: 4.469229333 | H122: 0.1840937441 | I122: 0.1664351657 | J122: 0.1552590958
B123: 916 | C123: Retten i Holbæk | D123: Elev | E123: 0.5104103223 | F123: 0.9364592136 | G123: 0.1618303192 | H123: 0.1924442727 | I123: 0.3059374422 | J123: 0.05403295434
B124: 916 | C124: Retten i Holbæk | D124: Fleks | E124: 0.9977927964 | F124: 1.00003 | G124: 0.9881813033 | H124: 0.3325876212 | I124: 0.3333333333 | J124: 0.3293838863
B125: 916 | C125: Retten i Holbæk | D125: Øvrige | E125: 2.675691127 | F125: 2.575916272 | G125: 2.213503707 | H125: 0.995702329 | I125: 0.9938255316 | J125: 0.8937166222
B126: 916 | C126: Retten i Holbæk | D126: Samlet | E126: 11.33342952 | F126: 11.03594799 | G126: 9.444892664 | H126: 0.215355288 | I126: 0.2088241287 | J126: 0.1878585447
D127: - ekskl. fleks og elever | E127: 9.825226402 | F127: 9.09945878 | G127: =G126-G124-G123 -> 8.294881042 | H127: 0.2091616526 | I127: 0.1944868625 | J127: 0.1873215912
B128: 917 | C128: Retten i Roskilde | D128: Jurister | E128: 2.811727264 | F128: 2.574764026 | G128: 2.029562398 | H128: 0.1230715037 | I128: 0.1226603795 | J128: 0.09154040227
B129: 917 | C129: Retten i Roskilde | D129: Kontor | E129: 8.879431355 | F129: 8.712038866 | G129: 7.572415372 | H129: 0.1721934616 | I129: 0.1737132449 | J129: 0.1616606361
B130: 917 | C130: Retten i Roskilde | D130: Elev | E130: 0.9938220484 | F130: 0.8517664878 | G130: 0.8979748005 | H130: 0.1500477926 | I130: 0.1496209245 | J130: 0.2923656563
B131: 917 | C131: Retten i Roskilde | D131: Fleks | E131: 0 | F131: 0 | G131: 0 | H131: 0 | I131: 0 | J131: 0
B132: 917 | C132: Retten i Roskilde | D132: Øvrige | E132: 4.044313913 | F132: 3.927730276 | G132: 4.073239241 | H132: 0.9708815547 | I132: 0.9586353339 | J132: 0.9947904763
B133: 917 | C133: Retten i Roskilde | D133: Samlet | E133: 16.72929458 | F133: 16.06629966 | G133: 14.57319181 | H133: 0.1955836745 | I133: 0.1960909195 | J133: 0.1888241103
D134: - ekskl. fleks og elever | E134: 15.73547253 | F134: 15.21453317 | G134: =G133-G131-G130 -> 13.67521701 | H134: 0.2002516278 | I134: 0.2022132251 | J134: 0.1870569967
B135: 918 | C135: Retten i Hillerød | D135: Jurister | E135: 2.230793815 | F135: 1.475710343 | G135: 1.308668217 | H135: 0.1450785984 | I135: 0.09511942494 | J135: 0.0872681684
B136: 918 | C136: Retten i Hillerød | D136: Kontor | E136: 7.140421326 | F136: 6.581705283 | G136: 5.996567975 | H136: 0.2063777162 | I136: 0.2069016608 | J136: 0.2152711734
B137: 918 | C137: Retten i Hillerød | D137: Elev | E137: 0.4821314428 | F137: 0.3215368343 | G137: 0.5701859475 | H137: 0.1334328113 | I137: 0.0735501157 | J137: 0.1488572918
B138: 918 | C138: Retten i Hillerød | D138: Fleks | E138: 3.585629739 | F138: 3.027722189 | G138: 1.841933388 | H138: 0.6261621238 | I138: 0.7495252378 | J138: 0.6697793458
B139: 918 | C139: Retten i Hillerød | D139: Øvrige | E139: 2.440846831 | F139: 2.61458923 | G139: 2.941379349 | H139: 0.5855821236 | I139: 0.6221953335 | J139: 0.6695361308
B140: 918 | C140: Retten i Hillerød | D140: Samlet | E140: 15.87982315 | F140: 14.02126388 | G140: 12.65873488 | H140: 0.2501423709 | I140: 0.2339276241 | J140: 0.235181174
D141: - ekskl. fleks og elever | E141: 11.81206197 | F141: 10.67200486 | G141: =G140-G138-G137 -> 10.24661554 | H141: 0.2181621829 | I141: 0.2071136854 | J141: 0.2168826305
B142: 919 | C142: Retten i Helsingør | D142: Jurister | E142: 2.241062996 | F142: 1.9197985 | G142: 1.355893635 | H142: 0.1337149759 | I142: 0.1151645316 | J142: 0.08739502657
B143: 919 | C143: Retten i Helsingør | D143: Kontor | E143: 4.627202726 | F143: 4.414836968 | G143: 4.152193695 | H143: 0.1391123633 | I143: 0.1440363634 | J143: 0.1443422927
B144: 919 | C144: Retten i Helsingør | D144: Elev | E144: 0.1381241038 | F144: 0.04252724309 | G144: 0.2936006561 | H144: 0.03864367955 | I144: 0.0104205089 | J144: 0.06979756281
B145: 919 | C145: Retten i Helsingør | D145: Fleks | E145: 1.224950272 | F145: 1.384127866 | G145: 0.8931463678 | H145: 0.2469403896 | I145: 0.2802740653 | J145: 0.3071331831
B146: 919 | C146: Retten i Helsingør | D146: Øvrige | E146: 3.69192 | F146: 3.15423 | G146: 2.865249577 | H146: 1 | I146: 1 | J146: 0.9905926365
B147: 919 | C147: Retten i Helsingør | D147: Samlet | E147: 11.9232601 | F147: 10.91552058 | G147: 9.560083931 | H147: 0.1915411764 | I147: 0.1834704084 | J147: 0.1761001406
D148: - ekskl. fleks og elever | E148: 10.56018572 | F148: 9.488865468 | G148: =G147-G145-G144 -> 8.373336907 | H148: 0.1965992964 | I148: 0.187990907 | J148: 0.1775016144
B149: 920 | C149: Retten i Lyngby | D149: Jurister | E149: 1.512934576 | F149: 1.14794877 | G149: 1.358805645 | H149: 0.09022932095 | I149: 0.06051540392 | J149: 0.06842634884
B150: 920 | C150: Retten i Lyngby | D150: Kontor | E150: 9.719649656 | F150: 8.744508645 | G150: 7.680642503 | H150: 0.2512332626 | I150: 0.2347770579 | J150: 0.2273600995
B151: 920 | C151: Retten i Lyngby | D151: Elev | E151: 1.514878121 | F151: 0.8075269174 | G151: 1.209936766 | H151: 0.3622134627 | I151: 0.3153515095 | J151: 0.3962510615
B152: 920 | C152: Retten i Lyngby | D152: Fleks | E152: 1.315336667 | F152: 0.440606 | G152: 0 | H152: 0.3333333333 | I152: 0.2 | J152: 0
B153: 920 | C153: Retten i Lyngby | D153: Øvrige | E153: 3.259376408 | F153: 2.766177026 | G153: 2.752906977 | H153: 0.8069321325 | I153: 0.7377416379 | J153: 0.6871787967
B154: 920 | C154: Retten i Lyngby | D154: Samlet | E154: 17.32217543 | F154: 13.90676736 | G154: 13.00229189 | H154: 0.2561583473 | I154: 0.2148466403 | J154: 0.2127361653
D155: - ekskl. fleks og elever | E155: 14.49196064 | F155: 12.65863444 | G155: =G154-G152-G151 -> 11.79235513 | H155: 0.2435843477 | I155: 0.2111001714 | J155: 0.204565481
B156: 921 | C156: Retten i Glostrup | D156: Jurister | E156: 2.842068008 | F156: 2.391526252 | G156: 2.649619766 | H156: 0.09008433581 | I156: 0.06713870291 | J156: 0.07517199881
B157: 921 | C157: Retten i Glostrup | D157: Kontor | E157: 15.98266153 | F157: 15.51739409 | G157: 14.30758667 | H157: 0.204413987 | I157: 0.2012580232 | J157: 0.2041212144
B158: 921 | C158: Retten i Glostrup | D158: Elev | E158: 0.8501103334 | F158: 0.7688489253 | G158: 0.8626439196 | H158: 0.1718321465 | I158: 0.146637904 | J158: 0.1749887761
B159: 921 | C159: Retten i Glostrup | D159: Fleks | E159: 1.747602443 | F159: 1.000035018 | G159: 1.000034897 | H159: 0.3730725592 | I159: 0.2995632576 | J159: 0.2564691831
B160: 921 | C160: Retten i Glostrup | D160: Øvrige | E160: 5.95517568 | F160: 6.437078488 | G160: 4.999439236 | H160: 0.6716262553 | I160: 0.6718187612 | J160: 0.6125720295
B161: 921 | C161: Retten i Glostrup | D161: Samlet | E161: 27.377618 | F161: 26.11488278 | G161: 23.81932449 | H161: 0.2134954095 | I161: 0.1995242933 | J161: 0.1947115314
D162: - ekskl. fleks og elever | E162: 24.77990522 | F162: 24.34599883 | G162: =G161-G159-G158 -> 21.95664567 | H162: 0.2089306758 | I162: 0.1990609551 | J162: 0.1934465322
B163: 922 | C163: Retten på Frederiksberg | D163: Jurister | E163: 2.39824517 | F163: 1.90195052 | G163: 1.074470057 | H163: 0.09454595656 | I163: 0.08065640072 | J163: 0.04206847415
B164: 922 | C164: Retten på Frederiksberg | D164: Kontor | E164: 8.282039743 | F164: 8.473068183 | G164: 8.059126665 | H164: 0.1539617492 | I164: 0.1677868509 | J164: 0.1663582719
B165: 922 | C165: Retten på Frederiksberg | D165: Elev | E165: 0.7530852765 | F165: 0.09552749362 | G165: 0.5765352261 | H165: 0.1683605765 | I165: 0.02802107682 | J165: 0.1443315407
B166: 922 | C166: Retten på Frederiksberg | D166: Fleks | E166: 0.0137882976 | F166: 0.05662581701 | G166: 0.08845871977 | H166: 0.004609497471 | I166: 0.01887470609 | J166: 0.02948535536
B167: 922 | C167: Retten på Frederiksberg | D167: Øvrige | E167: 3.942413197 | F167: 3.96864664 | G167: 3.948681787 | H167: 0.7706106374 | I167: 0.7731661998 | J167: 0.7932361152
B168: 922 | C168: Retten på Frederiksberg | D168: Samlet | E168: 15.38957168 | F168: 14.49581865 | G168: 13.74727246 | H168: 0.1677537721 | I168: 0.1692999664 | J168: 0.1599302409
D169: - ekskl. fleks og elever | E169: 14.62269811 | F169: 14.34366534 | G169: =G168-G166-G165 -> 13.08227851 | H169: 0.1735122717 | I169: 0.1810774377 | J169: 0.1656753859
B170: 923 | C170: Københavns Byret | D170: Jurister | E170: 5.0525422 | F170: 4.289576149 | G170: 3.363973447 | H170: 0.08814455902 | I170: 0.07403238226 | J170: 0.05659141127
B171: 923 | C171: Københavns Byret | D171: Kontor | E171: 30.78984297 | F171: 29.02415462 | G171: 29.72374914 | H171: 0.2387726309 | I171: 0.2493023593 | J171: 0.2563729285
B172: 923 | C172: Københavns Byret | D172: Elev | E172: 0.7411092879 | F172: 1.642991035 | G172: 1.130591452 | H172: 0.09082177145 | I172: 0.199020884 | J172: 0.1400822772
B173: 923 | C173: Københavns Byret | D173: Fleks | E173: 0 | F173: 0.6666866667 | G173: 0 | H173: 0 | I173: 0.3333333333 | J173: 0
B174: 923 | C174: Københavns Byret | D174: Øvrige | E174: 9.72041138 | F174: 7.102963449 | G174: 6.685159358 | H174: 0.937432987 | I174: 0.7762928845 | J174: 0.7043727342
B175: 923 | C175: Københavns Byret | D175: Samlet | E175: 46.30390584 | F175: 42.72637192 | G175: 40.9034734 | H175: 0.2243081674 | I175: 0.220501962 | J175: 0.2094397992
D176: - ekskl. fleks og elever | E176: 45.56279655 | F176: 40.41669422 | G176: =G175-G173-G172 -> 39.77288195 | H176: 0.2317057826 | I176: 0.2202385736 | J176: 0.2151355177
B177: 924 | C177: Retten på Bornholm | D177: Jurister | E177: 0.8615297714 | F177: 0.9813889956 | G177: 0.9529703745 | H177: 0.2316369895 | I177: 0.2662599728 | J177: 0.2442956286
B178: 924 | C178: Retten på Bornholm | D178: Kontor | E178: 2.325719992 | F178: 2.323445356 | G178: 2.741882349 | H178: 0.2763079568 | I178: 0.277736713 | J178: 0.3184647007
B179: 924 | C179: Retten på Bornholm | D179: Elev | E179: 0.7446822699 | F179: 0.7779036328 | G179: 0.6984023296 | H179: 0.3595241008 | I179: 0.3746008576 | J179: 0.3355138762
B180: 924 | C180: Retten på Bornholm | D180: Fleks | E180: 0 | F180: 0 | G180: 0 | H180: 0 | I180: 0 | J180: 0
B181: 924 | C181: Retten på Bornholm | D181: Øvrige | E181: 1.14377 | F181: 1.185444952 | G181: 1.07549643 | H181: 1 | I181: 0.9886204968 | J181: 0.9988636137
B182: 924 | C182: Retten på Bornholm | D182: Samlet | E182: 5.075702034 | F182: 5.268182936 | G182: 5.468751483 | H182: 0.3306321029 | I182: 0.3437150824 | J182: 0.3490197125
D183: - ekskl. fleks og elever | E183: 4.331019764 | F183: 4.490279303 | G183: =G182-G180-G179 -> 4.770349153 | H183: 0.3261258492 | I183: 0.3388746818 | J183: 0.3510888222
B185: 1) I opgørelsen er årsværksforbrug under kategorierne "ledelse og administration", "hjælpefunktioner" og "transporttid" henført under generel ledelse og administration mv.
B186: 2) Ansatte under socialt kapitel (fleksjobbere mv.) uden tidsfordeling indgår ikke i denne opgørelse.

Sheet Aktivitet
B2: AKTIVITET VED RETTEN MÅLT SOM VÆGTEDE AFSLUTTEDE SAGER
B4: EID | C4: Ret | D4: Samlet | F4: Straffesager | H4: Civile sager | J4: Fogedsager | L4: Skiftesager | N4: Notarialforretninger
D5: 2011 | E5: 2012 | F5: 2011 | G5: 2012 | H5: 2011 | I5: 2012 | J5: 2011 | K5: 2012 | L5: 2011 | M5: 2012 | N5: 2011 | O5: 2012
C7: SAMLET BYRETTERNE | D7: 775132.1064 | E7: 756822.2522 | F7: 165777.7935 | G7: 183768.651 | H7: 67432.42055 | I7: 60367.79675 | J7: 411676.5201 | K7: 355662.7341 | L7: 75808.30193 | M7: 75533.43271 | N7: 63905.99946 | O7: 64557
B9: 901 | C9: Retten i Hjørring | D9: 26674.74971 | E9: 23738.63903 | F9: 4973.133301 | G9: 4960.241821 | H9: 2233.645508 | I9: 1803.279297 | J9: 14561.58392 | K9: 11188.27524 | L9: 3362.379181 | M9: 3253.963501 | N9: 1260.000015 | O9: 1278
B10: 902 | C10: Retten i Aalborg | D10: 38590.99073 | E10: 36305.10993 | F10: 7211.565186 | G10: 7675.879395 | H10: 3625.326294 | I10: 3200.817871 | J10: 19767.90524 | K10: 16263.55508 | L10: 4366.632721 | M10: 4236.18576 | N10: 2776.000092 | O10: 2835
B11: 903 | C11: Retten i Randers | D11: 26685.21859 | E11: 25834.8213 | F11: 5001.125732 | G11: 5044.601318 | H11: 2348.859497 | I11: 2099.83136 | J11: 14664.25705 | K11: 13808.713 | L11: 3074.647125 | M11: 3210.806396 | N11: 1796 | O11: 1625
B12: 904 | C12: Retten i Århus | D12: 40451.7912 | E12: 42308.2102 | F12: 8416.570068 | G12: 10226.06006 | H12: 3752.798584 | I12: 3829.937622 | J12: 18983.82957 | K12: 16569.80188 | L12: 4160.350098 | M12: 4086.460236 | N12: 5017.999878 | O12: 4962
B13: 905 | C13: Retten i Viborg | D13: 26130.76683 | E13: 25077.18019 | F13: 4310.118042 | G13: 5247.415283 | H13: 2605.584229 | I13: 2059.151611 | J13: 13983.2749 | K13: 12454.6076 | L13: 3029.419434 | M13: 2979.961121 | N13: 1956.000061 | O13: 1804
B14: 906 | C14: Retten i Holstebro | D14: 18391.77003 | E14: 18192.46218 | F14: 3667.48645 | G14: 4357.35498 | H14: 1435.997375 | I14: 1325.235931 | J14: 9566.714142 | K14: 7716.205429 | L14: 2358.660767 | M14: 2284.461365 | N14: 1479 | O14: 1426
B15: 907 | C15: Retten i Herning | D15: 18160.97313 | E15: 18547.10039 | F15: 3403.994873 | G15: 4394.998657 | H15: 1526.030457 | I15: 1318.311035 | J15: 9771.320801 | K15: 8423.075424 | L15: 2242.320099 | M15: 2292.912994 | N15: 1523.000031 | O15: 1568
B16: 908 | C16: Retten i Horsens | D16: 23345.28932 | E16: 22439.7781 | F16: 4892.261597 | G16: 4999.31897 | H16: 2117.592224 | I16: 1983.930237 | J16: 12055.83107 | K16: 10466.49939 | L16: 2336.906311 | M16: 2324.954102 | N16: 1357.000015 | O16: 1484
B17: 909 | C17: Retten i Kolding | D17: 34994.89916 | E17: 35294.05449 | F17: 7059.458008 | G17: 7689.319336 | H17: 3223.456665 | I17: 3178.824463 | J17: 17578.15915 | K17: 16608.83952 | L17: 3689.743835 | M17: 3620.767578 | N17: 2839.999939 | O17: 2889
B18: 910 | C18: Retten i Esbjerg | D18: 25698.66 | E18: 25538.53938 | F18: 6082.808105 | G18: 6456.035156 | H18: 1934.889099 | I18: 1819.175049 | J18: 12693.07306 | K18: 11478.17532 | L18: 2808.682739 | M18: 2884.569824 | N18: 1617 | O18: 1603
B19: 911 | C19: Retten i Sønderborg | D19: 30341.20396 | E19: 30985.11713 | F19: 6829.274658 | G19: 8078.40918 | H19: 2284.787231 | I19: 2221.17041 | J19: 15533.07974 | K19: 13330.28336 | L19: 3491.468658 | M19: 3392.281799 | N19: 1865 | O19: 2074
B20: 912 | C20: Retten i Odense | D20: 40426.87364 | E20: 39845.39614 | F20: 8117.817627 | G20: 9960.338623 | H20: 3073.014648 | I20: 2704.848816 | J20: 24373.01373 | K20: 20177.04282 | L20: 4542.66864 | M20: 4269.590332 | N20: 3200.999939 | O20: 3168
B21: 913 | C21: Retten i Svendborg | D21: 19454.98871 | E21: 18561.80214 | F21: 3291.627808 | G21: 3759.513428 | H21: 1647.596924 | I21: 1371.264496 | J21: 10301.48819 | K21: 8957.80957 | L21: 2754.970032 | M21: 2661.011871 | N21: 1116.999969 | O21: 1055
B22: 914 | C22: Retten i Nykøbing F. | D22: 27511.763 | E22: 23968.79888 | F22: 4607.053711 | G22: 5016.716187 | H22: 2265.528503 | I22: 1621.02533 | J22: 18787.22348 | K22: 14150.21469 | L22: 3158.183502 | M22: 3024.507629 | N22: 962.0000153 | O22: 924
B23: 915 | C23: Retten i Næstved | D23: 33846.36999 | E23: 31662.31991 | F23: 5871.42041 | G23: 6666.134277 | H23: 2637.773987 | I23: 2296.485474 | J23: 23922.22498 | K23: 19031.07956 | L23: 3745.109344 | M23: 3572.32547 | N23: 1840 | O23: 1718
B24: 916 | C24: Retten i Holbæk | D24: 23586.51068 | E24: 21915.78641 | F24: 4274.383789 | G24: 4567.410889 | H24: 1791.953247 | I24: 1699.384583 | J24: 16790.20789 | K24: 12485.56702 | L24: 2531.067017 | M24: 2485.939194 | N24: 1049.999985 | O24: 1006
B25: 917 | C25: Retten i Roskilde | D25: 37960.15515 | E25: 38263.28399 | F25: 7577.484863 | G25: 9092.281494 | H25: 3245.133057 | I25: 2792.978394 | J25: 22408.4906 | K25: 19089.33151 | L25: 3820.086548 | M25: 4228.596893 | N25: 2442.999969 | O25: 2856
B26: 918 | C26: Retten i Hillerød | D26: 24870.66124 | E26: 25465.69029 | F26: 5283.521484 | G26: 5910.146484 | H26: 2315.687805 | I26: 2165.439941 | J26: 11940.20374 | K26: 11557.82973 | L26: 2486.020355 | M26: 2652.594818 | N26: 1933.999969 | O26: 1825
B27: 919 | C27: Retten i Helsingør | D27: 25289.64412 | E27: 23196.91742 | F27: 5218.071289 | G27: 4866.344116 | H27: 2236.35022 | I27: 1963.400269 | J27: 13268.44662 | K27: 11569.21875 | L27: 2644.592102 | M27: 2639.974365 | N27: 1597.999939 | O27: 1568
B28: 920 | C28: Retten i Lyngby | D28: 29602.62537 | E28: 29632.73474 | F28: 4301.837036 | G28: 5570.698242 | H28: 3812.60022 | I28: 3412.250488 | J28: 11905.19533 | K28: 10606.57703 | L28: 2950.643074 | M28: 2909.13274 | N28: 6193.000244 | O28: 6133
B29: 921 | C29: Retten i Glostrup | D29: 60959.68107 | E29: 57889.5764 | F29: 14673.34229 | G29: 14509.90479 | H29: 5106.318237 | I29: 4841.872925 | J29: 35067.03699 | K29: 30128.88486 | L29: 4438.957081 | M29: 4478.052559 | N29: 3838.999939 | O29: 3365
B30: 922 | C30: Retten på Frederiksberg | D30: 40814.4518 | E30: 41848.55554 | F30: 8632.144775 | G30: 10778.61035 | H30: 3562.549805 | I30: 2925.450806 | J30: 24137.69328 | K30: 23957.10023 | L30: 3393.930279 | M30: 3340.188191 | N30: 4695.999939 | O30: 4702
B31: 923 | C31: Københavns Byret | D31: 96945.51204 | E31: 96118.39061 | F31: 31389.0625 | G31: 33090.80371 | H31: 8333.914795 | I31: 7494.935303 | J31: 37108.61017 | K31: 33660.7729 | L31: 3694.600903 | M31: 3973.322157 | N31: 11285.99951 | O31: 12410
B32: 924 | C32: Retten på Bornholm | D32: 4396.556898 | E32: 4191.987453 | F32: 692.22995 | G32: 850.1142883 | H32: 315.0319366 | I32: 238.7950363 | J32: 2507.65646 | K32: 1983.274189 | L32: 726.2620811 | M32: 730.8718109 | N32: 260.0000076 | O32: 279
B34: 1) Vægtningen på tværs af sagstyper betyder, at antallet af vægtede sager inden for de enkelte sagområder ikke summer op til det samlede antal vægtede sager.
B35: 2) Der foretages en tilsvarende opgørelse samlet for henholdsvis jurister og kontor.

Sheet Målopf.Straf
B2: MÅLOPFYLDELSE STRAFFESAGER (PROCENT)
B4: EID | C4: Ret | D4: Nævningesager | H4: Domsmandssager | L4: Sager uden domsmænd | P4: Tilståelsessager | T4: Voldssager | X4: Voldtægtssager
D5: 2011 | E5: 2012 | F5: 2011 | G5: 2012 | H5: 2011 | I5: 2012 | J5: 2011 | K5: 2012 | L5: 2011 | M5: 2012 | N5: 2011 | O5: 2012 | P5: 2011 | Q5: 2012 | R5: 2011 | S5: 2012 | T5: 2011 | U5: 2012 | V5: 2011 | W5: 2012 | X5: 2011 | Y5: 2012 | Z5: 2011 | AA5: 2012
D6: <4 MDR. | F6: <6 MDR. | H6: <3 MDR. | J6: <6 MDR. | L6: <2 MDR. | N6: <6 MDR. | P6: <2 MDR. | R6: <6 MDR. | T6: <37 DG. | V6: <2 MDR. | X6: <37 DG. | Z6: <2 MDR.
C8: MÅL (procent) | D8: 60 | E8: 60 | F8: 80 | G8: 80 | H8: 65 | I8: 65 | J8: 90 | K8: 90 | L8: 65 | M8: 65 | N8: 95 | O8: 95 | P8: 62 | Q8: 62 | R8: 90 | S8: 90 | T8: 60 | U8: 60 | V8: 75 | W8: 75 | X8: 55 | Y8: 55 | Z8: 75 | AA8: 75
C9: SAMLET BYRETTERNE | D9: 43.0898374 | E9: 44.44437037 | F9: 70.73065041 | G9: 80.74074074 | H9: 53.4037446 | I9: 55.59574434 | J9: 77.37195785 | K9: 79.65069113 | L9: 62.18324053 | M9: 84.24388555 | N9: 92.70601708 | O9: 95.52822774 | P9: 49.07108473 | Q9: 51.41953896 | R9: 83.36319254 | S9: 86.34302658 | T9: 53.65497076 | U9: 48.88059701 | V9: 68.05555556 | W9: 64.55223881 | X9: 24.24242424 | Y9: 41.55844156 | Z9: 50 | AA9: 63.63636364
C10: 5. BEDSTE RET | D10: 100 | E10: 66.67 | F10: 100 | G10: 100 | H10: 69.43 | I10: 69.72 | J10: 90.51 | K10: 89.61 | L10: 79.36 | M10: 87.93 | N10: 97.64 | O10: 98.59 | P10: 63.71 | Q10: 65.19 | R10: 96.29 | S10: 95.27 | T10: 70 | U10: 63.01369863 | V10: 82.35294118 | W10: 74.35897436 | X10: 37.5 | Y10: 66.66666667 | Z10: 75 | AA10: 100
B12: 901 | C12: Retten i Hjørring | D12: 50 | E12: - | F12: 100 | G12: - | H12: 61.35 | I12: 50.98 | J12: 87.43 | K12: 81.35 | L12: 78.67 | M12: 83.34 | N12: 95.67 | O12: 96.59 | P12: 38.24 | Q12: 58.45 | R12: 91.18 | S12: 92.24 | T12: 72.72727273 | U12: 58.62068966 | V12: 81.81818182 | W12: 70.11494253 | X12: 75 | Y12: 50 | Z12: 75 | AA12: 100
B13: 902 | C13: Retten i Aalborg | D13: 100 | E13: 66.67 | F13: 100 | G13: 100 | H13: 69.43 | I13: 57.21 | J13: 90.51 | K13: 89.7 | L13: 69.48 | M13: 85.74 | N13: 97.92 | O13: 97.6 | P13: 53.1 | Q13: 32.88 | R13: 94.34 | S13: 91.84 | T13: 70 | U13: 58.90410959 | V13: 75.71428571 | W13: 71.23287671 | X13: 0 | Y13: 33.33333333 | Z13: 100 | AA13: 33.33333333
B14: 903 | C14: Retten i Randers | D14: 50 | E14: 66.67 | F14: 83.33 | G14: 100 | H14: 46.83 | I14: 58.63 | J14: 73.01 | K14: 81.12 | L14: 73.83 | M14: 88.78 | N14: 91.59 | O14: 96.31 | P14: 45.24 | Q14: 56.18 | R14: 80.97 | S14: 88.2 | T14: 43.1372549 | U14: 55.35714286 | V14: 66.66666667 | W14: 64.28571429 | X14: 0 | Y14: 50 | Z14: 50 | AA14: 50
B15: 904 | C15: Retten i Århus | D15: 50 | E15: 100 | F15: 50 | G15: 100 | H15: 41.79 | I15: 62.95 | J15: 67.75 | K15: 81.73 | L15: 52.71 | M15: 86.47 | N15: 90.52 | O15: 97.13 | P15: 41.66 | Q15: 55.33 | R15: 72.74 | S15: 89.45 | T15: 44.44444444 | U15: 38.67924528 | V15: 48.14814815 | W15: 52.83018868 | X15: 0 | Y15: 40 | Z15: 66.66666667 | AA15: 80
B16: 905 | C16: Retten i Viborg | D16: 100 | E16: - | F16: 100 | G16: - | H16: 60.03 | I16: 59.36 | J16: 83.74 | K16: 85.2 | L16: 74.36 | M16: 85.76 | N16: 96.28 | O16: 97.77 | P16: 54.95 | Q16: 60.31 | R16: 90.1 | S16: 90.84 | T16: 67.64705882 | U16: 61.53846154 | V16: 82.35294118 | W16: 64.1025641 | X16: 100 | Y16: 50 | Z16: 100 | AA16: 66.66666667
B17: 906 | C17: Retten i Holstebro | D17: 100 | E17: 100 | F17: 100 | G17: 100 | H17: 69.33 | I17: 70.21 | J17: 88 | K17: 88.91 | L17: 76.74 | M17: 82.16 | N17: 97 | O17: 98.28 | P17: 63.71 | Q17: 62.41 | R17: 96.91 | S17: 94.53 | T17: 44.06779661 | U17: 68.42105263 | V17: 61.01694915 | W17: 73.68421053 | X17: 66.66666667 | Y17: - | Z17: 66.66666667 | AA17: -
B18: 907 | C18: Retten i Herning | D18: 100 | E18: 0 | F18: 100 | G18: 0 | H18: 63.25 | I18: 64.87 | J18: 88.2 | K18: 86.21 | L18: 79.36 | M18: 87.93 | N18: 97.23 | O18: 97.77 | P18: 45.3 | Q18: 55.48 | R18: 91.99 | S18: 91.61 | T18: 60.41666667 | U18: 56.09756098 | V18: 68.75 | W18: 68.29268293 | X18: 0 | Y18: 60 | Z18: 100 | AA18: 100
B19: 908 | C19: Retten i Horsens | D19: 100 | E19: 40 | F19: 100 | G19: 100 | H19: 79.36 | I19: 75.93 | J19: 93.58 | K19: 91.67 | L19: 81.64 | M19: 87.68 | N19: 98.23 | O19: 98.59 | P19: 66.07 | Q19: 68.29 | R19: 97.5 | S19: 94.31 | T19: 54.23728814 | U19: 48.27586207 | V19: 62.71186441 | W19: 62.06896552 | X19: - | Y19: 40 | Z19: - | AA19: 40
B20: 909 | C20: Retten i Kolding | D20: 20 | E20: 0 | F20: 40 | G20: 100 | H20: 47.06 | I20: 47.15 | J20: 72.55 | K20: 64.81 | L20: 58.56 | M20: 85.78 | N20: 93.55 | O20: 94.58 | P20: 44.44 | Q20: 41.31 | R20: 77.61 | S20: 73.31 | T20: 65.51724138 | U20: 41.42857143 | V20: 68.96551724 | W20: 65.71428571 | X20: - | Y20: 100 | Z20: - | AA20: 100
B21: 910 | C21: Retten i Esbjerg | D21: 83.33 | E21: 66.67 | F21: 100 | G21: 100 | H21: 42.44 | I21: 48.06 | J21: 79.83 | K21: 80.05 | L21: 78.17 | M21: 81.8 | N21: 96.43 | O21: 97.14 | P21: 63.34 | Q21: 64.07 | R21: 96.31 | S21: 94.61 | T21: 31.91489362 | U21: 46.47887324 | V21: 53.19148936 | W21: 64.78873239 | X21: 20 | Y21: 0 | Z21: 40 | AA21: 50
B22: 911 | C22: Retten i Sønderborg | D22: 0 | E22: 66.67 | F22: 100 | G22: 100 | H22: 46.45 | I22: 56.78 | J22: 70.32 | K22: 76.78 | L22: 34.22 | M22: 71.93 | N22: 85.56 | O22: 89.91 | P22: 37.89 | Q22: 55.43 | R22: 78.87 | S22: 84.7 | T22: 51.25 | U22: 63.01369863 | V22: 65 | W22: 71.23287671 | X22: 0 | Y22: 0 | Z22: 0 | AA22: 0
B23: 912 | C23: Retten i Odense | D23: 100 | E23: 41.67 | F23: 100 | G23: 91.67 | H23: 74.6 | I23: 63.24 | J23: 90.25 | K23: 88.75 | L23: 84.67 | M23: 90.86 | N23: 99.12 | O23: 99.55 | P23: 64.04 | Q23: 45.27 | R23: 96.29 | S23: 92.76 | T23: 60.46511628 | U23: 37.5 | V23: 76.74418605 | W23: 53.125 | X23: 37.5 | Y23: 20 | Z23: 50 | AA23: 60
B24: 913 | C24: Retten i Svendborg | D24: 0 | E24: - | F24: 0 | G24: - | H24: 65.12 | I24: 67.76 | J24: 87.9 | K24: 89.47 | L24: 78.91 | M24: 83.06 | N24: 97.04 | O24: 97.76 | P24: 61.16 | Q24: 56.78 | R24: 93.62 | S24: 95.27 | T24: 60.52631579 | U24: 43.90243902 | V24: 80.26315789 | W24: 56.09756098 | X24: 0 | Y24: 33.33333333 | Z24: 33.33333333 | AA24: 50
B25: 914 | C25: Retten i Nykøbing F. | D25: 100 | E25: 28.57 | F25: 100 | G25: 100 | H25: 72.91 | I25: 72.77 | J25: 90.84 | K25: 91.07 | L25: 86.56 | M25: 90.92 | N25: 96.41 | O25: 98.71 | P25: 63.98 | Q25: 65.68 | R25: 93.2 | S25: 95.38 | T25: 75 | U25: 53.96825397 | V25: 84.21052632 | W25: 77.77777778 | X25: 33.33333333 | Y25: 80 | Z25: 66.66666667 | AA25: 100
B26: 915 | C26: Retten i Næstved | D26: 66.67 | E26: 28.57 | F26: 100 | G26: 85.71 | H26: 33.53 | I26: 38.12 | J26: 62.18 | K26: 73.3 | L26: 41.07 | M26: 84.8 | N26: 86.72 | O26: 90.58 | P26: 33.85 | Q26: 40.32 | R26: 68.99 | S26: 67.62 | T26: 19.60784314 | U26: 21.95121951 | V26: 31.37254902 | W26: 39.02439024 | X26: 42.85714286 | Y26: 100 | Z26: 57.14285714 | AA26: 100
B27: 916 | C27: Retten i Holbæk | D27: 75 | E27: 100 | F27: 75 | G27: 100 | H27: 53.09 | I27: 46.52 | J27: 81.28 | K27: 79.94 | L27: 71.56 | M27: 85.95 | N27: 93.63 | O27: 96.4 | P27: 47.37 | Q27: 60 | R27: 83.21 | S27: 90.13 | T27: 45.90163934 | U27: 34 | V27: 77.04918033 | W27: 66 | X27: 0 | Y27: 66.66666667 | Z27: 50 | AA27: 100
B28: 917 | C28: Retten i Roskilde | D28: 0 | E28: 33.33 | F28: 100 | G28: 100 | H28: 40.11 | I28: 37.27 | J28: 63.37 | K28: 53.9 | L28: 59.49 | M28: 62.91 | N28: 92.26 | O28: 92.32 | P28: 47.35 | Q28: 23.68 | R28: 76.5 | S28: 65.93 | T28: 57.69230769 | U28: 23.07692308 | V28: 65.38461538 | W28: 53.84615385 | X28: 0 | Y28: 0 | Z28: 0 | AA28: 33.33333333
B29: 918 | C29: Retten i Hillerød | D29: 50 | E29: 50 | F29: 100 | G29: 100 | H29: 59.53 | I29: 51.88 | J29: 90.82 | K29: 84.35 | L29: 54.01 | M29: 83.55 | N29: 95.76 | O29: 96.75 | P29: 51.78 | Q29: 39.3 | R29: 89.64 | S29: 91.79 | T29: 67.56756757 | U29: 71.79487179 | V29: 70.27027027 | W29: 74.35897436 | X29: 0 | Y29: 50 | Z29: 0 | AA29: 75
B30: 919 | C30: Retten i Helsingør | D30: 33.33 | E30: - | F30: 100 | G30: - | H30: 68.02 | I30: 69.72 | J30: 89.55 | K30: 89.44 | L30: 77.72 | M30: 87.19 | N30: 97.64 | O30: 98.71 | P30: 61.42 | Q30: 65.19 | R30: 93.47 | S30: 96.52 | T30: 65.71428571 | U30: 60 | V30: 82.85714286 | W30: 84 | X30: 33.33333333 | Y30: 0 | Z30: 33.33333333 | AA30: 0
B31: 920 | C31: Retten i Lyngby | D31: 100 | E31: - | F31: 100 | G31: - | H31: 64.79 | I31: 64.73 | J31: 86.31 | K31: 89.61 | L31: 61.61 | M31: 86.2 | N31: 91.3 | O31: 97.25 | P31: 49.83 | Q31: 79.18 | R31: 91.25 | S31: 97.61 | T31: 92 | U31: 81.81818182 | V31: 96 | W31: 81.81818182 | X31: 0 | Y31: 0 | Z31: 100 | AA31: 100
B32: 921 | C32: Retten i Glostrup | D32: 23.08 | E32: 47.37 | F32: 92.31 | G32: 89.47 | H32: 38.73 | I32: 50.59 | J32: 60.88 | K32: 78.86 | L32: 48.76 | M32: 81.83 | N32: 83.31 | O32: 90.99 | P32: 41.03 | Q32: 44.87 | R32: 78.96 | S32: 87.32 | T32: 31.86813187 | U32: 38.02816901 | V32: 50.54945055 | W32: 53.52112676 | X32: 0 | Y32: 100 | Z32: 25 | AA32: 100
B33: 922 | C33: Retten på Frederiksberg | D33: 0 | E33: 11.76 | F33: 80 | G33: 41.18 | H33: 41.31 | I33: 39.29 | J33: 67.58 | K33: 58.87 | L33: 69.63 | M33: 87.34 | N33: 93.6 | O33: 93.97 | P33: 33.88 | Q33: 30.28 | R33: 66.12 | S33: 59.91 | T33: 13.79310345 | U33: 30.76923077 | V33: 55.17241379 | W33: 53.84615385 | X33: 0 | Y33: 33.33333333 | Z33: 33.33333333 | AA33: 33.33333333
B34: 923 | C34: Københavns Byret | D34: 23.81 | E34: 37.5 | F34: 33.33 | G34: 68.75 | H34: 49.3 | I34: 55.96 | J34: 73.97 | K34: 80.87 | L34: 48.2 | M34: 85.74 | N34: 92.11 | O34: 95.26 | P34: 46.07 | Q34: 54.71 | R34: 73.71 | S34: 85.24 | T34: 31.50684932 | U34: 42.85714286 | V34: 61.64383562 | W34: 71.42857143 | X34: 12.5 | Y34: 20 | Z34: 50 | AA34: 60
B35: 924 | C35: Retten på Bornholm | D35: - | E35: 100 | F35: - | G35: 100 | H35: 95.12 | I35: 98.28 | J35: 98.78 | K35: 100 | L35: 89.63 | M35: 94.47 | N35: 99.47 | O35: 99.39 | P35: 93.4 | Q35: 95.12 | R35: 100 | S35: 100 | T35: 100 | U35: 87.5 | V35: 100 | W35: 93.75 | X35: - | Y35: - | Z35: - | AA35: -
B37: 1) Målene for de enkelte sagstyper er opstillet i samarbejde med byretterne. Dog er målene for voldssager og voldtægtssager fastsat eksternt.

Sheet Målopf.Civil
B2: MÅLOPFYLDELSE CIVILE SAGER (PROCENT)
B4: EID | C4: Ret | D4: "Tunge" almindelige sager | H4: Øvrige almindelige sager | L4: Alle almindelige civile sager | P4: Ægteskabssager | T4: Forældreansvarssager
D5: 2011 | E5: 2012 | F5: 2011 | G5: 2012 | H5: 2011 | I5: 2012 | J5: 2011 | K5: 2012 | L5: 2011 | M5: 2012 | N5: 2011 | O5: 2012 | P5: 2011 | Q5: 2012 | R5: 2011 | S5: 2012 | T5: 2011 | U5: 2012 | V5: 2011 | W5: 2012
D6: <15 MDR. | F6: <18 MDR. | H6: <12 MDR. | J6: <15 MDR. | L6: <6 MDR. | N6: <12 MDR. | P6: <4 MDR. | R6: <6 MDR. | T6: <6 MDR. | V6: <8 MDR.
C8: MÅL (procent) | D8: 45 | E8: 45 | F8: 60 | G8: 60 | H8: 60 | I8: 60 | J8: 72 | K8: 72 | L8: 70 | M8: 70 | N8: 85 | O8: 85 | P8: 56 | Q8: 56 | R8: 83 | S8: 83 | T8: 60 | U8: 60 | V8: 75 | W8: 75
C9: SAMLET BYRETTERNE | D9: 37.79249655 | E9: 41.19713936 | F9: 51.72424828 | G9: 54.52268949 | H9: 43.24828014 | I9: 46.58261265 | J9: 59.01303783 | K9: 62.36896449 | L9: 67.39739703 | M9: 63.96445214 | N9: 83.57068988 | O9: 81.80185302 | P9: 52.7310768 | Q9: 58.18694929 | R9: 75.88355067 | S9: 81.04658354 | T9: 55.29449308 | U9: 61.27334104 | V9: 72.6528021 | W9: 78.34289865
C10: 5. BEDSTE RET | D10: 50 | E10: 53.332 | F10: 64.52 | G10: 67.9968 | H10: 58.41905941 | I10: 58.4437013 | J10: 72.7709901 | K10: 72.98483412 | L10: 72.27 | M10: 69.18 | N10: 86.86 | O10: 87.09 | P10: 68.75 | Q10: 74.07 | R10: 89.29 | S10: 91.3 | T10: 68.88533333 | U10: 74.39744 | V10: 83.80971429 | W10: 87.99872
B12: 901 | C12: Retten i Hjørring | D12: 54.84 | E12: 59.09 | F12: 64.52 | G12: 72.73 | H12: 49.47963542 | I12: 46.99185792 | J12: 61.97854167 | K12: 64.47967213 | L12: 70.04 | M12: 65.68 | N12: 85.92 | O12: 83.3 | P12: 51.22 | Q12: 66.67 | R12: 80.49 | S12: 78.79 | T12: 51.90839695 | U12: 63.9997 | V12: 70.23061069 | W12: 79.9995
B13: 902 | C13: Retten i Aalborg | D13: 35.14 | E13: 53.66 | F13: 48.65 | G13: 65.85 | H13: 53.28609489 | I13: 51.81423913 | J13: 67.15576642 | K13: 64.85543478 | L13: 70 | M13: 68.7 | N13: 83.77 | O13: 84.96 | P13: 62.3 | Q13: 77.05 | R13: 80.33 | S13: 91.8 | T13: 69.08138158 | U13: 72.83697531 | V13: 77.63059211 | W13: 84.56796296
B14: 903 | C14: Retten i Randers | D14: 29.63037037 | E14: 50 | F14: 44.44074074 | G14: 50 | H14: 23.36045082 | I14: 38.85822289 | J14: 42.62454918 | K14: 56.92677711 | L14: 61.87 | M14: 57.15 | N14: 73.88 | O14: 73.54 | P14: 55 | Q14: 77.78 | R14: 80 | S14: 86.11 | T14: 59.69310078 | U14: 66.18359712 | V14: 80.61782946 | W14: 82.01669065
B15: 904 | C15: Retten i Århus | D15: 32.78360656 | E15: 46.03190476 | F15: 52.4557377 | G15: 57.14619048 | H15: 38.54773128 | I15: 49.89069767 | J15: 54.84665198 | K15: 67.86627907 | L15: 62.14 | M15: 62.49 | N15: 78.88 | O15: 79.64 | P15: 50 | Q15: 76.92 | R15: 71.24525 | S15: 94.87 | T15: 47.43538462 | U15: 73.68114833 | V15: 66.66916667 | W15: 82.77229665
B16: 905 | C16: Retten i Viborg | D16: 28.57214286 | E16: 26.92 | F16: 53.575 | G16: 38.46 | H16: 43.44479508 | I16: 47.63639485 | J16: 56.96901639 | K16: 63.94686695 | L16: 71.56 | M16: 64.83 | N16: 85.35 | O16: 82.91 | P16: 58.54 | Q16: 72.73 | R16: 73.8097619 | S16: 87.88 | T16: 64.76285714 | U16: 56.66433333 | V16: 83.80971429 | W16: 83.33506667
B17: 906 | C17: Retten i Holstebro | D17: 45.45 | E17: 53.332 | F17: 50 | G17: 56.664 | H17: 58.11910995 | I17: 57.78974026 | J17: 73.8239267 | K17: 64.93727273 | L17: 68.57 | M17: 69.18 | N17: 85.07 | O17: 83.22 | P17: 46.43 | Q17: 47.06 | R17: 67.86 | S17: 70.59 | T17: 46.47774648 | U17: 60.4622093 | V17: 66.19661972 | W17: 72.09523256
B18: 907 | C18: Retten i Herning | D18: 38.45846154 | E18: 70 | F18: 46.15692308 | G18: 80 | H18: 59.67967742 | I18: 58.4437013 | J18: 71.50322581 | K18: 70.78116883 | L18: 72.21 | M18: 66.37 | N18: 86.49 | O18: 84.38 | P18: 67.86 | Q18: 44.83 | R18: 89.29 | S18: 65.52 | T18: 45.83277778 | U18: 53.93033708 | V18: 66.66375 | W18: 76.40314607
B19: 908 | C19: Retten i Horsens | D19: 48.89 | E19: 53.33 | F19: 60 | G19: 66.67 | H19: 65.81563636 | I19: 55.92592417 | J19: 75.27421818 | K19: 72.98483412 | L19: 69.77 | M19: 66.91 | N19: 86.41 | O19: 86.28 | P19: 74.29 | Q19: 66.67 | R19: 82.86 | S19: 74.07 | T19: 68.88533333 | U19: 74.39744 | V19: 81.11177778 | W19: 87.99872
B20: 909 | C20: Retten i Kolding | D20: 45.16 | E20: 30.77 | F20: 58.06 | G20: 53.85 | H20: 30.938625 | I20: 33.76542208 | J20: 51.5609375 | K20: 50.64808442 | L20: 66.08 | M20: 65.02 | N20: 81.36 | O20: 79.49 | P20: 61.97 | Q20: 79.71 | R20: 83.1 | S20: 91.3 | T20: 67.10282895 | U20: 79.19543624 | V20: 78.94723684 | W20: 95.29825503
B21: 910 | C21: Retten i Esbjerg | D21: 14.28857143 | E21: 41.67 | F21: 42.85714286 | G21: 50 | H21: 49.07638376 | I21: 44.66979508 | J21: 61.99560886 | K21: 60.65364754 | L21: 65.55 | M21: 60.45 | N21: 82.17 | O21: 77.66 | P21: 51.85 | Q21: 67.65 | R21: 81.81672727 | S21: 85.29 | T21: 60.74859813 | U21: 67.55218543 | V21: 75.70205607 | W21: 84.10642384
B22: 911 | C22: Retten i Sønderborg | D22: 16.67 | E22: 33.32944444 | F22: 27.78 | G22: 41.66888889 | H22: 25.38735751 | I22: 36.84157895 | J22: 46.63445596 | K22: 54.73578947 | L22: 69.93 | M22: 62.02 | N22: 83.3 | O22: 78.66 | P22: 50 | Q22: 59.65 | R22: 75 | S22: 85.96 | T22: 67.81908046 | U22: 63.79258621 | V22: 83.90954023 | W22: 87.06560345
B23: 912 | C23: Retten i Odense | D23: 69.56521739 | E23: 61.54051282 | F23: 73.91304348 | G23: 71.79076923 | H23: 65.69262774 | I23: 61.27717172 | J23: 71.89645985 | K23: 71.37946128 | L23: 76.15 | M23: 68.77 | N23: 90.38 | O23: 87.74 | P23: 72.31 | Q23: 69.51 | R23: 90.77 | S23: 85.37 | T23: 52.17507246 | U23: 51.15149425 | V23: 78.98434783 | W23: 70.69298851
B24: 913 | C24: Retten i Svendborg | D24: 61.9 | E24: 50 | F24: 71.43 | G24: 66.67 | H24: 58.03020725 | I24: 64.63487805 | J24: 75.13005181 | K24: 78.65743902 | L24: 66.64 | M24: 70.51 | N24: 86.86 | O24: 89.29 | P24: 65 | Q24: 68 | R24: 92.5 | S24: 92 | T24: 85.0005 | U24: 82.7944086 | V24: 97.0002 | W24: 93.54752688
B25: 914 | C25: Retten i Nykøbing F. | D25: 47.06 | E25: 42.86 | F25: 52.94 | G25: 78.57 | H25: 55.79268421 | I25: 74.85350877 | J25: 67.36705263 | K25: 84.79461988 | L25: 75.1 | M25: 73.53 | N25: 90.87 | O25: 91.37 | P25: 68.75 | Q25: 74.07 | R25: 81.25 | S25: 88.89 | T25: 75.95101266 | U25: 87.50348214 | V25: 86.07949367 | W25: 94.645
B26: 915 | C26: Retten i Næstved | D26: 16.66944444 | E26: 46.66933333 | F26: 33.32944444 | G26: 53.33333333 | H26: 29.60086643 | I26: 37.94785714 | J26: 49.81779783 | K26: 60.26629464 | L26: 66.94 | M26: 66.65 | N26: 83.57 | O26: 83.22 | P26: 33.33 | Q26: 31.58 | R26: 51.28 | S26: 71.05 | T26: 43.36221239 | U26: 55.31602837 | V26: 63.7139823 | W26: 74.47014184
B27: 916 | C27: Retten i Holbæk | D27: 50 | E27: 27.5862069 | F27: 66.67 | G27: 58.61793103 | H27: 58.41905941 | I27: 54.79479452 | J27: 72.7709901 | K27: 75.34445205 | L27: 73.2 | M27: 69.62 | N27: 88.58 | O27: 87.09 | P27: 44.83 | Q27: 67.86 | R27: 56.666 | S27: 85.71 | T27: 57.142 | U27: 73.68094737 | V27: 79.99857143 | W27: 90.52684211
B28: 917 | C28: Retten i Roskilde | D28: 30.76923077 | E28: 21.43 | F28: 53.84615385 | G28: 42.86 | H28: 38.38496774 | I28: 31.21203822 | J28: 57.41877419 | K28: 48.08770701 | L28: 72.27 | M28: 66.23 | N28: 86 | O28: 81.76 | P28: 46 | Q28: 39.62 | R28: 72 | S28: 69.81 | T28: 40.47666667 | U28: 33.57416058 | V28: 57.14507937 | W28: 52.55854015
B29: 918 | C29: Retten i Hillerød | D29: 56.52 | E29: 21.42571429 | F29: 65.22 | G29: 40.48 | H29: 55.65378261 | I29: 48.31115942 | J29: 72.1753913 | K29: 69.56589372 | L29: 67.02 | M29: 66.98 | N29: 84.73 | O29: 84.89 | P29: 78.85 | Q29: 68.75 | R29: 96.15 | S29: 90.63 | T29: 59.80588235 | U29: 46.8335443 | V29: 79.41372549 | W29: 69.61759494
B30: 919 | C30: Retten i Helsingør | D30: 33.33 | E30: 52.0032 | F30: 55.56 | G30: 67.9968 | H30: 38.34383459 | I30: 50.64467811 | J30: 54.51139098 | K30: 66.94987124 | L30: 70.04 | M30: 64.24 | N30: 83.65 | O30: 83.11 | P30: 63.41 | Q30: 71.15 | R30: 78.05 | S30: 96.15 | T30: 41.55883117 | U30: 72.21977778 | V30: 58.4425974 | W30: 86.66333333
B31: 920 | C31: Retten i Lyngby | D31: 12.76234043 | E31: 45.67950617 | F31: 34.0387234 | G31: 56.78654321 | H31: 31.28678363 | I31: 43.51909535 | J31: 44.44067251 | K31: 56.47750611 | L31: 60.77 | M31: 59.26 | N31: 77.46 | O31: 77.44 | P31: 29.82 | Q31: 38.89 | R31: 56.89189655 | S31: 66.67 | T31: 43.81047619 | U31: 54.44255556 | V31: 60.004 | W31: 71.10966667
B32: 921 | C32: Retten i Glostrup | D32: 14.89446809 | E32: 10.63723404 | F32: 19.14468085 | G32: 14.89042553 | H32: 16.32730159 | I32: 33.6017004 | J32: 32.19968254 | K32: 44.73856275 | L32: 61.61 | M32: 57.57 | N32: 78.7 | O32: 77.43 | P32: 49.49 | Q32: 49.07 | R32: 83.0017 | S32: 79.63 | T32: 51.09108696 | U32: 38.99174312 | V32: 70.11141304 | W32: 62.84440367
B33: 922 | C33: Retten på Frederiksberg | D33: 37.5025 | E33: 35.48645161 | F33: 52.5025 | G33: 45.16290323 | H33: 47.35454039 | I33: 44.47935583 | J33: 62.67303621 | K33: 63.1908589 | L33: 64.59 | M33: 63.26 | N33: 85.86 | O33: 83.3 | P33: 33.65 | Q33: 39.77 | R33: 65.38 | S33: 72.73 | T33: 42.96333333 | U33: 50.82286885 | V33: 62.96207407 | W33: 70.49532787
B34: 923 | C34: Københavns Byret | D34: 46.01513274 | E34: 42.66193333 | F34: 60.1799115 | G34: 57.99826667 | H34: 42.89492647 | I34: 47.0008753 | J34: 62.86765931 | K34: 64.02752998 | L34: 64.98 | M34: 60.29 | N34: 83.69 | O34: 79.87 | P34: 40.35 | Q34: 35.59 | R34: 65.81512821 | S34: 68.64 | T34: 39.43097143 | U34: 47.61714286 | V34: 57.71228571 | W34: 66.13878307
B35: 924 | C35: Retten på Bornholm | D35: - | E35: - | F35: - | G35: - | H35: 75 | I35: 80.00233333 | J35: 79.16666667 | K35: 89.99833333 | L35: 81.4 | M35: 81.48 | N35: 94.57 | O35: 91.01 | P35: 100 | Q35: 57.14 | R35: 100 | S35: 57.14 | T35: 88.23529412 | U35: 76.92 | V35: 94.11764706 | W35: 76.92
B37: 1) Målene for de enkelte sagstyper er opstillet i samarbejde med byretterne. Generelt er målene opstillet i forhold til hovedforhandlede sager.
B38: 2) Ved "tunge" almindelige sager forstås sager, der er behandlet kollegialt, med en værdi på mere end 1 mio. kr. eller rubriceret som forvaltningssag (det offentlige er part eller der er tale om en advokatnævnssag). Ved "Øvrige almindelige sager" forstås almindelige sager, der ikke er "tunge". Boligretssager og småsager inkluderes ikke.
B39: 3) Ved alle almindelige civile sager forstås både sager med og uden hovedforhandling, herunder udeblivelsesdomme, forligte sager, henviste sager og afviste sager, ligesom alle sager med forhandlingsmaksime (almindelige sager, boligretssager og småsager) er inkluderede.
B40: 4) Forældreansvarssager inkluderer hovedforhandlede sager, sager sluttet efter forlig og sager sluttet efter retsmægling.

Sheet Målopf.Foged
B2: MÅLOPFYLDELSE FOGEDSAGER (PROCENT)
B4: EID | C4: Ret | D4: Alm. fogedsager | H4: Særlige fogedsager | L4: Betalingspåkrav
D5: 2011 | E5: 2012 | F5: 2011 | G5: 2012 | H5: 2011 | I5: 2012 | J5: 2011 | K5: 2012 | L5: 2011 | M5: 2012 | N5: 2011 | O5: 2012
D6: <2 MDR. | F6: <4 MDR. | H6: <2 MDR. | J6: <4 MDR. | L6: <2 MDR. | N6: <4 MDR.
C8: MÅL (procent) | D8: 72 | E8: 72 | F8: 93 | G8: 93 | H8: 80 | I8: 80 | J8: 97 | K8: 97 | L8: 55 | M8: 55 | N8: 85 | O8: 85
C9: SAMLET BYRETTERNE | D9: 57.14694273 | E9: 67.34230258 | F9: 85.08257103 | G9: 89.28899774 | H9: 71.41345188 | I9: 79.26750247 | J9: 93.38299556 | K9: 95.14297788 | L9: 57.75168078 | M9: 68.51683201 | N9: 85.42391725 | O9: 89.87477639
C10: 5. BEDSTE RET | D10: 77.37074486 | E10: 78.80591916 | F10: 94.59622553 | G10: 96.2248769 | H10: 89.34828 | I10: 89.26038501 | J10: 98.17916 | K10: 97.63843648 | L10: 76.35722938 | M10: 80.47647588 | N10: 94.14067244 | O10: 96.68842156
B12: 901 | C12: Retten i Hjørring | D12: 67.81879207 | E12: 70.49452833 | F12: 89.92753402 | G12: 94.32054301 | H12: 75.16376 | I12: 79.4628752 | J12: 94.47877 | K12: 96.05055292 | L12: 52.80623844 | M12: 79.47788252 | N12: 86.03006605 | O12: 96.68842156
B13: 902 | C13: Retten i Aalborg | D13: 43.22409347 | E13: 71.87469957 | F13: 78.24771296 | G13: 93.9629739 | H13: 74.97598 | I13: 78.46655791 | J13: 93.3708 | K13: 95.02446982 | L13: 60.19395104 | M13: 76.29446988 | N13: 92.53516163 | O13: 95.17435717
B14: 903 | C14: Retten i Randers | D14: 31.44286487 | E14: 55.59510178 | F14: 86.79706837 | G14: 90.31775121 | H14: 69.19637 | I14: 68.13063063 | J14: 94.51686 | K14: 90.65315315 | L14: 50.40585466 | M14: 69.18107939 | N14: 88.43290156 | O14: 91.91498229
B15: 904 | C15: Retten i Århus | D15: 72.27973776 | E15: 75.61033269 | F15: 91.67184593 | G15: 94.03884637 | H15: 91.86241 | I15: 91.75557711 | J15: 98.17916 | K15: 98.64209505 | L15: 38.21834309 | M15: 67.85950961 | N15: 84.91120419 | O15: 89.39695162
B16: 905 | C16: Retten i Viborg | D16: 52.05511998 | E16: 78.28701229 | F16: 87.34853885 | G16: 95.05611972 | H16: 69.56522 | I16: 76.76266137 | J16: 95.43478 | K16: 97.21946375 | L16: 67.44270644 | M16: 79.08811925 | N16: 93.47035286 | O16: 95.06795265
B17: 906 | C17: Retten i Holstebro | D17: 89.46913367 | E17: 88.51142681 | F17: 97.89036832 | G17: 97.42639489 | H17: 94.47983 | I17: 92.66055046 | J17: 99.15074 | K17: 98.39449541 | L17: 92.87564767 | M17: 92.43498818 | N17: 98.31606218 | O17: 99.15569065
B18: 907 | C18: Retten i Herning | D18: 78.42821359 | E18: 78.80591916 | F18: 94.81944651 | G18: 96.2248769 | H18: 82.33393 | I18: 79.77991747 | J18: 98.15825 | K18: 96.14855571 | L18: 73.2266276 | M18: 83.2007636 | N18: 94.45747469 | O18: 97.42284442
B19: 908 | C19: Retten i Horsens | D19: 72.40287068 | E19: 74.77753299 | F19: 93.29955315 | G19: 94.72229518 | H19: 73.11729 | I19: 83.70607029 | J19: 96.01256 | K19: 95.68690096 | L19: 64.65672867 | M19: 77.54904335 | N19: 89.52459696 | O19: 95.56793412
B20: 909 | C20: Retten i Kolding | D20: 77.37074486 | E20: 73.47562251 | F20: 92.70853126 | G20: 91.42068124 | H20: 89.34828 | I20: 88.18998716 | J20: 98.59846 | K20: 97.36842105 | L20: 66.75662987 | M20: 63.99331662 | N20: 89.00559971 | O20: 90.34252297
B21: 910 | C21: Retten i Esbjerg | D21: 67.66287921 | E21: 75.61505065 | F21: 92.02824049 | G21: 91.6642547 | H21: 89.5633 | I21: 89.26038501 | J21: 97.31491 | K21: 96.35258359 | L21: 72.8173419 | M21: 80.45703404 | N21: 93.13662036 | O21: 93.3111164
B22: 911 | C22: Retten i Sønderborg | D22: 61.75976522 | E22: 68.847981 | F22: 89.36025217 | G22: 92.16152969 | H22: 71.68419 | I22: 77.61006289 | J22: 93.29765 | K22: 94.08805031 | L22: 58.50768768 | M22: 60.46556001 | N22: 88.14397473 | O22: 93.37912612
B23: 912 | C23: Retten i Odense | D23: 57.11362086 | E23: 70.89157859 | F23: 90.27514591 | G23: 92.89123764 | H23: 81.64111 | I23: 81.63919414 | J23: 97.26482 | K23: 97.84798535 | L23: 76.35722938 | M23: 80.47647588 | N23: 93.11749807 | O23: 94.78573569
B24: 913 | C24: Retten i Svendborg | D24: 84.18583535 | E24: 80.36189462 | F24: 96.39830508 | G24: 96.86003193 | H24: 90.11726 | I24: 90.57239057 | J24: 98.65997 | K24: 96.8013468 | L24: 81.12865648 | M24: 76.03255954 | N24: 96.66062646 | O24: 96.98522762
B25: 914 | C25: Retten i Nykøbing F. | D25: 72.73755656 | E25: 77.45658619 | F25: 90.58661926 | G25: 93.28674291 | H25: 77.3672 | I25: 83.90367554 | J25: 95.61201 | K25: 95.05703422 | L25: 45.53867403 | M25: 76.9327467 | N25: 85.78729282 | O25: 93.79844961
B26: 915 | C26: Retten i Næstved | D26: 54.19992398 | E26: 64.63110882 | F26: 81.95236285 | G26: 88.85167053 | H26: 72.32813 | I26: 78.72340426 | J26: 95.08955 | K26: 96.34308511 | L26: 52.23354725 | M26: 62.18314322 | N26: 88.3855543 | O26: 88.03865653
B27: 916 | C27: Retten i Holbæk | D27: 55.07186968 | E27: 67.12795949 | F27: 83.731779 | G27: 88.0110278 | H27: 54.25668 | I27: 61.96581197 | J27: 97.12511 | K27: 95.2991453 | L27: 72.85220207 | M27: 73.56435644 | N27: 92.09007772 | O27: 92.92079208
B28: 917 | C28: Retten i Roskilde | D28: 58.26758679 | E28: 70.24796796 | F28: 84.94124506 | G28: 89.24758286 | H28: 64.17958 | I28: 75.52486188 | J28: 94.44326 | K28: 95.80110497 | L28: 26.51134454 | M28: 56.76429568 | N28: 67.13223477 | O28: 89.69471564
B29: 918 | C29: Retten i Hillerød | D29: 64.4565592 | E29: 64.26087439 | F29: 89.40380468 | G29: 90.15955586 | H29: 86.10402 | I29: 86.84759916 | J29: 98.37737 | K29: 96.97286013 | L29: 69.33173714 | M29: 73.35250419 | N29: 94.14067244 | O29: 96.54924515
B30: 919 | C30: Retten i Helsingør | D30: 64.75058055 | E30: 71.7351894 | F30: 84.1965796 | G30: 88.78140795 | H30: 74.22578 | I30: 86.23566215 | J30: 94.71889 | K30: 96.14181439 | L30: 70.20480298 | M30: 73.09195103 | N30: 90.37261833 | O30: 91.84683511
B31: 920 | C31: Retten i Lyngby | D31: 75.407429 | E31: 83.57793216 | F31: 94.59622553 | G31: 96.62424658 | H31: 86.94678 | I31: 87.78501629 | J31: 97.86317 | K31: 97.63843648 | L31: 83.54087452 | M31: 88.68874172 | N31: 93.75315046 | O31: 96.58278146
B32: 921 | C32: Retten i Glostrup | D32: 42.98614478 | E32: 63.80156659 | F32: 79.40026191 | G32: 87.21537772 | H32: 64.39373 | I32: 83.94973921 | J32: 89.45441 | K32: 96.60976766 | L32: 66.05039418 | M32: 75.76061854 | N32: 87.08860858 | O32: 91.29430666
B33: 922 | C33: Retten på Frederiksberg | D33: 33.34018288 | E33: 52.13314499 | F33: 71.9427601 | G33: 76.20590354 | H33: 60.69679 | I33: 77.39169675 | J33: 89.10375 | K33: 91.65162455 | L33: 47.28277817 | M33: 52.18421442 | N33: 78.22597874 | O33: 78.7946098
B34: 923 | C34: Københavns Byret | D34: 30.34707852 | E34: 39.47612402 | F34: 66.71687669 | G34: 73.74848895 | H34: 55.03101 | I34: 64.40016434 | J34: 87.36516 | K34: 91.29005752 | L34: 21.69268962 | M34: 31.87753662 | N34: 53.08369629 | O34: 65.12263984
B35: 924 | C35: Retten på Bornholm | D35: 89.67109059 | E35: 95.38024165 | F35: 97.74956722 | G35: 99.28926795 | H35: 83.87096 | I35: 91.42857143 | J35: 97.58064 | K35: 98.57142857 | L35: 89.41860465 | M35: 93.90934844 | N35: 96.62790698 | O35: 99.2917847
B37: 1) Målene for de enkelte sagstyper er opstillet i samarbejde med byretterne.

Sheet Sagstid.Straf
B2: GENNEMSNITLIG SAGSBEHANDLINGSTID STRAFFESAGER (DAGE)
B4: EID | C4: Ret | D4: Nævningesager | F4: Domsmandssager | H4: Sager uden domsmænd | J4: Tilståelsessager
D5: 2011 | E5: 2012 | F5: 2011 | G5: 2012 | H5: 2011 | I5: 2012 | J5: 2011 | K5: 2012
C6: 5. BEDSTE RET | D6: 85 | E6: 94 | F6: 89 | G6: 90 | H6: 46 | I6: 25 | J6: 65 | K6: 62
C7: SAMLET BYRETTERNE | D7: 176 | E7: 133.7111111 | F7: 134.981328 | G7: 126.7329052 | H7: 75.38156916 | I7: 34.9619435 | J7: 109.9842539 | K7: 95.05096242
B9: 901 | C9: Retten i Hjørring | D9: 101 | E9: - | F9: 93 | G9: 118 | H9: 52 | I9: 28 | J9: 94 | K9: 71
B10: 902 | C10: Retten i Aalborg | D10: 85 | E10: 94 | F10: 89 | G10: 99 | H10: 50 | I10: 25 | J10: 75 | K10: 96
B11: 903 | C11: Retten i Randers | D11: 129 | E11: 105 | F11: 160 | G11: 133 | H11: 76 | I11: 40 | J11: 116 | K11: 90
B12: 904 | C12: Retten i Århus | D12: 154 | E12: 52 | F12: 187 | G12: 132 | H12: 87 | I12: 32 | J12: 152 | K12: 102
B13: 905 | C13: Retten i Viborg | D13: 77 | E13: - | F13: 110 | G13: 108 | H13: 59 | I13: 28 | J13: 100 | K13: 74
B14: 906 | C14: Retten i Holstebro | D14: 73 | E14: 67 | F14: 99 | G14: 92 | H14: 56 | I14: 40 | J14: 64 | K14: 72
B15: 907 | C15: Retten i Herning | D15: 85 | E15: 224 | F15: 93 | G15: 96 | H15: 52 | I15: 29 | J15: 83 | K15: 72
B16: 908 | C16: Retten i Horsens | D16: 86 | E16: 130 | F16: 75 | G16: 81 | H16: 46 | I16: 31 | J16: 60 | K16: 69
B17: 909 | C17: Retten i Kolding | D17: 185 | E17: 141 | F17: 150 | G17: 161 | H17: 73 | I17: 36 | J17: 118 | K17: 125
B18: 910 | C18: Retten i Esbjerg | D18: 107 | E18: 126 | F18: 134 | G18: 127 | H18: 46 | I18: 32 | J18: 65 | K18: 60
B19: 911 | C19: Retten i Sønderborg | D19: 123 | E19: 103 | F19: 146 | G19: 134 | H19: 111 | I19: 60 | J19: 129 | K19: 94
B20: 912 | C20: Retten i Odense | D20: 108 | E20: 127 | F20: 86 | G20: 99 | H20: 39 | I20: 14 | J20: 64 | K20: 86
B21: 913 | C21: Retten i Svendborg | D21: - | E21: - | F21: 100 | G21: 95 | H21: 54 | I21: 28 | J21: 73 | K21: 74
B22: 914 | C22: Retten i Nykøbing F. | D22: 64 | E22: 135 | F22: 89 | G22: 86 | H22: 46 | I22: 21 | J22: 77 | K22: 62
B23: 915 | C23: Retten i Næstved | D23: 119 | E23: 136 | F23: 175 | G23: 161 | H23: 96 | I23: 41 | J23: 157 | K23: 129
B24: 916 | C24: Retten i Holbæk | D24: 130 | E24: 80 | F24: 129 | G24: 127 | H24: 60 | I24: 27 | J24: 112 | K24: 87
B25: 917 | C25: Retten i Roskilde | D25: 160 | E25: 141 | F25: 161 | G25: 185 | H25: 73 | I25: 65 | J25: 113 | K25: 157
B26: 918 | C26: Retten i Hillerød | D26: 92 | E26: 104 | F26: 94 | G26: 111 | H26: 77 | I26: 30 | J26: 85 | K26: 86
B27: 919 | C27: Retten i Helsingør | D27: 123 | E27: - | F27: 91 | G27: 86 | H27: 53 | I27: 29 | J27: 74 | K27: 57
B28: 920 | C28: Retten i Lyngby | D28: 68 | E28: - | F28: 97 | G28: 90 | H28: 74 | I28: 24 | J28: 80 | K28: 43
B29: 921 | C29: Retten i Glostrup | D29: 131 | E29: 128 | F29: 204 | G29: 138 | H29: 138 | I29: 53 | J29: 146 | K29: 112
B30: 922 | C30: Retten på Frederiksberg | D30: 185 | E30: 177 | F30: 165 | G30: 191 | H30: 66 | I30: 39 | J30: 162 | K30: 167
B31: 923 | C31: Københavns Byret | D31: 279 | E31: 164 | F31: 149 | G31: 128 | H31: 81 | I31: 30 | J31: 136 | K31: 92
B32: 924 | C32: Retten på Bornholm | D32: - | E32: 43 | F32: 37 | G32: 38 | H32: 33 | I32: 15 | J32: 30 | K32: 27

Sheet Sagstid.Civil
B2: GENNEMSNITLIG SAGSBEHANDLINGSTID CIVILE SAGER (DAGE)
B4: EID | C4: Ret | D4: Hovedforhandlede almindelige sager | F4: Hovedforhandlede boligretssager | H4: Hovedforhandlede småsager | J4: Alle civile sager m. forhandlingsmaksime | L4: Alle ægteskabssager | N4: Alle forældre- ansvarssager
D5: 2011 | E5: 2012 | F5: 2011 | G5: 2012 | H5: 2011 | I5: 2012 | J5: 2011 | K5: 2012 | L5: 2011 | M5: 2012 | N5: 2011 | O5: 2012
C6: 5. BEDSTE RET | D6: 492.7288136 | E6: 481 | F6: 406 | G6: 373.0588235 | H6: 251.2631579 | I6: 237.1791045 | J6: 180 | K6: 177 | L6: 100 | M6: 100 | N6: 144 | O6: 133
C7: SAMLET BYRETTERNE | D7: 580.9047619 | E7: 570.2784457 | F7: 536.9069374 | G7: 502.1311475 | H7: 314.9797608 | I7: 298.1234742 | J7: 201.5423916 | K7: 215.7268876 | L7: 136.1166966 | M7: 126.8854369 | N7: 170.5571872 | O7: 159.5860324
B9: 901 | C9: Retten i Hjørring | D9: 588.737931 | E9: 609.3902439 | F9: 430.6 | G9: 270 | H9: 299.5147059 | I9: 310.2739726 | J9: 196 | K9: 201 | L9: 114 | M9: 155 | N9: 178 | O9: 168
B10: 902 | C10: Retten i Aalborg | D10: 549.7346939 | E10: 536.6748768 | F10: 520.0666667 | G10: 422.625 | H10: 266.12 | I10: 264.6122449 | J10: 187 | K10: 192 | L10: 143 | M10: 96 | N10: 138 | O10: 146
B11: 903 | C11: Retten i Randers | D11: 633.4363636 | E11: 585.5026455 | F11: 640.5384615 | G11: 519 | H11: 424.925 | I11: 344.6036036 | J11: 271 | K11: 274 | L11: 150 | M11: 126 | N11: 148 | O11: 155
B12: 904 | C12: Retten i Århus | D12: 585.8815789 | E12: 523.8881119 | F12: 518.6792453 | G12: 528.1111111 | H12: 305.4050633 | I12: 265.556213 | J12: 228 | K12: 216 | L12: 148 | M12: 103 | N12: 193 | O12: 133
B13: 905 | C13: Retten i Viborg | D13: 598.0942408 | E13: 605.3956044 | F13: 611.8 | G13: 462.125 | H13: 236.8450704 | I13: 267.4262295 | J13: 201 | K13: 222 | L13: 169 | M13: 112 | N13: 149 | O13: 155
B14: 906 | C14: Retten i Holstebro | D14: 517.1038961 | E14: 550.6423358 | F14: 363 | G14: 625 | H14: 251.2631579 | I14: 211.2 | J14: 192 | K14: 204 | L14: 144 | M14: 150 | N14: 187 | O14: 170
B15: 907 | C15: Retten i Herning | D15: 504 | E15: 511.8440367 | F15: 288 | G15: 659 | H15: 202.0232558 | I15: 233.6 | J15: 180 | K15: 211 | L15: 134 | M15: 160 | N15: 181 | O15: 176
B16: 908 | C16: Retten i Horsens | D16: 454.2037037 | E16: 523.7974684 | F16: 409.3 | G16: 373.0588235 | H16: 199.0952381 | I16: 224.6666667 | J16: 186 | K16: 190 | L16: 96 | M16: 105 | N16: 149 | O16: 130
B17: 909 | C17: Retten i Kolding | D17: 651.4146341 | E17: 639.8318584 | F17: 546.7073171 | G17: 549.1612903 | H17: 331.0952381 | I17: 305.8 | J17: 211 | K17: 224 | L17: 123 | M17: 87 | N17: 144 | O17: 124
B18: 910 | C18: Retten i Esbjerg | D18: 627.5329949 | E18: 642.9142857 | F18: 300.3 | G18: 432 | H18: 258.3802817 | I18: 237.1791045 | J18: 222 | K18: 250 | L18: 121 | M18: 127 | N18: 164 | O18: 146
B19: 911 | C19: Retten i Sønderborg | D19: 670.3020134 | E19: 602.1081081 | F19: 512.5294118 | G19: 498.6285714 | H19: 372.6666667 | I19: 345.625 | J19: 201 | K19: 232 | L19: 146 | M19: 124 | N19: 165 | O19: 145
B20: 912 | C20: Retten i Odense | D20: 428.4694836 | E20: 445.5172414 | F20: 484.3157895 | G20: 691.4333333 | H20: 207.2153846 | I20: 251.9315068 | J20: 147 | K20: 177 | L20: 99 | M20: 104 | N20: 149 | O20: 179
B21: 913 | C21: Retten i Svendborg | D21: 457.0487805 | E21: 406.5824176 | F21: 380 | G21: 366.1818182 | H21: 351.5903614 | I21: 324.4705882 | J21: 180 | K21: 161 | L21: 102 | M21: 105 | N21: 110 | O21: 117
B22: 914 | C22: Retten i Nykøbing F. | D22: 511.1076923 | E22: 384.1100917 | F22: 457.4666667 | G22: 316 | H22: 267.6774194 | I22: 238.5454545 | J22: 151 | K22: 147 | L22: 100 | M22: 83 | N22: 124 | O22: 98
B23: 915 | C23: Retten i Næstved | D23: 667.1578947 | E23: 581.2368421 | F23: 614.8333333 | G23: 437 | H23: 382.1832061 | I23: 397.4363636 | J23: 193 | K23: 196 | L23: 182 | M23: 150 | N23: 203 | O23: 178
B24: 916 | C24: Retten i Holbæk | D24: 492.7288136 | E24: 481 | F24: 501.25 | G24: 435.8181818 | H24: 261.7272727 | I24: 253.3269231 | J24: 155 | K24: 164 | L24: 164 | M24: 110 | N24: 154 | O24: 140
B25: 917 | C25: Retten i Roskilde | D25: 580.0681818 | E25: 675.0504587 | F25: 659 | G25: 486.0967742 | H25: 284.9375 | I25: 326.1898734 | J25: 180 | K25: 213 | L25: 133 | M25: 142 | N25: 197 | O25: 219
B26: 918 | C26: Retten i Hillerød | D26: 535.2297297 | E26: 616.9745223 | F26: 438.5555556 | G26: 516.7222222 | H26: 324.8275862 | I26: 299.8648649 | J26: 190 | K26: 199 | L26: 82 | M26: 100 | N26: 171 | O26: 175
B27: 919 | C27: Retten i Helsingør | D27: 625.1616766 | E27: 542.7058824 | F27: 582.9166667 | G27: 433.4 | H27: 364.7419355 | I27: 307.4117647 | J27: 195 | K27: 204 | L27: 113 | M27: 99 | N27: 200 | O27: 146
B28: 920 | C28: Retten i Lyngby | D28: 681.4340426 | E28: 580.7106918 | F28: 744.15625 | G28: 540.8947368 | H28: 352.5081967 | I28: 293.7686567 | J28: 239 | K28: 242 | L28: 188 | M28: 153 | N28: 212 | O28: 191
B29: 921 | C29: Retten i Glostrup | D29: 771.7123746 | E29: 695.3764706 | F29: 704.7142857 | G29: 603.2894737 | H29: 463.2484472 | I29: 373.4601227 | J29: 256 | K29: 268 | L29: 127 | M29: 126 | N29: 172 | O29: 185
B30: 922 | C30: Retten på Frederiksberg | D30: 581.0327869 | E30: 612.2 | F30: 453.8474576 | G30: 433.375 | H30: 294.46875 | I30: 320.9266055 | J30: 194 | K30: 207 | L30: 160 | M30: 143 | N30: 204 | O30: 178
B31: 923 | C31: Københavns Byret | D31: 545 | E31: 536.8896104 | F31: 521.9090909 | G31: 473.7261146 | H31: 295.5774648 | I31: 290.492891 | J31: 199 | K31: 227 | L31: 155 | M31: 176 | N31: 209 | O31: 185
B32: 924 | C32: Retten på Bornholm | D32: 359.8181818 | E32: 368 | F32: 406 | G32: 157 | H32: 270.2727273 | I32: 145 | J32: 124 | K32: 151 | L32: 54 | M32: 212 | N32: 108 | O32: 134
B34: 1) Alle civile sager med forhandlingsmaksime inkluderer sagstyperne almindelige sager, boligretssager og småsager.

Sheet Sagstid.Foged
B2: GENNEMSNITLIG SAGSBEHANDLINGSTID FOGEDSAGER (DAGE)
B4: EID | C4: Ret | D4: Alm. fogedsager | F4: Særlige fogedsager | H4: Betalingspåkrav | J4: Tvangsauktioner
D5: 2011 | E5: 2012 | F5: 2011 | G5: 2012 | H5: 2011 | I5: 2012 | J5: 2011 | K5: 2012
C6: 5. BEDSTE RET | D6: 48.64405845 | E6: 46.06627 | F6: 36.42545 | G6: 36.76252 | H6: 51.85348961 | I6: 48.11311 | J6: 76 | K6: 66
C7: SAMLET BYRETTERNE | D7: 75.19237396 | E7: 65.68381909 | F7: 52.82475197 | G7: 49.76678406 | H7: 80.0792543 | I7: 67.02410148 | J7: 97.85074024 | K7: 89.82799946
B9: 901 | C9: Retten i Hjørring | D9: 59.02804965 | E9: 53.4189 | F9: 45.90585 | G9: 41.96367 | H9: 76.09180978 | I9: 49.3065 | J9: 99 | K9: 81
B10: 902 | C10: Retten i Aalborg | D10: 81.29756381 | E10: 52.07433 | F10: 51.6592 | G10: 45.53426 | H10: 61.72036717 | I10: 52.56763 | J10: 107 | K10: 78
B11: 903 | C11: Retten i Randers | D11: 76.65538674 | E11: 66.47012 | F11: 50.91365 | G11: 58.18243 | H11: 73.07960199 | I11: 60.9179 | J11: 108 | K11: 96
B12: 904 | C12: Retten i Århus | D12: 68.09649662 | E12: 53.26422 | F12: 30.48057 | G12: 27.77061 | H12: 87.76239606 | I12: 62.43969 | J12: 101 | K12: 67
B13: 905 | C13: Retten i Viborg | D13: 70.36160608 | E13: 47.28447 | F13: 50.58587 | G13: 42.17676 | H13: 58.25081848 | I13: 48.11311 | J13: 119 | K13: 92
B14: 906 | C14: Retten i Holstebro | D14: 33.32733875 | E14: 33.75932 | F14: 30.00425 | G14: 31.89679 | H14: 33.64948187 | I14: 34.27423 | J14: 79 | K14: 63
B15: 907 | C15: Retten i Herning | D15: 46.15043463 | E15: 46.06627 | F15: 40.08909 | G15: 44.2751 | H15: 51.85348961 | I15: 44.00573 | J15: 90 | K15: 85
B16: 908 | C16: Retten i Horsens | D16: 53.19851049 | E16: 48.22154 | F16: 45.46824 | G16: 45.5607 | H16: 62.68206115 | I16: 50.53742 | J16: 76 | K16: 63
B17: 909 | C17: Retten i Kolding | D17: 50.7865086 | E17: 53.34716 | F17: 34.07008 | G17: 36.76252 | H17: 62.66887417 | I17: 60.69674 | J17: 68 | K17: 66
B18: 910 | C18: Retten i Esbjerg | D18: 57.25041368 | E18: 51.64978 | F18: 36.42545 | G18: 37.68693 | H18: 58.10553597 | I18: 51.27684 | J18: 90 | K18: 78
B19: 911 | C19: Retten i Sønderborg | D19: 66.74565217 | E19: 58.14703 | F19: 52.6922 | G19: 48.64906 | H19: 69.05746954 | I19: 59.26293 | J19: 114 | K19: 108
B20: 912 | C20: Retten i Odense | D20: 66.62457364 | E20: 57.6438 | F20: 43.03647 | G20: 40.90522 | H20: 54.60356789 | I20: 49.30057 | J20: 111 | K20: 92
B21: 913 | C21: Retten i Svendborg | D21: 39.74894068 | E21: 42.87955 | F21: 31.50586 | G21: 33.85353 | H21: 46.23712141 | I21: 50.19445 | J21: 91 | K21: 78
B22: 914 | C22: Retten i Nykøbing F. | D22: 58.32441823 | E22: 52.24089 | F22: 46.22633 | G22: 42.91635 | H22: 78.69364641 | I22: 54.21391 | J22: 84 | K22: 82
B23: 915 | C23: Retten i Næstved | D23: 90.31952363 | E23: 66.24246 | F23: 55.4766 | G23: 44.40226 | H23: 73.50144709 | I23: 74.10583 | J23: 125 | K23: 122
B24: 916 | C24: Retten i Holbæk | D24: 79.91707956 | E24: 71.65932 | F24: 57.70107 | G24: 58.15919 | H24: 62.1955095 | I24: 60.71609 | J24: 109 | K24: 117
B25: 917 | C25: Retten i Roskilde | D25: 78.76805332 | E25: 66.7605 | F25: 55.98091 | G25: 47.94365 | H25: 118.3370536 | I25: 77.0217 | J25: 89 | K25: 85
B26: 918 | C26: Retten i Hillerød | D26: 69.77698997 | E26: 62.05107 | F26: 36.61663 | G26: 36.90292 | H26: 58.22771268 | I26: 49.57273 | J26: 69 | K26: 68
B27: 919 | C27: Retten i Helsingør | D27: 80.56226998 | E27: 66.99364 | F27: 56.41712 | G27: 42.36392 | H27: 60.74306365 | I27: 58.72623 | J27: 110 | K27: 97
B28: 920 | C28: Retten i Lyngby | D28: 48.64405845 | E28: 45.55985 | F28: 36.59494 | G28: 44.61563 | H28: 45.5353069 | I28: 37.52927 | J28: 61 | K28: 59
B29: 921 | C29: Retten i Glostrup | D29: 86.84454431 | E29: 75.95509 | F29: 59.25515 | G29: 50.88739 | H29: 70.87386096 | I29: 58.69334 | J29: 98 | K29: 79
B30: 922 | C30: Retten på Frederiksberg | D30: 111.6069617 | E30: 107.3468 | F30: 66.51472 | G30: 63.46909 | H30: 90.29638554 | I30: 89.21383 | J30: 103 | K30: 118
B31: 923 | C31: Københavns Byret | D31: 119.5509634 | E31: 109.122 | F31: 71.7687 | G31: 70.83587 | H31: 203.9628906 | I31: 155.8017 | J31: 118 | K31: 120
B32: 924 | C32: Retten på Bornholm | D32: 39.08944028 | E32: 27.81237 | F32: 41.30645 | G32: 29.71428 | H32: 37.95116279 | I32: 31.87111 | J32: 65 | K32: 62

Sheet Sagstid.Skifte
B2: GENNEMSNITLIG SAGSBEHANDLINGSTID SKIFTESAGER (DAGE)
B4: EID | C4: Ret | D4: Boudlæg | F4: Uskiftet bo | H4: Privat skifte | J4: Forenklet privat skifte
D5: 2011 | E5: 2012 | F5: 2011 | G5: 2012 | H5: 2011 | I5: 2012 | J5: 2011 | K5: 2012
C6: 5. BEDSTE RET | D6: 29.32 | E6: 30.47 | F6: 59.07 | G6: 67.1 | H6: 346.07 | I6: 337.94 | J6: 53.46 | K6: 51.99
C7: SAMLET BYRETTERNE | D7: 37.99235341 | E7: 38.19584253 | F7: 76.27811949 | G7: 73.90347645 | H7: 362.4446844 | I7: 354.1320223 | J7: 62.15621875 | K7: 60.59464855
B9: 901 | C9: Retten i Hjørring | D9: 63.54 | E9: 55.13 | F9: 88.33 | G9: 80.98 | H9: 390.39 | I9: 379.52 | J9: 76.97 | K9: 76.28
B10: 902 | C10: Retten i Aalborg | D10: 33.47 | E10: 37.12 | F10: 58.6 | G10: 67.1 | H10: 355.45 | I10: 328.77 | J10: 54.71 | K10: 57.17
B11: 903 | C11: Retten i Randers | D11: 45.74 | E11: 49.95 | F11: 80.72 | G11: 72.64 | H11: 378.62 | I11: 373 | J11: 67.31 | K11: 64.3
B12: 904 | C12: Retten i Århus | D12: 39.97 | E12: 39.82 | F12: 83 | G12: 78.44 | H12: 378.63 | I12: 366.02 | J12: 53.89 | K12: 52.69
B13: 905 | C13: Retten i Viborg | D13: 47.73 | E13: 37.41 | F13: 92.56 | G13: 78.08 | H13: 377.52 | I13: 361.45 | J13: 91.05 | K13: 61.23
B14: 906 | C14: Retten i Holstebro | D14: 39.84 | E14: 43.46 | F14: 62.78 | G14: 59.52 | H14: 354.41 | I14: 347.15 | J14: 54.99 | K14: 59.28
B15: 907 | C15: Retten i Herning | D15: 39.85 | E15: 46.87 | F15: 68.72 | G15: 77.43 | H15: 334.92 | I15: 337.94 | J15: 53.46 | K15: 56.44
B16: 908 | C16: Retten i Horsens | D16: 38.44 | E16: 39.87 | F16: 59.07 | G16: 70.71 | H16: 376.94 | I16: 391.12 | J16: 56.85 | K16: 61.38
B17: 909 | C17: Retten i Kolding | D17: 42.16 | E17: 49.57 | F17: 73.79 | G17: 82.45 | H17: 341.94 | I17: 348.45 | J17: 70.44 | K17: 83.85
B18: 910 | C18: Retten i Esbjerg | D18: 29.32 | E18: 29.34 | F18: 71.53 | G18: 70.08 | H18: 336.38 | I18: 345.21 | J18: 48.06 | K18: 56.2
B19: 911 | C19: Retten i Sønderborg | D19: 36.24 | E19: 35.9 | F19: 72.47 | G19: 69.2 | H19: 351.46 | I19: 331.14 | J19: 58.37 | K19: 54.01
B20: 912 | C20: Retten i Odense | D20: 41.23 | E20: 41.32 | F20: 61.38 | G20: 72.3 | H20: 364.45 | I20: 337.38 | J20: 57.82 | K20: 63.71
B21: 913 | C21: Retten i Svendborg | D21: 32.99 | E21: 30.47 | F21: 67.46 | G21: 68.2 | H21: 353.6 | I21: 327.73 | J21: 55.93 | K21: 51.99
B22: 914 | C22: Retten i Nykøbing F. | D22: 34.76 | E22: 34.37 | F22: 47.35 | G22: 36.95 | H22: 346.07 | I22: 348.51 | J22: 48.26 | K22: 39.4
B23: 915 | C23: Retten i Næstved | D23: 46.47 | E23: 40.63 | F23: 44.06 | G23: 47.61 | H23: 365.57 | I23: 359.25 | J23: 77.75 | K23: 59.88
B24: 916 | C24: Retten i Holbæk | D24: 27.83 | E24: 29.91 | F24: 86.28 | G24: 91.94 | H24: 353.89 | I24: 356.65 | J24: 50.2 | K24: 51.21
B25: 917 | C25: Retten i Roskilde | D25: 41.99 | E25: 42.87 | F25: 83.97 | G25: 85.36 | H25: 383.94 | I25: 368.96 | J25: 67.32 | K25: 71.01
B26: 918 | C26: Retten i Hillerød | D26: 31.2 | E26: 34.17 | F26: 100.07 | G26: 71.54 | H26: 350.24 | I26: 350.43 | J26: 67.87 | K26: 56.08
B27: 919 | C27: Retten i Helsingør | D27: 29.28 | E27: 27.86 | F27: 66.6 | G27: 70.84 | H27: 357.73 | I27: 349.49 | J27: 57.17 | K27: 44.11
B28: 920 | C28: Retten i Lyngby | D28: 36.35 | E28: 32.76 | F28: 104.09 | G28: 81.06 | H28: 384.54 | I28: 374.05 | J28: 59.91 | K28: 70.58
B29: 921 | C29: Retten i Glostrup | D29: 37.92 | E29: 35.13 | F29: 95.27 | G29: 89.38 | H29: 358.84 | I29: 339.21 | J29: 68.09 | K29: 66.17
B30: 922 | C30: Retten på Frederiksberg | D30: 33.62 | E30: 39.09 | F30: 97.08 | G30: 78.85 | H30: 357.99 | I30: 367.77 | J30: 61.3 | K30: 59.32
B31: 923 | C31: Københavns Byret | D31: 29.32 | E31: 31.77 | F31: 105.97 | G31: 99.21 | H31: 361.3 | I31: 356.78 | J31: 77.28 | K31: 70.26
B32: 924 | C32: Retten på Bornholm | D32: 17 | E32: 18.4 | F32: 29.47 | G32: 28.9 | H32: 329.93 | I32: 341.46 | J32: 26.57 | K32: 19.65

Sheet HR-nøgletal_lønsum
B2: UDVALGTE HR-NØGLETAL
B4: EID | C4: Ret | D4: Gnst. antal sygedage pr. ansat | F4: Personaleomsætning (%) | H4: Lønsumsforbrug (mio.)
D5: 2011 | E5: 2012 | F5: 2011 | G5: 2012 | H5: 2011 | I5: 2012
C6: 5. BEDSTE RET | D6: 7.694369947 | E6: 5.1176259
C7: SAMLET BYRETTERNE | D7: 9.873784262 | E7: 8.387945061 | F7: 10.5 | G7: 8.8 | H7: 34.1 | I7: 33.42874242
B9: 901 | C9: Retten i Hjørring | D9: 9.428445554 | E9: 10.68413379 | F9: 13.3 | G9: 10.2 | H9: 25.84077727 | I9: 25.04165897
B10: 902 | C10: Retten i Aalborg | D10: 7.694369947 | E10: 9.639258459 | F10: 11.1 | G10: 9.4 | H10: 38.77436805 | I10: 37.34694476
B11: 903 | C11: Retten i Randers | D11: 8.363368344 | E11: 5.013229315 | F11: 6.1 | G11: 13.7 | H11: 28.27830635 | I11: 28.96309771
B12: 904 | C12: Retten i Århus | D12: 14.10428419 | E12: 8.124555932 | F12: 11.4 | G12: 5.9 | H12: 43.96941009 | I12: 43.63171909
B13: 905 | C13: Retten i Viborg | D13: 7.511495338 | E13: 9.329235244 | F13: 10.2 | G13: 14.2 | H13: 26.64360749 | I13: 26.08492004
B14: 906 | C14: Retten i Holstebro | D14: 8.727287925 | E14: 8.955644828 | F14: 11.9 | G14: 20.3 | H14: 21.76629581 | I14: 20.61569091
B15: 907 | C15: Retten i Herning | D15: 13.77857524 | E15: 5.1176259 | F15: 17.4 | G15: 2.4 | H15: 21.11471095 | I15: 20.03129257
B16: 908 | C16: Retten i Horsens | D16: 9.629136588 | E16: 7.42417316 | F16: 12.5 | G16: 9 | H16: 25.08928797 | I16: 24.06794401
B17: 909 | C17: Retten i Kolding | D17: 8.84788215 | E17: 7.424129795 | F17: 6.1 | G17: 12.8 | H17: 36.12998449 | I17: 35.13474569
B18: 910 | C18: Retten i Esbjerg | D18: 9.895940678 | E18: 5.016104138 | F18: 12.2 | G18: 10.8 | H18: 27.40345038 | I18: 25.86329229
B19: 911 | C19: Retten i Sønderborg | D19: 3.147845732 | E19: 4.275216144 | F19: 12.9 | G19: 11.2 | H19: 32.31378702 | I19: 33.17015754
B20: 912 | C20: Retten i Odense | D20: 7.740179856 | E20: 9.308874967 | F20: 20.8 | G20: 7.2 | H20: 42.19547545 | I20: 39.53978133
B21: 913 | C21: Retten i Svendborg | D21: 7.947394239 | E21: 7.633832999 | F21: 13.5 | G21: 14.3 | H21: 21.33413431 | I21: 19.79365595
B22: 914 | C22: Retten i Nykøbing F. | D22: 3.800231982 | E22: 5.009008356 | F22: 5.9 | G22: 2.5 | H22: 27.75952561 | I22: 27.22318931
B23: 915 | C23: Retten i Næstved | D23: 9.741198571 | E23: 7.919610949 | F23: 8.7 | G23: 9.9 | H23: 33.44395386 | I23: 32.37834381
B24: 916 | C24: Retten i Holbæk | D24: 11.06745032 | E24: 9.10569205 | F24: 3.7 | G24: 10.3 | H24: 24.06054675 | I24: 23.85466902
B25: 917 | C25: Retten i Roskilde | D25: 10.19422569 | E25: 10.01963101 | F25: 8.1 | G25: 12.9 | H25: 40.35202857 | I25: 40.65059475
B26: 918 | C26: Retten i Hillerød | D26: 10.79429186 | E26: 7.49647355 | F26: 15.7 | G26: 7.2 | H26: 28.1485882 | I26: 27.20830147
B27: 919 | C27: Retten i Helsingør | D27: 8.109434569 | E27: 7.989385796 | F27: 11 | G27: 10.1 | H27: 27.2421141 | I27: 26.4579457
B28: 920 | C28: Retten i Lyngby | D28: 14.42978602 | E28: 8.67990897 | F28: 11.4 | G28: 8.8 | H28: 32.28066977 | I28: 31.84775109
B29: 921 | C29: Retten i Glostrup | D29: 11.77792094 | E29: 13.05476168 | F29: 11.7 | G29: 4.3 | H29: 61.81072972 | I29: 59.06418399
B30: 922 | C30: Retten på Frederiksberg | D30: 16.41862865 | E30: 13.0568708 | F30: 6.9 | G30: 7.9 | H30: 41.59169201 | I30: 42.12214642
B31: 923 | C31: Københavns Byret | D31: 9.919239409 | E31: 8.516524098 | F31: 7 | G31: 4.3 | H31: 102.5840725 | I31: 104.6922399
B32: 924 | C32: Retten på Bornholm | D32: 7.217079086 | E32: 7.374329829 | F32: 6.4 | G32: 13.3 | H32: 7.34 | I32: 7.50555179
B34: 1) Tallene er ekskl. ansatte under socialt kapitel. Deltidssygdom er inkluderet, men barns sygdom, omsorgsdage og særlige feriedage indgår ikke.
B35: 2) Styrelsen har rettet op på tallene, der er trukket i ISOLA. Således havde ISOLA kun medtaget 14 byretter, idet der manglede data for 2. kvartal for de sidste 10 byretter. Styrelsen har indhentet oplysninger om 2. kvartal 2012 manuelt og indregnet dem i en fraværsmodel. Ligeledes har 3 retter formentlig for lave fraværstal for 1. kvartal 2012, idet marts ikke er talt med.
B36: 3) Lønsumsforbruget inkluderer egentlig løn, over- og merarbejde, stævningsmænd, refusioner og pensionsbidrag og er i faste priser.

Sheet Årsværk_Pers.kat
B2: ÅRSVÆRKSFORBRUG 2011 OG 2012
B4: EID | C4: Ret | D4: Jur | E4: Kon | F4: Elev | G4: Fleks | H4: Øvr. | I4: I ALT | J4: Jur | K4: Kon | L4: Elev | M4: Fleks | N4: Øvr. | O4: I ALT | P4: Jur | Q4: Kon | R4: Elev | S4: Fleks | T4: Øvr. | U4: I ALT | V4: Jur | W4: Kon | X4: Elev | Y4: Fleks | Z4: Øvr. | AA4: I ALT
D5: 2011 | J5: 2012 | P5: 2011 | V5: 2012
D6: - absolutte tal - | J6: - absolutte tal - | P6: - indeks - | V6: - indeks -
C8: SAMLET BYRETTERNE | D8: 459.97151 | E8: 970.17115 | F8: 97.17553 | G8: 65.82155 | H8: 98.4541 | I8: 1691.59384 | J8: 461.05088 | K8: 907.40026 | L8: 85.02164 | M8: 56.91431 | N8: 95.25206 | O8: 1605.63915 | P8: 100 | Q8: 100 | R8: 100 | S8: 100 | T8: 100 | U8: 100 | V8: =J8*100/D8 -> 100.2346602 | W8: =K8*100/E8 -> 93.52991583 | X8: =L8*100/F8 -> 87.49284928 | Y8: 86.46759306 | Z8: 96.74768242 | AA8: 94.91871583
B10: 901 | C10: Retten i Hjørring | D10: 13.34803 | E10: 33.06976 | F10: 4.25637 | G10: 5.87855 | H10: 3.24255 | I10: 59.79526 | J10: 14.10477 | K10: 28.56927 | L10: 3.7465 | M10: 4.64599 | N10: 3.04485 | O10: =J10+K10+L10+M10+N10 -> 54.11138 | P10: 100 | Q10: 100 | R10: 100 | S10: 100 | T10: 100 | U10: 100 | V10: =J10*100/D10 -> 105.669301 | W10: =K10*100/E10 -> 86.39092028 | X10: =L10*100/F10 -> 88.02101321 | Y10: 79.03292479 | Z10: 93.90294675 | AA10: 90.49443049
B11: 902 | C11: Retten i Aalborg | D11: 22.18722 | E11: 48.742 | F11: 3.48386 | G11: 2.58762 | H11: 3.50828 | I11: 80.50898 | J11: 20.59074 | K11: 45.10918 | L11: 3.87888 | M11: 1.67289 | N11: 3.78775 | O11: =J11+K11+L11+M11+N11 -> 75.03944 | P11: 100 | Q11: 100 | R11: 100 | S11: 100 | T11: 100 | U11: 100 | V11: =J11*100/D11 -> 92.80450638 | W11: 92.54683846 | X11: 111.3385727 | Y11: 64.64975537 | Z11: 107.9660118 | AA11: 93.20629823
B12: 903 | C12: Retten i Randers | D12: 16.642 | E12: 31.602 | F12: 3.97813 | G12: 2.01327 | H12: 3.93487 | I12: 58.17027 | J12: 16.67219 | K12: 31.22478 | L12: 3.54081 | M12: 2.00006 | N12: 4.10136 | O12: 57.5392 | P12: 100 | Q12: 100 | R12: 100 | S12: 100 | T12: 100 | U12: 100 | V12: 100.1814085 | W12: 98.80634137 | X12: 89.0068952 | Y12: 99.34385353 | Z12: 104.2311436 | AA12: 98.91513311
B13: 904 | C13: Retten i Århus | D13: 26.56876 | E13: 50.61565 | F13: 4.1965 | G13: 3.00009 | H13: 5.62105 | I13: 90.00205 | J13: 27.44079 | K13: 50.21494 | L13: 3.00009 | M13: 3.4045 | N13: 5.60046 | O13: 89.66078 | P13: 100 | Q13: 100 | R13: 100 | S13: 100 | T13: 100 | U13: 100 | V13: 103.282163 | W13: 99.20832786 | X13: 71.49028953 | Y13: 113.4799289 | Z13: 99.63369833 | AA13: 99.62081975
B14: 905 | C14: Retten i Viborg | D14: 15.1701 | E14: 30.18242 | F14: 4.24273 | G14: 2.50961 | H14: 3.09173 | I14: 55.19659 | J14: 15.22501 | K14: 30.18385 | L14: 4.11538 | M14: 2.00006 | N14: 3.01716 | O14: 54.54146 | P14: 100 | Q14: 100 | R14: 100 | S14: 100 | T14: 100 | U14: 100 | V14: 100.361962 | W14: 100.0047379 | X14: 96.9983949 | Y14: 79.69604839 | Z14: 97.58808175 | AA14: 98.81309697
B15: 906 | C15: Retten i Holstebro | D15: 11.27 | E15: 23.056 | F15: 2.89081 | G15: 5.50015 | H15: 3.72407 | I15: 46.44103 | J15: 10.21529 | K15: 21.61701 | L15: 2.14111 | M15: 5.71265 | N15: 3.37466 | O15: 43.06072 | P15: 100 | Q15: 100 | R15: 100 | S15: 100 | T15: 100 | U15: 100 | V15: 90.64143744 | W15: 93.7587179 | X15: 74.0660922 | Y15: 103.863531 | Z15: 90.6175233 | AA15: 92.72128547
B16: 907 | C16: Retten i Herning | D16: 11.84873 | E16: 23.57106 | F16: 3.51837 | G16: 0.90293 | H16: 2.68506 | I16: 42.52615 | J16: 11.80635 | K16: 21.44495 | L16: 2.59935 | M16: 0 | N16: 3.06506 | O16: 38.91571 | P16: 100 | Q16: 100 | R16: 100 | S16: 100 | T16: 100 | U16: 100 | V16: 99.64232454 | W16: 90.97999835 | X16: 73.87938165 | Y16: 0 | Z16: 114.1523839 | AA16: 91.51007086
B17: 908 | C17: Retten i Horsens | D17: 14.38903 | E17: 26.41923 | F17: 4.79205 | G17: 4.71815 | H17: 3.09207 | I17: 53.41053 | J17: 14.55331 | K17: 24.84131 | L17: 4.08032 | M17: 3.62058 | N17: 2.99239 | O17: 50.08791 | P17: 100 | Q17: 100 | R17: 100 | S17: 100 | T17: 100 | U17: 100 | V17: 101.1417031 | W17: 94.02738081 | X17: 85.14769253 | Y17: 76.7372805 | Z17: 96.77626962 | AA17: 93.77909188
B18: 909 | C18: Retten i Kolding | D18: 20.54952 | E18: 45.06554 | F18: 4.74417 | G18: 3.00296 | H18: 3.32531 | I18: 76.6875 | J18: 20.86366 | K18: 37.06553 | L18: 3.0485 | M18: 2.75624 | N18: 3.13261 | O18: 66.86654 | P18: 100 | Q18: 100 | R18: 100 | S18: 100 | T18: 100 | U18: 100 | V18: 101.5286975 | W18: 82.24805472 | X18: 64.25781538 | Y18: 91.78410635 | Z18: 94.20505156 | AA18: 87.19353219
B19: 910 | C19: Retten i Esbjerg | D19: 15.1442 | E19: 32.03157 | F19: 3.74224 | G19: 2.81389 | H19: 2.50006 | I19: 56.23196 | J19: 15.25467 | K19: 30.38967 | L19: 2.46076 | M19: 3.71055 | N19: 2.2123 | O19: 54.02795 | P19: 100 | Q19: 100 | R19: 100 | S19: 100 | T19: 100 | U19: 100 | V19: 100.7294542 | W19: 94.8741195 | X19: 65.75633845 | Y19: 131.8654958 | Z19: 88.48987624 | AA19: 96.08050297
B20: 911 | C20: Retten i Sønderborg | D20: 15.411 | E20: 36.905 | F20: 4.01558 | G20: 1.00003 | H20: 5.25404 | I20: 62.58565 | J20: 17.06251 | K20: 36.23841 | L20: 3.97508 | M20: 0.99122 | N20: 3.80041 | O20: 62.06763 | P20: 100 | Q20: 100 | R20: 100 | S20: 100 | T20: 100 | U20: 100 | V20: 110.7164363 | W20: 98.19376778 | X20: 98.99142839 | Y20: 99.11902643 | Z20: 72.33309986 | AA20: 99.17230228
B21: 912 | C21: Retten i Odense | D21: 24.26146 | E21: 52.27552 | F21: 3.89836 | G21: 4.02736 | H21: 4.72487 | I21: 89.18757 | J21: 22.50138 | K21: 47.21948 | L21: 2.62713 | M21: 2.64824 | N21: 4.77143 | O21: 79.76766 | P21: 100 | Q21: 100 | R21: 100 | S21: 100 | T21: 100 | U21: 100 | V21: 92.74536652 | W21: 90.32809238 | X21: 67.39064632 | Y21: 65.7562274 | Z21: 100.9854239 | AA21: 89.43809098
B22: 913 | C22: Retten i Svendborg | D22: 12.16381 | E22: 26.86367 | F22: 4.24115 | G22: 1.00003 | H22: 2.36069 | I22: 46.62935 | J22: 10.24366 | K22: 22.38851 | L22: 3.44985 | M22: 0.91669 | N22: 3.01963 | O22: 40.01834 | P22: 100 | Q22: 100 | R22: 100 | S22: 100 | T22: 100 | U22: 100 | V22: 84.2142388 | W22: 83.34121883 | X22: 81.34232461 | Y22: 91.66625001 | Z22: 127.9130254 | AA22: 85.82221283
B23: 914 | C23: Retten i Nykøbing F. | D23: 15.11914 | E23: 36.06329 | F23: 2.13571 | G23: 0.30619 | H23: 4.09439 | I23: 57.71872 | J23: 14.72243 | K23: 33.51816 | L23: 2.22543 | M23: 0.20838 | N23: 3.56414 | O23: 54.23854 | P23: 100 | Q23: 100 | R23: 100 | S23: 100 | T23: 100 | U23: 100 | V23: 97.37610737 | W23: 92.94260174 | X23: 104.2009449 | Y23: 68.05578236 | Z23: 87.0493529 | AA23: 93.97044841
B24: 915 | C24: Retten i Næstved | D24: 19.95737 | E24: 40.2327 | F24: 4.28792 | G24: 3.04111 | H24: 4.43649 | I24: 71.95559 | J24: 20.10287 | K24: 38.25697 | L24: 3.89894 | M24: 3.29384 | N24: 4.19783 | O24: 69.75045 | P24: 100 | Q24: 100 | R24: 100 | S24: 100 | T24: 100 | U24: 100 | V24: 100.729054 | W24: 95.08924333 | X24: 90.92846881 | Y24: 108.3104524 | Z24: 94.62052208 | AA24: 96.9354153
B25: 916 | C25: Retten i Holbæk | D25: 12.96697 | E25: 31.22812 | F25: 3.06095 | G25: 3.00009 | H25: 2.59192 | I25: 52.84805 | J25: 13.01914 | K25: 28.78562 | L25: 2.99503 | M25: 3.00009 | N25: 2.47674 | O25: 50.27662 | P25: 100 | Q25: 100 | R25: 100 | S25: 100 | T25: 100 | U25: 100 | V25: 100.4023299 | W25: 92.17852372 | X25: 97.84642023 | Y25: 100 | Z25: 95.55619001 | AA25: 95.1342954
B26: 917 | C26: Retten i Roskilde | D26: 20.991 | E26: 50.15184 | F26: 5.69283 | G26: 1.00003 | H26: 4.09721 | I26: 81.93291 | J26: 22.17122 | K26: 46.84143 | L26: 3.07141 | M26: 1.00003 | N26: 4.09457 | O26: 77.17866 | P26: 100 | Q26: 100 | R26: 100 | S26: 100 | T26: 100 | U26: 100 | V26: 105.6225049 | W26: 93.39922523 | X26: 53.95225222 | Y26: 100 | Z26: 99.93556591 | AA26: 94.19738662
B27: 918 | C27: Retten i Hillerød | D27: 15.51429 | E27: 31.81079 | F27: 4.37167 | G27: 4.03952 | H27: 4.2022 | I27: 59.93847 | J27: 14.99594 | K27: 27.85588 | L27: 3.83042 | M27: 2.75006 | N27: 4.39316 | O27: 53.82546 | P27: 100 | Q27: 100 | R27: 100 | S27: 100 | T27: 100 | U27: 100 | V27: 96.65888674 | W27: 87.56739459 | X27: 87.61914783 | Y27: 68.07888066 | Z27: 104.5442863 | AA27: 89.80119112
B28: 919 | C28: Retten i Helsingør | D28: 16.67005 | E28: 30.65085 | F28: 4.08111 | G28: 4.93848 | H28: 3.15423 | I28: 59.49472 | J28: 15.51454 | K28: 28.7663 | L28: 4.20646 | M28: 2.90801 | N28: 2.89246 | O28: 54.28777 | P28: 100 | Q28: 100 | R28: 100 | S28: 100 | T28: 100 | U28: 100 | V28: 93.06834713 | W28: 93.85155713 | X28: 103.0714683 | Y28: 58.88471756 | Z28: 91.70098566 | AA28: 91.24804689
B29: 920 | C29: Retten i Lyngby | D29: 18.96953 | E29: 37.24601 | F29: 2.56072 | G29: 2.20303 | H29: 3.74952 | I29: 64.72881 | J29: 19.85793 | K29: 33.78184 | L29: 3.05346 | M29: 0.42 | N29: 4.0061 | O29: 61.11933 | P29: 100 | Q29: 100 | R29: 100 | S29: 100 | T29: 100 | U29: 100 | V29: 104.6833 | W29: 90.69921852 | X29: 119.2422444 | Y29: 19.06465187 | Z29: 106.8430092 | AA29: 94.42368862
B30: 921 | C30: Retten i Glostrup | D30: 35.62068 | E30: 77.10199 | F30: 5.24318 | G30: 3.33831 | H30: 9.58157 | I30: 130.88573 | J30: 35.24743 | K30: 70.09358 | L30: 4.92971 | M30: 3.89924 | N30: 8.16139 | O30: 122.33135 | P30: 100 | Q30: 100 | R30: 100 | S30: 100 | T30: 100 | U30: 100 | V30: 98.95215364 | W30: 90.91020867 | X30: 94.02137634 | Y30: 116.8028134 | Z30: 85.17800319 | AA30: 93.46423785
B31: 922 | C31: Retten på Frederiksberg | D31: 23.5809 | E31: 50.499 | F31: 3.40913 | G31: 3.00009 | H31: 5.13298 | I31: 85.6221 | J31: 25.54098 | K31: 48.4444 | L31: 3.99452 | M31: 3.00009 | N31: 4.97794 | O31: 85.95793 | P31: 100 | Q31: 100 | R31: 100 | S31: 100 | T31: 100 | U31: 100 | V31: 108.3121509 | W31: 95.93140458 | X31: 117.1712431 | Y31: 100 | Z31: 96.97953236 | AA31: 100.3922235
B32: 923 | C32: Københavns Byret | D32: 57.94189 | E32: 116.4215 | F32: 8.25537 | G32: 2.00006 | H32: 9.14985 | I32: 193.76867 | J32: 59.44318 | K32: 115.9395 | L32: 8.07091 | M32: 2.3549 | N32: 9.49094 | O32: 195.29943 | P32: 100 | Q32: 100 | R32: 100 | S32: 100 | T32: 100 | U32: 100 | V32: 102.591027 | W32: 99.58598712 | X32: 97.76557562 | Y32: 117.7414678 | Z32: 103.7278207 | AA32: 100.7899936
B33: 924 | C33: Retten på Bornholm | D33: 3.68583 | E33: 8.36564 | F33: 2.07662 | G33: 0 | H33: 1.19909 | I33: 15.32718 | J33: 3.90089 | K33: 8.60969 | L33: 2.08159 | M33: 0 | N33: 1.07672 | O33: 15.66889 | P33: 100 | Q33: 100 | R33: 100 | S33: - | T33: 100 | U33: 100 | V33: 105.8347781 | W33: 102.9172902 | X33: 100.2393312 | Y33: - | Z33: 89.79476103 | AA33: 102.2294382
B35: 1) Det opgjorte årsværksforbrug er inkl. de korrektioner, der foretages som led i produktivitetsberegningen, hvorfor det ikke kan stemmes af i forhold til eksempelvis prognoseværktøjet SOL.

Sheet Årsværk_Sagsområder
B2: ÅRSVÆRKSFORBRUG DE ENKELTE SAGSOMRÅDER I 2012
B4: EID | C4: Ret | E4: Straf | G4: Civil | I4: Foged | K4: Skifte | M4: Notarial
E5: Årsværk | F5: % | G5: Årsværk | H5: % | I5: Årsværk | J5: % | K5: Årsværk | L5: % | M5: Årsværk | N5: %
C7: SAMLET BYRETTERNE | D7: Jurister | E7: 163.2528085 | F7: 0.3540884869 | G7: 171.7033794 | H7: 0.3724174203 | I7: 49.12744177 | J7: 0.1065553584 | K7: 41.11270403 | L7: 0.08917172878 | M7: 0.3628402338 | N7: 0.000786985232
D8: Kontor | E8: 198.3475837 | F8: 0.2185888549 | G8: 173.5047508 | H8: 0.1912108233 | I8: 208.8492999 | J8: 0.2301622659 | K8: 149.6864109 | L8: 0.1649618338 | M8: 12.26781101 | N8: 0.01351973495
D9: Elev | E9: 17.75874706 | F9: 0.2088732593 | G9: 17.45151534 | H9: 0.2052596885 | I9: 18.95387049 | J9: 0.2229299563 | K9: 17.62364071 | L9: 0.2072841774 | M9: 0.02108802199 | N9: 0.0002480312305
D10: Fleks | E10: 6.67253917 | F10: 0.1193351532 | G10: 7.779297455 | H10: 0.1391289927 | I10: 10.4722576 | J10: 0.1872912894 | K10: 6.224606181 | L10: 0.1113240872 | M10: 0.9197674494 | N10: 0.01644959837
D11: Øvrige | E11: 5.0298668 | F11: 0.05280585848 | G11: 4.052876305 | H11: 0.04254896224 | I11: 5.076280046 | J11: 0.05329312611 | K11: 0.8070335786 | L11: 0.008472610237 | M11: 0.1504751805 | N11: 0.001579757755
B13: 901 | C13: Retten i Hjørring | D13: Jurister | E13: 4.189118898 | F13: 0.2970001566 | G13: 5.732694152 | H13: 0.4064365567 | I13: 1.204290416 | J13: 0.08538178336 | K13: 1.598012549 | L13: 0.1132958956 | M13: 0.0009277912486 | N13: 6.577854503e-05
B14: 901 | C14: Retten i Hjørring | D14: Kontor | E14: 5.744600306 | F14: 0.201076202 | G14: 5.601160656 | H14: 0.1960554349 | I14: 7.606945414 | J14: 0.2662632057 | K14: 5.382793091 | L14: 0.1884119927 | M14: 0.1678796281 | N14: 0.005876230934
B15: 901 | C15: Retten i Hjørring | D15: Elev | E15: 0.9255759469 | F15: 0.2470508333 | G15: 0.9378176523 | H15: 0.2503183377 | I15: 0.8954590232 | J15: 0.2390121509 | K15: 0.95203371 | L15: 0.254112828 | M15: 0 | N15: 0
B16: 901 | C16: Retten i Hjørring | D16: Fleks | E16: 1.559960446 | F16: 0.3357649169 | G16: 1.525835929 | H16: 0.328419977 | I16: 0.9068662161 | J16: 0.1951933207 | K16: 0 | L16: 0 | M16: 0.3912923571 | N16: 0.08422152374
B17: 901 | C17: Retten i Hjørring | D17: Øvrige | E17: 0.03902313766 | F17: 0.01281611168 | G17: 0 | H17: 0 | I17: 0.05923081586 | J17: 0.01945278614 | K17: 0 | L17: 0 | M17: 0 | N17: 0
B18: 902 | C18: Retten i Aalborg | D18: Jurister | E18: 6.115375175 | F18: 0.2969963768 | G18: 9.502939107 | H18: 0.4615151814 | I18: 1.854565948 | J18: 0.09006796005 | K18: 2.34694612 | L18: 0.1139806593 | M18: 0.00376736817 | N18: 0.0001829641951
B19: 902 | C19: Retten i Aalborg | D19: Kontor | E19: 8.341510722 | F19: 0.1849182522 | G19: 9.673877239 | H19: 0.2144547349 | I19: 9.582480684 | J19: 0.2124286162 | K19: 8.15334702 | L19: 0.180746957 | M19: 0.844884972 | N19: 0.01872977899
B20: 902 | C20: Retten i Aalborg | D20: Elev | E20: 0.4384131294 | F20: 0.1130257006 | G20: 1.10739124 | H20: 0.2854925237 | I20: 1.154810944 | J20: 0.2977176257 | K20: 0.8893665931 | L20: 0.2292843793 | M20: 0 | N20: 0
B21: 902 | C21: Retten i Aalborg | D21: Fleks | E21: 0.06296147137 | F21: 0.03763634869 | G21: 0.03078319238 | H21: 0.01840120533 | I21: 0.7103602466 | J21: 0.4246305774 | K21: 0.2477968018 | L21: 0.1481249824 | M21: 0 | N21: 0
B22: 902 | C22: Retten i Aalborg | D22: Øvrige | E22: 1.460443387 | F22: 0.3855701635 | G22: 0.001004682399 | H22: 0.0002652451717 | I22: 1.353607022 | J22: 0.3573644042 | K22: 0 | L22: 0 | M22: 0 | N22: 0
B23: 903 | C23: Retten i Randers | D23: Jurister | E23: 5.460295341 | F23: 0.3275091839 | G23: 6.233896747 | H23: 0.3739098911 | I23: 1.506468699 | J23: 0.09035817721 | K23: 1.754831343 | L23: 0.1052549991 | M23: 0.009105003605 | N23: 0.0005461192324
B24: 903 | C24: Retten i Randers | D24: Kontor | E24: 5.254877052 | F24: 0.1682918839 | G24: 7.001546442 | H24: 0.2242304491 | I24: 7.270647713 | J24: 0.232848645 | K24: 6.800159861 | L24: 0.2177808734 | M24: 0.3141683554 | N24: 0.01006150741
B25: 903 | C25: Retten i Randers | D25: Elev | E25: 0.1000159849 | F25: 0.02824663987 | G25: 0.9770327743 | H25: 0.2759348212 | I25: 0.9176144222 | J25: 0.2591538157 | K25: 0.7137692131 | L25: 0.2015835962 | M25: 0.00171496546 | N25: 0.0004843426957
B26: 903 | C26: Retten i Randers | D26: Fleks | E26: 0 | F26: 0 | G26: 0 | H26: 0 | I26: 0 | J26: 0 | K26: 0 | L26: 0 | M26: 0 | N26: 0
B27: 903 | C27: Retten i Randers | D27: Øvrige | E27: 0 | F27: 0 | G27: 0.1173620355 | H27: 0.02861539476 | I27: 0.2068896399 | J27: 0.05044415509 | K27: 0.1682374308 | L27: 0.04101991309 | M27: 0 | N27: 0
B28: 904 | C28: Retten i Århus | D28: Jurister | E28: 10.73192834 | F28: 0.3910940004 | G28: 9.737191991 | H28: 0.3548437195 | I28: 2.112844928 | J28: 0.07699650514 | K28: 3.316589651 | L28: 0.1208634901 | M28: 0.01913353904 | N28: 0.0006972663338
B29: 904 | C29: Retten i Århus | D29: Kontor | E29: 12.16441862 | F29: 0.2422470011 | G29: 13.39710248 | H29: 0.2667951506 | I29: 8.208414604 | J29: 0.1634655862 | K29: 7.835169453 | L29: 0.156032636 | M29: 0.6750850262 | N29: 0.01344390785
B30: 904 | C30: Retten i Århus | D30: Elev | E30: 0.4168280961 | F30: 0.1389385306 | G30: 0.634486919 | H30: 0.211489295 | I30: 1.206031145 | J30: 0.4019983219 | K30: 0.1189729891 | L30: 0.03965647335 | M30: 0 | N30: 0
B31: 904 | C31: Retten i Århus | D31: Fleks | E31: 0 | F31: 0 | G31: 1.134833333 | H31: 0.3333333333 | I31: 1.134833333 | J31: 0.3333333333 | K31: 0.02106009939 | L31: 0.00618595958 | M31: 0 | N31: 0
B32: 904 | C32: Retten i Århus | D32: Øvrige | E32: 0.6565428942 | F32: 0.1172301729 | G32: 0.1907063164 | H32: 0.03405190223 | I32: 0.04944765948 | J32: 0.008829213936 | K32: 0.009519186939 | L32: 0.001699715191 | M32: 0 | N32: 0
B33: 905 | C33: Retten i Viborg | D33: Jurister | E33: 4.612675485 | F33: 0.3029669921 | G33: 5.949489077 | H33: 0.3907707829 | I33: 1.56653872 | J33: 0.1028924592 | K33: 1.789431362 | L33: 0.1175323604 | M33: 0.01637285836 | N33: 0.00107539229
B34: 905 | C34: Retten i Viborg | D34: Kontor | E34: 4.673798433 | F34: 0.1548443433 | G34: 5.787808963 | H34: 0.1917518462 | I34: 8.191973036 | J34: 0.2714025227 | K34: 5.981497668 | L34: 0.1981688111 | M34: 0.3625751123 | N34: 0.01201222218
B35: 905 | C35: Retten i Viborg | D35: Elev | E35: 0.8204193209 | F35: 0.1993544511 | G35: 0.3503751509 | H35: 0.08513798263 | I35: 1.89636372 | J35: 0.4607991777 | K35: 0.6910728517 | L35: 0.1679244327 | M35: 0 | N35: 0
B36: 905 | C36: Retten i Viborg | D36: Fleks | E36: 0.4035502333 | F36: 0.2017690636 | G36: 0.3726476082 | H36: 0.1863182146 | I36: 0.5580388128 | J36: 0.2790110361 | K36: 0 | L36: 0 | M36: 0 | N36: 0
B37: 905 | C37: Retten i Viborg | D37: Øvrige | E37: 0.15136306 | F37: 0.05016739581 | G37: 0.01083745088 | H37: 0.003591937742 | I37: 0.2277447589 | J37: 0.07548315599 | K37: 0 | L37: 0 | M37: 0 | N37: 0
B38: 906 | C38: Retten i Holstebro | D38: Jurister | E38: 3.180950181 | F38: 0.3113910796 | G38: 3.32799402 | H38: 0.3257855646 | I38: 0.4968254771 | J38: 0.04863547458 | K38: 1.159741172 | L38: 0.1135299313 | M38: 0.01035324478 | N38: 0.001013504734
B39: 906 | C39: Retten i Holstebro | D39: Kontor | E39: 5.341271958 | F39: 0.2470865285 | G39: 3.964280594 | H39: 0.1833870916 | I39: 4.05649062 | J39: 0.1876527152 | K39: 4.97024002 | L39: 0.2299226406 | M39: 0.3223367834 | N39: 0.01491125662
B40: 906 | C40: Retten i Holstebro | D40: Elev | E40: 0.6241990216 | F40: 0.2915305713 | G40: 0.9664210684 | H40: 0.4513645111 | I40: 0.001059816005 | J40: 0.0004949843798 | K40: 0.1087510767 | L40: 0.05079191479 | M40: 0 | N40: 0
B41: 906 | C41: Retten i Holstebro | D41: Fleks | E41: 0.1057318127 | F41: 0.01850836524 | G41: 0.04750077469 | H41: 0.008315015743 | I41: 0.01753730837 | J41: 0.003069907726 | K41: 1.398664154 | L41: 0.2448363113 | M41: 0 | N41: 0
B42: 906 | C42: Retten i Holstebro | D42: Øvrige | E42: 0.0180495845 | F42: 0.005348563854 | G42: 0.1031875128 | H42: 0.03057715825 | I42: 0.01197166367 | J42: 0.003547516987 | K42: 0.03942125571 | L42: 0.01168154887 | M42: 0.02496179354 | N42: 0.007396832136
B43: 907 | C43: Retten i Herning | D43: Jurister | E43: 4.736387244 | F43: 0.4011728641 | G43: 3.62095723 | H43: 0.3066957383 | I43: 0.9838404531 | J43: 0.08333146596 | K43: 1.554494857 | L43: 0.1316659981 | M43: 0.06338249272 | N43: 0.005368508703
B44: 907 | C44: Retten i Herning | D44: Kontor | E44: 4.04292515 | F44: 0.1885257438 | G44: 3.329855414 | H44: 0.1552745711 | I44: 4.663905045 | J44: 0.2174826729 | K44: 4.799688457 | L44: 0.2238143925 | M44: 0.4867639404 | N44: 0.02269830148
B45: 907 | C45: Retten i Herning | D45: Elev | E45: 0.3913435543 | F45: 0.1505543902 | G45: 0.3632527232 | H45: 0.1397475227 | I45: 1.356966337 | J45: 0.5220406399 | K45: 0.4335221387 | L45: 0.1667809794 | M45: 0 | N45: 0
B46: 907 | C46: Retten i Herning | D46: Fleks | E46: 0 | F46: 0 | G46: 0 | H46: 0 | I46: 0 | J46: 0 | K46: 0 | L46: 0 | M46: 0 | N46: 0
B47: 907 | C47: Retten i Herning | D47: Øvrige | E47: 0 | F47: 0 | G47: 0 | H47: 0 | I47: 0 | J47: 0 | K47: 0 | L47: 0 | M47: 0 | N47: 0
B48: 908 | C48: Retten i Horsens | D48: Jurister | E48: 4.586668911 | F48: 0.3151632798 | G48: 6.261345061 | H48: 0.4302351191 | I48: 1.212582463 | J48: 0.0833200463 | K48: 1.519786466 | L48: 0.1044289214 | M48: 0.008467733465 | N48: 0.0005818424444
B49: 908 | C49: Retten i Horsens | D49: Kontor | E49: 3.31570124 | F49: 0.1334752974 | G49: 6.14314615 | H49: 0.2472955794 | I49: 6.184382845 | J49: 0.2489555843 | K49: 3.869127939 | L49: 0.1557537802 | M49: 0.3151616584 | N49: 0.01268699833
B50: 908 | C50: Retten i Horsens | D50: Elev | E50: 0.7044298042 | F50: 0.1726408233 | G50: 1.007793082 | H50: 0.2469887366 | I50: 0.2763213362 | J50: 0.06772050629 | K50: 1.417687111 | L50: 0.3474450806 | M50: 0 | N50: 0
B51: 908 | C51: Retten i Horsens | D51: Fleks | E51: 0.06224120788 | F51: 0.01719094948 | G51: 0.4385045183 | H51: 0.1211144398 | I51: 0 | J51: 0 | K51: 1.244713268 | L51: 0.3437883621 | M51: 0 | N51: 0
B52: 908 | C52: Retten i Horsens | D52: Øvrige | E52: 0.001387618779 | F52: 0.0004637158856 | G52: 0.03516993189 | H52: 0.01175312439 | I52: 0.03021766953 | J52: 0.01009817221 | K52: 0.005014336668 | L52: 0.001675696239 | M52: 0 | N52: 0
B53: 909 | C53: Retten i Kolding | D53: Jurister | E53: 7.165526417 | F53: 0.3434453215 | G53: 8.963712689 | H53: 0.4296328012 | I53: 1.738099523 | J53: 0.08330750804 | K53: 1.464943999 | L53: 0.07021510125 | M53: 0.009584926771 | N53: 0.0004594077343
B54: 909 | C54: Retten i Kolding | D54: Kontor | E54: 8.422870615 | F54: 0.2272426865 | G54: 8.649153125 | H54: 0.2333476177 | I54: 6.511040802 | J54: 0.1756629624 | K54: 7.038959874 | L54: 0.1899058201 | M54: 0.6255949385 | N54: 0.01687807886
B55: 909 | C55: Retten i Kolding | D55: Elev | E55: 0.007649989207 | F55: 0.002509427327 | G55: 1.026292053 | H55: 0.3366547656 | I55: 1.190735328 | J55: 0.3905971226 | K55: 0.06045226054 | L55: 0.01983016583 | M55: 0 | N55: 0
B56: 909 | C56: Retten i Kolding | D56: Fleks | E56: 0.9563020175 | F56: 0.3469589069 | G56: 0 | H56: 0 | I56: 0.843635965 | J56: 0.3060821862 | K56: 0 | L56: 0 | M56: 0 | N56: 0
B57: 909 | C57: Retten i Kolding | D57: Øvrige | E57: 0 | F57: 0 | G57: 0 | H57: 0 | I57: 0 | J57: 0 | K57: 0 | L57: 0 | M57: 0 | N57: 0
B58: 910 | C58: Retten i Esbjerg | D58: Jurister | E58: 6.242717373 | F58: 0.409233197 | G58: 5.51133435 | H58: 0.3612883366 | I58: 1.224638245 | J58: 0.08027956323 | K58: 0.9979849485 | L58: 0.06542160194 | M58: 0.01146256372 | N58: 0.0007514134175
B59: 910 | C59: Retten i Esbjerg | D59: Kontor | E59: 6.62508811 | F59: 0.2180046085 | G59: 6.682962334 | H59: 0.219909013 | I59: 7.133114061 | J59: 0.2347216689 | K59: 5.570914496 | L59: 0.1833160576 | M59: 0.2403216704 | N59: 0.007908005266
B60: 910 | C60: Retten i Esbjerg | D60: Elev | E60: 0.2709646435 | F60: 0.11011421 | G60: 0.2263168533 | H60: 0.09197030728 | I60: 0.7624245838 | J60: 0.3098329719 | K60: 1.010502178 | L60: 0.4106463766 | M60: 0.001608639484 | N60: 0.0006537165281
B61: 910 | C61: Retten i Esbjerg | D61: Fleks | E61: 0 | F61: 0 | G61: 0 | H61: 0 | I61: 0 | J61: 0 | K61: 1.63935724 | L61: 0.4418097695 | M61: 0.012933779 | N61: 0.003485677056
B62: 910 | C62: Retten i Esbjerg | D62: Øvrige | E62: 0 | F62: 0 | G62: 0 | H62: 0 | I62: 0 | J62: 0 | K62: 0 | L62: 0 | M62: 0 | N62: 0
B63: 911 | C63: Retten i Sønderborg | D63: Jurister | E63: 6.617619593 | F63: 0.3878456097 | G63: 6.112377736 | H63: 0.3582343826 | I63: 1.783624014 | J63: 0.1045346795 | K63: 1.305589772 | L63: 0.076518037 | M63: 0.003871214202 | N63: 0.0002268842159
B64: 911 | C64: Retten i Sønderborg | D64: Kontor | E64: 8.269497613 | F64: 0.2281970322 | G64: 7.73088467 | H64: 0.213333992 | I64: 6.738672367 | J64: 0.1859538641 | K64: 7.02678107 | L64: 0.1939042323 | M64: 0.4385284087 | N64: 0.01210120446
B65: 911 | C65: Retten i Sønderborg | D65: Elev | E65: 0.7105241334 | F65: 0.1787446123 | G65: 1.091271658 | H65: 0.2745282253 | I65: 1.346303884 | J65: 0.3386859846 | K65: 0.6242730986 | L65: 0.1570466754 | M65: 0 | N65: 0
B66: 911 | C66: Retten i Sønderborg | D66: Fleks | E66: 0 | F66: 0 | G66: 0 | H66: 0 | I66: 0 | J66: 0 | K66: 0 | L66: 0 | M66: 0 | N66: 0
B67: 911 | C67: Retten i Sønderborg | D67: Øvrige | E67: 0 | F67: 0 | G67: 0 | H67: 0 | I67: 0.001227854547 | J67: 0.0003230847585 | K67: 0.02911375249 | L67: 0.007660687264 | M67: 0 | N67: 0
B68: 912 | C68: Retten i Odense | D68: Jurister | E68: 8.567559683 | F68: 0.3807570772 | G68: 7.47826364 | H68: 0.332346889 | I68: 3.132020722 | J68: 0.1391923838 | K68: 2.032164544 | L68: 0.09031288497 | M68: 0.00250368099 | N68: 0.0001112678862
B69: 912 | C69: Retten i Odense | D69: Kontor | E69: 11.07444482 | F69: 0.2345312743 | G69: 8.655644001 | H69: 0.1833066353 | I69: 12.43063401 | J69: 0.2632522428 | K69: 8.464559464 | L69: 0.1792599042 | M69: 0.6182794105 | N69: 0.01309373611
B70: 912 | C70: Retten i Odense | D70: Elev | E70: 0.02607753681 | F70: 0.009926245299 | G70: 0.8538220882 | H70: 0.3250018416 | I70: 0.256135433 | J70: 0.09749629177 | K70: 1.360451011 | L70: 0.5178468561 | M70: 0 | N70: 0
B71: 912 | C71: Retten i Odense | D71: Fleks | E71: 0 | F71: 0 | G71: 0.5322787093 | H71: 0.2009933802 | I71: 0 | J71: 0 | K71: 0 | L71: 0 | M71: 0 | N71: 0
B72: 912 | C72: Retten i Odense | D72: Øvrige | E72: 0.004996670431 | F72: 0.001047206064 | G72: 0 | H72: 0 | I72: 0 | J72: 0 | K72: 0 | L72: 0 | M72: 0 | N72: 0
B73: 913 | C73: Retten i Svendborg | D73: Jurister | E73: 3.787248575 | F73: 0.3697163489 | G73: 2.899468785 | H73: 0.2830500803 | I73: 1.243688609 | J73: 0.1214105709 | K73: 1.132581215 | L73: 0.1105641163 | M73: 0.03476557909 | N73: 0.003393863042
B74: 913 | C74: Retten i Svendborg | D74: Kontor | E74: 5.255262317 | F74: 0.2347303289 | G74: 3.989130933 | H74: 0.1781775979 | I74: 5.071616403 | J74: 0.2265276431 | K74: 4.642214296 | L74: 0.2073480681 | M74: 0.09923598974 | N74: 0.004432451724
B75: 913 | C75: Retten i Svendborg | D75: Elev | E75: 1.428406986 | F75: 0.4140490126 | G75: 0.632750752 | H75: 0.1834139896 | I75: 0.1921615665 | J75: 0.05570142659 | K75: 0.4044647184 | L75: 0.1172412477 | M75: 0.002305524843 | N75: 0.0006682971267
B76: 913 | C76: Retten i Svendborg | D76: Fleks | E76: 0.06711649841 | F76: 0.07321613459 | G76: 0.01439953082 | H76: 0.01570817923 | I76: 0.002928716842 | J76: 0.003194882504 | K76: 0.00170841767 | L76: 0.001863680928 | M76: 0.3065395967 | N76: 0.3343983208
B77: 913 | C77: Retten i Svendborg | D77: Øvrige | E77: 0 | F77: 0 | G77: 0 | H77: 0 | I77: 0 | J77: 0 | K77: 0 | L77: 0 | M77: 0 | N77: 0
B78: 914 | C78: Retten i Nykøbing F. | D78: Jurister | E78: 4.841330023 | F78: 0.3288404172 | G78: 4.850474919 | H78: 0.3294615711 | I78: 2.193718974 | J78: 0.1490052236 | K78: 1.678759578 | L78: 0.1140273432 | M78: 0 | N78: 0
B79: 914 | C79: Retten i Nykøbing F. | D79: Kontor | E79: 6.161319174 | F79: 0.1838203283 | G79: 4.960526704 | H79: 0.1479951973 | I79: 10.04581208 | J79: 0.2997125163 | K79: 6.699288485 | L79: 0.1998704131 | M79: 0.1712355985 | N79: 0.005108741009
B80: 914 | C80: Retten i Nykøbing F. | D80: Elev | E80: 0.4795786165 | F80: 0.2154993042 | G80: 0.383039685 | H80: 0.1721194039 | I80: 0.6019536495 | J80: 0.2704886918 | K80: 0 | L80: 0 | M80: 0 | N80: 0
B81: 914 | C81: Retten i Nykøbing F. | D81: Fleks | E81: 0 | F81: 0 | G81: 0.008182460913 | H81: 0.03926701657 | I81: 0 | J81: 0 | K81: 0.2001975391 | L81: 0.9607329834 | M81: 0 | N81: 0
B82: 914 | C82: Retten i Nykøbing F. | D82: Øvrige | E82: 0.04186594748 | F82: 0.01174643743 | G82: 0.01144433433 | H82: 0.003210966554 | I82: 0.003894506743 | J82: 0.001092691854 | K82: 0.0006490844571 | L82: 0.0001821153089 | M82: 0 | N82: 0
B83: 915 | C83: Retten i Næstved | D83: Jurister | E83: 7.871017479 | F83: 0.3915370034 | G83: 5.34754793 | H83: 0.2660091783 | I83: 3.085003787 | J83: 0.1534608634 | K83: 2.114038181 | L83: 0.1051610134 | M83: 0.03958455529 | N83: 0.0019690997
B84: 915 | C84: Retten i Næstved | D84: Kontor | E84: 6.336384028 | F84: 0.1656269179 | G84: 5.610329186 | H84: 0.1466485502 | I84: 11.46033475 | J84: 0.299562008 | K84: 7.374785037 | L84: 0.1927697106 | M84: 0.5915888638 | N84: 0.01546355772
B85: 915 | C85: Retten i Næstved | D85: Elev | E85: 0.8101287724 | F85: 0.2077818003 | G85: 0.6088597938 | H85: 0.1561603394 | I85: 0.7086725251 | J85: 0.1817603054 | K85: 1.101612209 | L85: 0.2825414624 | M85: 0 | N85: 0
B86: 915 | C86: Retten i Næstved | D86: Fleks | E86: 0.06926561817 | F86: 0.02102883509 | G86: 0.2518959595 | H86: 0.07647486202 | I86: 1.248151864 | J86: 0.3789351832 | K86: 0.01722548796 | L86: 0.00522960677 | M86: 0 | N86: 0
B87: 915 | C87: Retten i Næstved | D87: Øvrige | E87: 0 | F87: 0 | G87: 0.009705824163 | H87: 0.002312105103 | I87: 0 | J87: 0 | K87: 0 | L87: 0 | M87: 0.02732875229 | N87: 0.006510209391
B88: 916 | C88: Retten i Holbæk | D88: Jurister | E88: 4.165900613 | F88: 0.3199827802 | G88: 3.845868049 | H88: 0.2954010825 | I88: 1.988915623 | J88: 0.1527685871 | K88: 1.398440449 | L88: 0.1074141955 | M88: 0.007867263623 | N88: 0.0006042844322
B89: 916 | C89: Retten i Holbæk | D89: Kontor | E89: 5.519417762 | F89: 0.191742188 | G89: 4.791248061 | H89: 0.1664458873 | I89: 7.970280641 | J89: 0.2768841054 | K89: 5.75640114 | L89: 0.1999748882 | M89: 0.2790430629 | N89: 0.009693835424
B90: 916 | C90: Retten i Holbæk | D90: Elev | E90: 0.5077160566 | F90: 0.1695195229 | G90: 0.5675739108 | H90: 0.1895052506 | I90: 0.8082028264 | J90: 0.2698479903 | K90: 0.9497068869 | L90: 0.3170942818 | M90: 0 | N90: 0
B91: 916 | C91: Retten i Holbæk | D91: Fleks | E91: 1.00003 | F91: 0.3333333333 | G91: 1.011878697 | H91: 0.3372827804 | I91: 0 | J91: 0 | K91: 0 | L91: 0 | M91: 0 | N91: 0
B92: 916 | C92: Retten i Holbæk | D92: Øvrige | E92: 0.09607091979 | F92: 0.03878926322 | G92: 0.01324945822 | H92: 0.005349555554 | I92: 0.1292686306 | J92: 0.05219305645 | K92: 0.02328942069 | L92: 0.009403256171 | M92: 0.001357863798 | N92: 0.0005482464039
B93: 917 | C93: Retten i Roskilde | D93: Jurister | E93: 8.267840731 | F93: 0.3729086956 | G93: 7.22531016 | H93: 0.3258869002 | I93: 2.234836496 | J93: 0.1007989861 | K93: 2.400636139 | L93: 0.1082771331 | M93: 0.0130340771 | N93: 0.0005878827193
B94: 917 | C94: Retten i Roskilde | D94: Kontor | E94: 9.767758449 | F94: 0.2085281865 | G94: 7.835493257 | H94: 0.1672769866 | I94: 13.02879814 | J94: 0.2781468914 | K94: 8.182098346 | L94: 0.1746765277 | M94: 0.4548664335 | N94: 0.009710771713
B95: 917 | C95: Retten i Roskilde | D95: Elev | E95: 0.8024576632 | F95: 0.2612668654 | G95: 0.01085762298 | H95: 0.003535061416 | I95: 0.6925083782 | J95: 0.2254692074 | K95: 0.6676115351 | L95: 0.2173632094 | M95: 0 | N95: 0
B96: 917 | C96: Retten i Roskilde | D96: Fleks | E96: 0 | F96: 0 | G96: 0 | H96: 0 | I96: 0 | J96: 0 | K96: 0 | L96: 0 | M96: 0 | N96: 0
B97: 917 | C97: Retten i Roskilde | D97: Øvrige | E97: 0.02133075946 | F97: 0.0052095237 | G97: 0 | H97: 0 | I97: 0 | J97: 0 | K97: 0 | L97: 0 | M97: 0 | N97: 0
B98: 918 | C98: Retten i Hillerød | D98: Jurister | E98: 4.844421351 | F98: 0.323048862 | G98: 6.374702138 | H98: 0.4250952016 | I98: 1.255214586 | J98: 0.08370362819 | K98: 1.194224701 | L98: 0.07963653504 | M98: 0.01870900623 | N98: 0.001247604767
B99: 918 | C99: Retten i Hillerød | D99: Kontor | E99: 7.131646445 | F99: 0.2560194273 | G99: 4.149751725 | H99: 0.1489721999 | I99: 5.649445372 | J99: 0.2028097971 | K99: 4.643051972 | L99: 0.1666812167 | M99: 0.2854165119 | N99: 0.01024618543
B100: 918 | C100: Retten i Hillerød | D100: Elev | E100: 0.5429824285 | F100: 0.1417553241 | G100: 0.7195909833 | H100: 0.1878621622 | I100: 1.066257033 | J100: 0.2783655664 | K100: 0.9314036078 | L100: 0.2431596555 | M100: 0 | N100: 0
B101: 918 | C101: Retten i Hillerød | D101: Fleks | E101: 0 | F101: 0 | G101: 0 | H101: 0 | I101: 0.9081266123 | J101: 0.3302206542 | K101: 0 | L101: 0 | M101: 0 | N101: 0
B102: 918 | C102: Retten i Hillerød | D102: Øvrige | E102: 0.9099208436 | F102: 0.2071221726 | G102: 0.2579655735 | H102: 0.05871982206 | I102: 0.2838942344 | J102: 0.06462187454 | K102: 0 | L102: 0 | M102: 0 | N102: 0
B103: 919 | C103: Retten i Helsingør | D103: Jurister | E103: 4.284202528 | F103: 0.2761411249 | G103: 6.590126945 | H103: 0.4247710177 | I103: 2.144221456 | J103: 0.1382072208 | K103: 1.139646837 | L103: 0.07345669526 | M103: 0.0004485985713 | N103: 2.891471943e-05
B104: 919 | C104: Retten i Helsingør | D104: Kontor | E104: 5.95375901 | F104: 0.206969927 | G104: 5.076912803 | H104: 0.1764882103 | I104: 8.244507229 | J104: 0.2866029774 | K104: 5.132760945 | L104: 0.1784296536 | M104: 0.2061663186 | N104: 0.007166939043
B105: 919 | C105: Retten i Helsingør | D105: Elev | E105: 0.7795976625 | F105: 0.1853334306 | G105: 0.9472064685 | H105: 0.2251790029 | I105: 1.279049613 | J105: 0.3040679367 | K105: 0.8993343455 | L105: 0.2137983828 | M105: 0.007671254585 | N105: 0.001823684187
B106: 919 | C106: Retten i Helsingør | D106: Fleks | E106: 0.2200569847 | F106: 0.07567270562 | G106: 0.3846480967 | H106: 0.1322719305 | I106: 1.167308559 | J106: 0.4014114665 | K106: 0.03384827543 | L106: 0.01163966954 | M106: 0.2090017166 | N106: 0.07187104468
B107: 919 | C107: Retten i Helsingør | D107: Øvrige | E107: 0 | F107: 0 | G107: 0 | H107: 0 | I107: 0.02721042272 | J107: 0.009407363532 | K107: 0 | L107: 0 | M107: 0 | N107: 0
B108: 920 | C108: Retten i Lyngby | D108: Jurister | E108: 4.053204059 | F108: 0.204110099 | G108: 10.92433392 | H108: 0.5501245052 | I108: 1.474697826 | J108: 0.07426241434 | K108: 2.046888555 | L108: 0.1030766326 | M108: 0 | N108: 0
B109: 920 | C109: Retten i Lyngby | D109: Kontor | E109: 4.980191465 | F109: 0.1474221495 | G109: 9.25185945 | H109: 0.2738707972 | I109: 5.39345855 | J109: 0.159655559 | K109: 5.310876075 | L109: 0.1572109771 | M109: 1.164811957 | N109: 0.0344804178
B110: 920 | C110: Retten i Lyngby | D110: Elev | E110: 0.35246836 | F110: 0.1154324471 | G110: 0.2304219998 | H110: 0.0754625899 | I110: 0.3183242943 | J110: 0.1042503567 | K110: 0.9345209421 | L110: 0.3060531142 | M110: 0.007787637619 | N110: 0.002550430534
B111: 920 | C111: Retten i Lyngby | D111: Fleks | E111: 0 | F111: 0 | G111: 0 | H111: 0 | I111: 0 | J111: 0 | K111: 0.42 | L111: 1 | M111: 0 | N111: 0
B112: 920 | C112: Retten i Lyngby | D112: Øvrige | E112: 0.05483424165 | F112: 0.01368768669 | G112: 0.7196664674 | H112: 0.1796426618 | I112: 0.1621310364 | J112: 0.04047104077 | K112: 0.3165612771 | L112: 0.07901981405 | M112: 0 | N112: 0
B113: 921 | C113: Retten i Glostrup | D113: Jurister | E113: 13.6929021 | F113: 0.3884794465 | G113: 13.26502836 | H113: 0.3763402995 | I113: 4.059369194 | J113: 0.1151678064 | K113: 1.575672592 | L113: 0.04470319089 | M113: 0.004837989187 | N113: 0.0001372579274
B114: 921 | C114: Retten i Glostrup | D114: Kontor | E114: 15.54688078 | F114: 0.2218017796 | G114: 14.73025432 | H114: 0.2101512623 | I114: 16.66575027 | J114: 0.2377642899 | K114: 7.929273471 | L114: 0.1131241045 | M114: 0.9138344829 | N114: 0.01303734925
B115: 921 | C115: Retten i Glostrup | D115: Elev | E115: 1.058152546 | F115: 0.2146480311 | G115: 1.604082299 | H115: 0.3253908037 | I115: 0.184236741 | J115: 0.0373727341 | K115: 1.220594495 | L115: 0.2475996549 | M115: 0 | N115: 0
B116: 921 | C116: Retten i Glostrup | D116: Fleks | E116: 1.321081881 | F116: 0.3388049674 | G116: 0.5780883242 | H116: 0.1482566665 | I116: 0 | J116: 0 | K116: 1.000034897 | L116: 0.2564691831 | M116: 0 | N116: 0
B117: 921 | C117: Retten i Glostrup | D117: Øvrige | E117: 0.8836263404 | F117: 0.1082690988 | G117: 1.294069229 | H117: 0.1585599057 | I117: 0.8851159441 | J117: 0.1084516172 | K117: 0.00231247935 | L117: 0.0002833438115 | M117: 0.09682677084 | N117: 0.01186400489
B118: 922 | C118: Retten på Frederiksberg | D118: Jurister | E118: 8.467287883 | F118: 0.3315177367 | G118: 9.816071497 | H118: 0.3843263452 | I118: 3.702284828 | J118: 0.1449546896 | K118: 2.480865735 | L118: 0.09713275429 | M118: 0 | N118: 0
B119: 922 | C119: Retten på Frederiksberg | D119: Kontor | E119: 9.549283066 | F119: 0.1971184093 | G119: 9.702634886 | H119: 0.2002839314 | I119: 13.11604953 | J119: 0.2707443901 | K119: 7.101026773 | L119: 0.1465809624 | M119: 0.9162790764 | N119: 0.01891403498
B120: 922 | C120: Retten på Frederiksberg | D120: Elev | E120: 1.827150265 | F120: 0.4574142237 | G120: 0.6041653939 | H120: 0.151248559 | I120: 0.4449224437 | J120: 0.1113832059 | K120: 0.5417466715 | L120: 0.1356224707 | M120: 0 | N120: 0
B121: 922 | C121: Retten på Frederiksberg | D121: Fleks | E121: 0.309563248 | F121: 0.1031846538 | G121: 1.447820321 | H121: 0.4825922958 | I121: 1.154247712 | J121: 0.384737695 | K121: 0 | L121: 0 | M121: 0 | N121: 0
B122: 922 | C122: Retten på Frederiksberg | D122: Øvrige | E122: 0 | F122: 0 | G122: 0.2027374445 | H122: 0.04072717722 | I122: 0.8265207683 | J122: 0.1660367076 | K122: 0 | L122: 0 | M122: 0 | N122: 0
B123: 923 | C123: Københavns Byret | D123: Jurister | E123: 25.58231223 | F123: 0.4303658087 | G123: 21.36525886 | H123: 0.359423215 | I123: 6.451716383 | J123: 0.1085358553 | K123: 2.620333568 | L123: 0.04408131544 | M123: 0.05958550394 | N123: 0.001002394285
B124: 923 | C124: Københavns Byret | D124: Kontor | E124: 37.68288335 | F124: 0.3250219584 | G124: 16.0128309 | H124: 0.1381136791 | I124: 21.76052098 | J124: 0.1876885874 | K124: 9.035349297 | L124: 0.07793158757 | M124: 1.724166335 | N124: 0.01487125902
B125: 923 | C125: Københavns Byret | D125: Elev | E125: 3.282157335 | F125: 0.4066650892 | G125: 1.451604458 | H125: 0.1798563554 | I125: 1.160172879 | J125: 0.1437474682 | K125: 1.046383877 | L125: 0.1296488099 | M125: 0 | N125: 0
B126: 923 | C126: Københavns Byret | D126: Fleks | E126: 0.5346777503 | F126: 0.2270490256 | G126: 0 | H126: 0 | I126: 1.82022225 | J126: 0.7729509744 | K126: 0 | L126: 0 | M126: 0 | N126: 0
B127: 923 | C127: Københavns Byret | D127: Øvrige | E127: 0.6891878255 | F127: 0.072615339 | G127: 1.085770043 | H127: 0.1144006857 | I127: 0.8179074186 | J127: 0.08617770407 | K127: 0.2129153545 | L127: 0.02243353709 | M127: 0 | N127: 0
B128: 924 | C128: Retten på Bornholm | D128: Jurister | E128: 1.188318281 | F128: 0.3046274776 | G128: 0.766992008 | H128: 0.1966197478 | I128: 0.4774344011 | J128: 0.1223911469 | K128: 0.4900996917 | L128: 0.1256379164 | M128: 0.02507524365 | N128: 0.006428082732
B129: 924 | C129: Retten på Bornholm | D129: Kontor | E129: 1.191793256 | F129: 0.1384246419 | G129: 0.7763564871 | H129: 0.09017240889 | I129: 1.864024769 | J129: 0.2165031225 | K129: 1.986046666 | L129: 0.2306757462 | M129: 0.04958647408 | N129: 0.005759379731
B130: 924 | C130: Retten på Bornholm | D130: Elev | E130: 0.4515092083 | F130: 0.2169059269 | G130: 0.1490887121 | H130: 0.07162251553 | I130: 0.2371825631 | J130: 0.1139429778 | K130: 0.5454071869 | L130: 0.2620147036 | M130: 0 | N130: 0
B131: 924 | C131: Retten på Bornholm | D131: Fleks | E131: 0 | F131: 0 | G131: 0 | H131: 0 | I131: 0 | J131: 0 | K131: 0 | L131: 0 | M131: 0 | N131: 0
B132: 924 | C132: Retten på Bornholm | D132: Øvrige | E132: 0.001223569875 | F132: 0.001136386317 | G132: 0 | H132: 0 | I132: 0 | J132: 0 | K132: 0 | L132: 0 | M132: 0 | N132: 0
B134: 1) Procenten er beregnet i forhold til det samlede årsværksforbrug ved retten inkl. generel ledelse og administration, hvorfor der ikke kan summes op til 100 % for den enkelte ret.
B135: 2) Ansatte under socialt kapitel (fleksjobbere mv.) uden tidsfordeling indgår ikke i denne opgørelse.
B136: 3) Det opgjorte årsværksforbrug er inkl. de korrektioner, der foretages som led i produktivitetsberegningen.
